Organisation Name,Organisation Code,Unique Ref No,Effective Date,Directorate  where expenditure incurred,Supplier Name,Payment Date,Net Amount,Purpose of Spend,Procurement Classification (Higher Level),Procurement Classification (Lower Level),,Capital/Revenue
Walsall Council,http://opendatacommunities.org/id/metropolitan-district-council/walsall,WC97-01,31/08/2018,Resources and Transformation,11KBW,24/08/2018,750.00,73014-LEGAL FEES-PRIV CONTRACTOR FEES,LAW LIBRARY,Third Party Payments,,Revenue
Walsall Council,http://opendatacommunities.org/id/metropolitan-district-council/walsall,WC97-02,31/08/2018,Economy & Environment,21ST CENTURY PASSENGER SYSTEMS LTD,21/08/2018,"2,000.00",01002-PROJECT FEES,CFR 1281 WALSALL TOWN CENTRE DEVELOPMENT OPPORTUNITY AREA: INTERCHANGE,Capital,,Capital
Walsall Council,http://opendatacommunities.org/id/metropolitan-district-council/walsall,WC97-03,31/08/2018,Childrens,39 ESSEX STREET LLP PFA,08/08/2018,500.00,73014-LEGAL FEES-PRIV CONTRACTOR FEES,PERFORMANCE & OUTCOMES TEAM (C&YP),Third Party Payments,,Revenue
Walsall Council,http://opendatacommunities.org/id/metropolitan-district-council/walsall,WC97-04,31/08/2018,Childrens,5 CARE SERVICES LTD,08/08/2018,"1,470.00",63000-PROFESSIONAL FEES AND SERVICES,DIRECTLY COMMISSIONED NURSING SERVICES,Supplies & Services,,Revenue
Walsall Council,http://opendatacommunities.org/id/metropolitan-district-council/walsall,WC97-05,31/08/2018,Adult Social Care,5 CARE SERVICES LTD,14/08/2018,"37,934.88",73372-DOMICILIARY CARE,OP PACKAGE/PLACEMENT COSTS,Third Party Payments,,Revenue
Walsall Council,http://opendatacommunities.org/id/metropolitan-district-council/walsall,WC97-06,31/08/2018,Economy & Environment,A ASHTON,29/08/2018,532.00,60500-GENERAL MATERIALS,INFRASTRUCTURE MAINTENANCE,Supplies & Services,,Revenue
Walsall Council,http://opendatacommunities.org/id/metropolitan-district-council/walsall,WC97-07,31/08/2018,Economy & Environment,A F BLAKEMORE & SON LTD,06/08/2018,296.50,61018-DRINKS-PROVISIONS,OAK PARK,Supplies & Services,,Revenue
Walsall Council,http://opendatacommunities.org/id/metropolitan-district-council/walsall,WC97-08,31/08/2018,Adult Social Care,A F BLAKEMORE & SON LTD,02/08/2018,310.99,61016-FOOD AND BEVERAGES-PROVISIONS,GOSCOTE,Supplies & Services,,Revenue
Walsall Council,http://opendatacommunities.org/id/metropolitan-district-council/walsall,WC97-09,31/08/2018,Economy & Environment,A F BLAKEMORE & SON LTD,03/08/2018,331.30,61018-DRINKS-PROVISIONS,OAK PARK,Supplies & Services,,Revenue
Walsall Council,http://opendatacommunities.org/id/metropolitan-district-council/walsall,WC97-10,31/08/2018,Economy & Environment,A F BLAKEMORE & SON LTD,03/08/2018,389.53,61018-DRINKS-PROVISIONS,OAK PARK,Supplies & Services,,Revenue
Walsall Council,http://opendatacommunities.org/id/metropolitan-district-council/walsall,WC97-11,31/08/2018,Economy & Environment,A F BLAKEMORE & SON LTD,21/08/2018,403.60,61008-CONFECTIONERY/SNACKS-PROVISIONS,OAK PARK,Supplies & Services,,Revenue
Walsall Council,http://opendatacommunities.org/id/metropolitan-district-council/walsall,WC97-12,31/08/2018,Economy & Environment,A F BLAKEMORE & SON LTD,14/08/2018,465.68,61008-CONFECTIONERY/SNACKS-PROVISIONS,DARLASTON LEISURE CENTRE,Supplies & Services,,Revenue
Walsall Council,http://opendatacommunities.org/id/metropolitan-district-council/walsall,WC97-13,31/08/2018,Adult Social Care,A F BLAKEMORE & SON LTD,28/08/2018,493.04,61016-FOOD AND BEVERAGES-PROVISIONS,GOSCOTE,Supplies & Services,,Revenue
Walsall Council,http://opendatacommunities.org/id/metropolitan-district-council/walsall,WC97-14,31/08/2018,Economy & Environment,A F BLAKEMORE & SON LTD,03/08/2018,533.36,61008-CONFECTIONERY/SNACKS-PROVISIONS,OAK PARK,Supplies & Services,,Revenue
Walsall Council,http://opendatacommunities.org/id/metropolitan-district-council/walsall,WC97-15,31/08/2018,Economy & Environment,A F BLAKEMORE & SON LTD,03/08/2018,542.57,61008-CONFECTIONERY/SNACKS-PROVISIONS,OAK PARK,Supplies & Services,,Revenue
Walsall Council,http://opendatacommunities.org/id/metropolitan-district-council/walsall,WC97-16,31/08/2018,Economy & Environment,A F BLAKEMORE & SON LTD,13/08/2018,"1,187.66",61008-CONFECTIONERY/SNACKS-PROVISIONS,BLOXWICH LEISURE CENTRE,Supplies & Services,,Revenue
Walsall Council,http://opendatacommunities.org/id/metropolitan-district-council/walsall,WC97-17,31/08/2018,Economy & Environment,A KARIMS CHUCKERY PHARMACY,07/08/2018,289.45,71007-CONTRIBUTION TO PCT,PUBLIC HEALTH BUSINESS SUPPORT,Third Party Payments,,Revenue
Walsall Council,http://opendatacommunities.org/id/metropolitan-district-council/walsall,WC97-18,31/08/2018,Childrens,AA GLOBAL LANGUAGE SERVICES LIMITED,15/08/2018,212.00,74036-EXTERNAL RESIDENTIAL CARE-OTH AGENCY PROVISION,INDEPENDENT RESIDENTIAL HOMES,Third Party Payments,,Revenue
Walsall Council,http://opendatacommunities.org/id/metropolitan-district-council/walsall,WC97-19,31/08/2018,Childrens,REDACTED,06/08/2018,378.00,73506-DIRECT PAYMENT,FAMILY SUPPORT - DIRECT PAYMENTS,Third Party Payments,,Revenue
Walsall Council,http://opendatacommunities.org/id/metropolitan-district-council/walsall,WC97-20,31/08/2018,Adult Social Care,ABBEY COURT NURSING & RESIDEN,14/08/2018,"2,077.58",73373-RESIDENTIAL & NURSING CARE PLACEMENTS,OP PACKAGE/PLACEMENT COSTS,Third Party Payments,,Revenue
Walsall Council,http://opendatacommunities.org/id/metropolitan-district-council/walsall,WC97-21,31/08/2018,Adult Social Care,ABBEY COURT NURSING & RESIDEN,14/08/2018,"2,077.58",73373-RESIDENTIAL & NURSING CARE PLACEMENTS,OP PACKAGE/PLACEMENT COSTS,Third Party Payments,,Revenue
Walsall Council,http://opendatacommunities.org/id/metropolitan-district-council/walsall,WC97-22,31/08/2018,Adult Social Care,ABBEY COURT NURSING & RESIDEN,14/08/2018,"2,077.58",73373-RESIDENTIAL & NURSING CARE PLACEMENTS,OP PACKAGE/PLACEMENT COSTS,Third Party Payments,,Revenue
Walsall Council,http://opendatacommunities.org/id/metropolitan-district-council/walsall,WC97-23,31/08/2018,Adult Social Care,ABBEY COURT NURSING & RESIDEN,14/08/2018,"2,144.62",73373-RESIDENTIAL & NURSING CARE PLACEMENTS,OP PACKAGE/PLACEMENT COSTS,Third Party Payments,,Revenue
Walsall Council,http://opendatacommunities.org/id/metropolitan-district-council/walsall,WC97-24,31/08/2018,Adult Social Care,ABBEY HEALTHCARE HOMES LTD,24/08/2018,"2,048.29",73373-RESIDENTIAL & NURSING CARE PLACEMENTS,PD PACKAGE/PLACEMENT COSTS,Third Party Payments,,Revenue
Walsall Council,http://opendatacommunities.org/id/metropolitan-district-council/walsall,WC97-25,31/08/2018,Adult Social Care,ABBEY HEALTHCARE HOMES LTD,21/08/2018,"2,294.08",73373-RESIDENTIAL & NURSING CARE PLACEMENTS,PD PACKAGE/PLACEMENT COSTS,Third Party Payments,,Revenue
Walsall Council,http://opendatacommunities.org/id/metropolitan-district-council/walsall,WC97-26,31/08/2018,Adult Social Care,ABBEY HEALTHCARE HOMES LTD,24/08/2018,"2,678.57",73373-RESIDENTIAL & NURSING CARE PLACEMENTS,LD PACKAGE/PLACEMENT COSTS,Third Party Payments,,Revenue
Walsall Council,http://opendatacommunities.org/id/metropolitan-district-council/walsall,WC97-27,31/08/2018,Adult Social Care,ABBEY HEALTHCARE HOMES LTD,24/08/2018,"2,678.57",73373-RESIDENTIAL & NURSING CARE PLACEMENTS,LD PACKAGE/PLACEMENT COSTS,Third Party Payments,,Revenue
Walsall Council,http://opendatacommunities.org/id/metropolitan-district-council/walsall,WC97-28,31/08/2018,Adult Social Care,ABBEY HEALTHCARE HOMES LTD,24/08/2018,"2,678.57",73373-RESIDENTIAL & NURSING CARE PLACEMENTS,OP PACKAGE/PLACEMENT COSTS,Third Party Payments,,Revenue
Walsall Council,http://opendatacommunities.org/id/metropolitan-district-council/walsall,WC97-29,31/08/2018,Adult Social Care,ABBEY HEALTHCARE HOMES LTD,24/08/2018,"2,857.14",73373-RESIDENTIAL & NURSING CARE PLACEMENTS,OP PACKAGE/PLACEMENT COSTS,Third Party Payments,,Revenue
Walsall Council,http://opendatacommunities.org/id/metropolitan-district-council/walsall,WC97-30,31/08/2018,Childrens,ABC FOSTERING,10/08/2018,-334.28,74037-INDEPENDENT FOSTER CARE-OTH AGENCY PROVISION,EXTERNAL FOSTER CARE PROVISION,Third Party Payments,,Revenue
Walsall Council,http://opendatacommunities.org/id/metropolitan-district-council/walsall,WC97-31,31/08/2018,Childrens,ABC FOSTERING,10/08/2018,418.97,74037-INDEPENDENT FOSTER CARE-OTH AGENCY PROVISION,EXTERNAL FOSTER CARE PROVISION,Third Party Payments,,Revenue
Walsall Council,http://opendatacommunities.org/id/metropolitan-district-council/walsall,WC97-32,31/08/2018,Childrens,ABC FOSTERING,10/08/2018,"2,635.20",74037-INDEPENDENT FOSTER CARE-OTH AGENCY PROVISION,EXTERNAL FOSTER CARE PROVISION,Third Party Payments,,Revenue
Walsall Council,http://opendatacommunities.org/id/metropolitan-district-council/walsall,WC97-33,31/08/2018,Childrens,ABC FOSTERING,10/08/2018,"2,859.48",74037-INDEPENDENT FOSTER CARE-OTH AGENCY PROVISION,EXTERNAL FOSTER CARE PROVISION,Third Party Payments,,Revenue
Walsall Council,http://opendatacommunities.org/id/metropolitan-district-council/walsall,WC97-34,31/08/2018,Childrens,ABC FOSTERING,10/08/2018,"2,932.80",74037-INDEPENDENT FOSTER CARE-OTH AGENCY PROVISION,EXTERNAL FOSTER CARE PROVISION,Third Party Payments,,Revenue
Walsall Council,http://opendatacommunities.org/id/metropolitan-district-council/walsall,WC97-35,31/08/2018,Childrens,ABC FOSTERING,10/08/2018,"3,042.00",74037-INDEPENDENT FOSTER CARE-OTH AGENCY PROVISION,EXTERNAL FOSTER CARE PROVISION,Third Party Payments,,Revenue
Walsall Council,http://opendatacommunities.org/id/metropolitan-district-council/walsall,WC97-36,31/08/2018,Childrens,ABC TEACHERS LIMITED,17/08/2018,820.00,63000-PROFESSIONAL FEES AND SERVICES,SCHOOL IMPROVEMENT-VIRTUAL SCHOOL,Supplies & Services,,Revenue
Walsall Council,http://opendatacommunities.org/id/metropolitan-district-council/walsall,WC97-37,31/08/2018,Adult Social Care,REDACTED,10/08/2018,"1,621.16",73506-DIRECT PAYMENT,LEARNING DISABILITY SUPPORT,Third Party Payments,,Revenue
Walsall Council,http://opendatacommunities.org/id/metropolitan-district-council/walsall,WC97-38,31/08/2018,Adult Social Care,REDACTED,10/08/2018,"1,999.20",73506-DIRECT PAYMENT,LEARNING DISABILITY SUPPORT,Third Party Payments,,Revenue
Walsall Council,http://opendatacommunities.org/id/metropolitan-district-council/walsall,WC97-39,31/08/2018,Childrens,ABLEWELL CARS,06/08/2018,"5,673.08",52000-WITH DRIVER-HIRE OF VEHICLES,HOME TO SCHOOL TRANSPORT,Transport,,Revenue
Walsall Council,http://opendatacommunities.org/id/metropolitan-district-council/walsall,WC97-40,31/08/2018,Childrens,ABU BAKR NURSERY,09/08/2018,640.00,77200-TRANSFER PAYMENTS-OTHER SCHOOLCHILDREN/STUDENT RELATED ITEMS,EARLY YEARS - SOCIAL INCLUSION FUND - 2 YR OLDS,Transfer Payments,,Revenue
Walsall Council,http://opendatacommunities.org/id/metropolitan-district-council/walsall,WC97-41,31/08/2018,Economy & Environment,AC JADE TRADING LIMITED,03/08/2018,412.30,60529-SHOP STOCK-MATERIALS,NAG - NEW ART GALLERY SHOP STOCK,Supplies & Services,,Revenue
Walsall Council,http://opendatacommunities.org/id/metropolitan-district-council/walsall,WC97-42,31/08/2018,Adult Social Care,ACCORD HOUSING ASSOCIATION LTD#135,06/08/2018,252.28,73372-DOMICILIARY CARE,MENTAL HEALTH PACKAGE/PLACEMENT COSTS,Third Party Payments,,Revenue
Walsall Council,http://opendatacommunities.org/id/metropolitan-district-council/walsall,WC97-43,31/08/2018,Adult Social Care,ACCORD HOUSING ASSOCIATION LTD#135,03/08/2018,296.80,73372-DOMICILIARY CARE,LD PACKAGE/PLACEMENT COSTS,Third Party Payments,,Revenue
Walsall Council,http://opendatacommunities.org/id/metropolitan-district-council/walsall,WC97-44,31/08/2018,Adult Social Care,ACCORD HOUSING ASSOCIATION LTD#135,02/08/2018,298.46,73372-DOMICILIARY CARE,LD PACKAGE/PLACEMENT COSTS,Third Party Payments,,Revenue
Walsall Council,http://opendatacommunities.org/id/metropolitan-district-council/walsall,WC97-45,31/08/2018,Adult Social Care,ACCORD HOUSING ASSOCIATION LTD#135,02/08/2018,302.24,73372-DOMICILIARY CARE,MENTAL HEALTH PACKAGE/PLACEMENT COSTS,Third Party Payments,,Revenue
Walsall Council,http://opendatacommunities.org/id/metropolitan-district-council/walsall,WC97-46,31/08/2018,Adult Social Care,ACCORD HOUSING ASSOCIATION LTD#135,02/08/2018,330.56,73372-DOMICILIARY CARE,MENTAL HEALTH PACKAGE/PLACEMENT COSTS,Third Party Payments,,Revenue
Walsall Council,http://opendatacommunities.org/id/metropolitan-district-council/walsall,WC97-47,31/08/2018,Adult Social Care,ACCORD HOUSING ASSOCIATION LTD#135,03/08/2018,341.32,73372-DOMICILIARY CARE,LD PACKAGE/PLACEMENT COSTS,Third Party Payments,,Revenue
Walsall Council,http://opendatacommunities.org/id/metropolitan-district-council/walsall,WC97-48,31/08/2018,Adult Social Care,ACCORD HOUSING ASSOCIATION LTD#135,03/08/2018,363.58,73372-DOMICILIARY CARE,MENTAL HEALTH PACKAGE/PLACEMENT COSTS,Third Party Payments,,Revenue
Walsall Council,http://opendatacommunities.org/id/metropolitan-district-council/walsall,WC97-49,31/08/2018,Adult Social Care,ACCORD HOUSING ASSOCIATION LTD#135,02/08/2018,396.68,73372-DOMICILIARY CARE,MENTAL HEALTH PACKAGE/PLACEMENT COSTS,Third Party Payments,,Revenue
Walsall Council,http://opendatacommunities.org/id/metropolitan-district-council/walsall,WC97-50,31/08/2018,Adult Social Care,ACCORD HOUSING ASSOCIATION LTD#135,02/08/2018,396.68,73372-DOMICILIARY CARE,LD PACKAGE/PLACEMENT COSTS,Third Party Payments,,Revenue
Walsall Council,http://opendatacommunities.org/id/metropolitan-district-council/walsall,WC97-51,31/08/2018,Adult Social Care,ACCORD HOUSING ASSOCIATION LTD#135,06/08/2018,452.62,73372-DOMICILIARY CARE,MENTAL HEALTH PACKAGE/PLACEMENT COSTS,Third Party Payments,,Revenue
Walsall Council,http://opendatacommunities.org/id/metropolitan-district-council/walsall,WC97-52,31/08/2018,Adult Social Care,ACCORD HOUSING ASSOCIATION LTD#135,02/08/2018,491.14,73372-DOMICILIARY CARE,LD PACKAGE/PLACEMENT COSTS,Third Party Payments,,Revenue
Walsall Council,http://opendatacommunities.org/id/metropolitan-district-council/walsall,WC97-53,31/08/2018,Adult Social Care,ACCORD HOUSING ASSOCIATION LTD#135,02/08/2018,566.70,73372-DOMICILIARY CARE,LD PACKAGE/PLACEMENT COSTS,Third Party Payments,,Revenue
Walsall Council,http://opendatacommunities.org/id/metropolitan-district-council/walsall,WC97-54,31/08/2018,Adult Social Care,ACCORD HOUSING ASSOCIATION LTD#135,06/08/2018,596.92,73372-DOMICILIARY CARE,MENTAL HEALTH PACKAGE/PLACEMENT COSTS,Third Party Payments,,Revenue
Walsall Council,http://opendatacommunities.org/id/metropolitan-district-council/walsall,WC97-55,31/08/2018,Adult Social Care,ACCORD HOUSING ASSOCIATION LTD#135,02/08/2018,604.48,73372-DOMICILIARY CARE,MENTAL HEALTH PACKAGE/PLACEMENT COSTS,Third Party Payments,,Revenue
Walsall Council,http://opendatacommunities.org/id/metropolitan-district-council/walsall,WC97-56,31/08/2018,Adult Social Care,ACCORD HOUSING ASSOCIATION LTD#135,02/08/2018,661.12,73372-DOMICILIARY CARE,MENTAL HEALTH PACKAGE/PLACEMENT COSTS,Third Party Payments,,Revenue
Walsall Council,http://opendatacommunities.org/id/metropolitan-district-council/walsall,WC97-57,31/08/2018,Adult Social Care,ACCORD HOUSING ASSOCIATION LTD#135,02/08/2018,661.14,73372-DOMICILIARY CARE,LD PACKAGE/PLACEMENT COSTS,Third Party Payments,,Revenue
Walsall Council,http://opendatacommunities.org/id/metropolitan-district-council/walsall,WC97-58,31/08/2018,Adult Social Care,ACCORD HOUSING ASSOCIATION LTD#135,02/08/2018,661.14,73372-DOMICILIARY CARE,MENTAL HEALTH PACKAGE/PLACEMENT COSTS,Third Party Payments,,Revenue
Walsall Council,http://opendatacommunities.org/id/metropolitan-district-council/walsall,WC97-59,31/08/2018,Adult Social Care,ACCORD HOUSING ASSOCIATION LTD#135,02/08/2018,783.92,73372-DOMICILIARY CARE,MENTAL HEALTH PACKAGE/PLACEMENT COSTS,Third Party Payments,,Revenue
Walsall Council,http://opendatacommunities.org/id/metropolitan-district-council/walsall,WC97-60,31/08/2018,Adult Social Care,ACCORD HOUSING ASSOCIATION LTD#135,02/08/2018,793.36,73372-DOMICILIARY CARE,MENTAL HEALTH PACKAGE/PLACEMENT COSTS,Third Party Payments,,Revenue
Walsall Council,http://opendatacommunities.org/id/metropolitan-district-council/walsall,WC97-61,31/08/2018,Adult Social Care,ACCORD HOUSING ASSOCIATION LTD#135,02/08/2018,793.36,73372-DOMICILIARY CARE,MENTAL HEALTH PACKAGE/PLACEMENT COSTS,Third Party Payments,,Revenue
Walsall Council,http://opendatacommunities.org/id/metropolitan-district-council/walsall,WC97-62,31/08/2018,Adult Social Care,ACCORD HOUSING ASSOCIATION LTD#135,01/08/2018,964.82,73372-DOMICILIARY CARE,LD PACKAGE/PLACEMENT COSTS,Third Party Payments,,Revenue
Walsall Council,http://opendatacommunities.org/id/metropolitan-district-council/walsall,WC97-63,31/08/2018,Adult Social Care,ACCORD HOUSING ASSOCIATION LTD#135,02/08/2018,982.28,73372-DOMICILIARY CARE,MENTAL HEALTH PACKAGE/PLACEMENT COSTS,Third Party Payments,,Revenue
Walsall Council,http://opendatacommunities.org/id/metropolitan-district-council/walsall,WC97-64,31/08/2018,Adult Social Care,ACCORD HOUSING ASSOCIATION LTD#135,02/08/2018,"1,133.40",73372-DOMICILIARY CARE,LD PACKAGE/PLACEMENT COSTS,Third Party Payments,,Revenue
Walsall Council,http://opendatacommunities.org/id/metropolitan-district-council/walsall,WC97-65,31/08/2018,Adult Social Care,ACCORD HOUSING ASSOCIATION LTD#135,02/08/2018,"1,322.28",73372-DOMICILIARY CARE,LD PACKAGE/PLACEMENT COSTS,Third Party Payments,,Revenue
Walsall Council,http://opendatacommunities.org/id/metropolitan-district-council/walsall,WC97-66,31/08/2018,Adult Social Care,ACCORD HOUSING ASSOCIATION LTD#135,02/08/2018,"1,322.28",73372-DOMICILIARY CARE,LD PACKAGE/PLACEMENT COSTS,Third Party Payments,,Revenue
Walsall Council,http://opendatacommunities.org/id/metropolitan-district-council/walsall,WC97-67,31/08/2018,Adult Social Care,ACCORD HOUSING ASSOCIATION LTD#135,02/08/2018,"1,567.84",73372-DOMICILIARY CARE,MENTAL HEALTH PACKAGE/PLACEMENT COSTS,Third Party Payments,,Revenue
Walsall Council,http://opendatacommunities.org/id/metropolitan-district-council/walsall,WC97-68,31/08/2018,Adult Social Care,ACCORD HOUSING ASSOCIATION LTD#135,07/08/2018,"6,288.08",73373-RESIDENTIAL & NURSING CARE PLACEMENTS,LD PACKAGE/PLACEMENT COSTS,Third Party Payments,,Revenue
Walsall Council,http://opendatacommunities.org/id/metropolitan-district-council/walsall,WC97-69,31/08/2018,Childrens,ACCORD HOUSING ASSOCIATION LTD#135,09/08/2018,"6,655.50",63102-CONSULTANTS FEES - CORPORATE,TOXIC TRIO,Supplies & Services,,Revenue
Walsall Council,http://opendatacommunities.org/id/metropolitan-district-council/walsall,WC97-70,31/08/2018,Economy & Environment,ACCORD HOUSING ASSOCIATION LTD#135,13/08/2018,"7,437.50",63253-PAYMENT TO CONTRACTOR,MENTAL HEALTH,Third Party Payments,,Revenue
Walsall Council,http://opendatacommunities.org/id/metropolitan-district-council/walsall,WC97-71,31/08/2018,Economy & Environment,ACCORD HOUSING ASSOCIATION LTD#135,13/08/2018,"7,437.50",63253-PAYMENT TO CONTRACTOR,MENTAL HEALTH,Third Party Payments,,Revenue
Walsall Council,http://opendatacommunities.org/id/metropolitan-district-council/walsall,WC97-72,31/08/2018,Adult Social Care,ACCORD HOUSING ASSOCIATION LTD#135,01/08/2018,"11,164.00",73365-BLOCK GROSS-SUPPORTING PEOPLE,OLDER PEOPLE SLA,Third Party Payments,,Revenue
Walsall Council,http://opendatacommunities.org/id/metropolitan-district-council/walsall,WC97-73,31/08/2018,Economy & Environment,ACCORD HOUSING ASSOCIATION LTD#135,13/08/2018,"11,250.00",63253-PAYMENT TO CONTRACTOR,FALLS PREVENTION AGE UK,Third Party Payments,,Revenue
Walsall Council,http://opendatacommunities.org/id/metropolitan-district-council/walsall,WC97-74,31/08/2018,Economy & Environment,ACCORD HOUSING ASSOCIATION LTD#135,13/08/2018,"11,250.00",63253-PAYMENT TO CONTRACTOR,FALLS PREVENTION AGE UK,Third Party Payments,,Revenue
Walsall Council,http://opendatacommunities.org/id/metropolitan-district-council/walsall,WC97-75,31/08/2018,Adult Social Care,ACCORD HOUSING ASSOCIATION LTD#135,01/08/2018,"29,330.75",73365-BLOCK GROSS-SUPPORTING PEOPLE,OLDER PEOPLE SLA,Third Party Payments,,Revenue
Walsall Council,http://opendatacommunities.org/id/metropolitan-district-council/walsall,WC97-76,31/08/2018,Economy & Environment,ACCORD HOUSING ASSOCIATION LTD#135,23/08/2018,"212,893.11",66500-GRANTS TO OTHER ORGS,CITY DEAL WELFARE PILOT,Third Party Payments,,Revenue
Walsall Council,http://opendatacommunities.org/id/metropolitan-district-council/walsall,WC97-77,31/08/2018,Adult Social Care,ACE CARE AGENCY,01/08/2018,708.00,73372-DOMICILIARY CARE,OP PACKAGE/PLACEMENT COSTS,Third Party Payments,,Revenue
Walsall Council,http://opendatacommunities.org/id/metropolitan-district-council/walsall,WC97-78,31/08/2018,Adult Social Care,ACE CARE AGENCY,01/08/2018,990.00,73372-DOMICILIARY CARE,OP PACKAGE/PLACEMENT COSTS,Third Party Payments,,Revenue
Walsall Council,http://opendatacommunities.org/id/metropolitan-district-council/walsall,WC97-79,31/08/2018,Adult Social Care,ACEPAY LTD (COTTAGE NUR HOME),14/08/2018,"1,869.79",73373-RESIDENTIAL & NURSING CARE PLACEMENTS,OP PACKAGE/PLACEMENT COSTS,Third Party Payments,,Revenue
Walsall Council,http://opendatacommunities.org/id/metropolitan-district-council/walsall,WC97-80,31/08/2018,Adult Social Care,ACEPAY LTD (COTTAGE NUR HOME),14/08/2018,"2,258.21",73373-RESIDENTIAL & NURSING CARE PLACEMENTS,OP PACKAGE/PLACEMENT COSTS,Third Party Payments,,Revenue
Walsall Council,http://opendatacommunities.org/id/metropolitan-district-council/walsall,WC97-81,31/08/2018,Adult Social Care,ACEPAY LTD (COTTAGE NUR HOME),14/08/2018,"2,258.21",73373-RESIDENTIAL & NURSING CARE PLACEMENTS,OP PACKAGE/PLACEMENT COSTS,Third Party Payments,,Revenue
Walsall Council,http://opendatacommunities.org/id/metropolitan-district-council/walsall,WC97-82,31/08/2018,Adult Social Care,ACEPAY LTD (COTTAGE NUR HOME),14/08/2018,"2,258.22",73373-RESIDENTIAL & NURSING CARE PLACEMENTS,OP PACKAGE/PLACEMENT COSTS,Third Party Payments,,Revenue
Walsall Council,http://opendatacommunities.org/id/metropolitan-district-council/walsall,WC97-83,31/08/2018,Adult Social Care,ACEPAY LTD (COTTAGE NUR HOME),14/08/2018,"2,258.22",73373-RESIDENTIAL & NURSING CARE PLACEMENTS,OP PACKAGE/PLACEMENT COSTS,Third Party Payments,,Revenue
Walsall Council,http://opendatacommunities.org/id/metropolitan-district-council/walsall,WC97-84,31/08/2018,Adult Social Care,ACEPAY LTD (COTTAGE NUR HOME),14/08/2018,"2,258.22",73373-RESIDENTIAL & NURSING CARE PLACEMENTS,OP PACKAGE/PLACEMENT COSTS,Third Party Payments,,Revenue
Walsall Council,http://opendatacommunities.org/id/metropolitan-district-council/walsall,WC97-85,31/08/2018,Adult Social Care,ACEPAY LTD (COTTAGE NUR HOME),14/08/2018,"2,258.22",73373-RESIDENTIAL & NURSING CARE PLACEMENTS,MENTAL HEALTH PACKAGE/PLACEMENT COSTS,Third Party Payments,,Revenue
Walsall Council,http://opendatacommunities.org/id/metropolitan-district-council/walsall,WC97-86,31/08/2018,Adult Social Care,ACEPAY LTD (COTTAGE NUR HOME),14/08/2018,"2,258.22",73373-RESIDENTIAL & NURSING CARE PLACEMENTS,OP PACKAGE/PLACEMENT COSTS,Third Party Payments,,Revenue
Walsall Council,http://opendatacommunities.org/id/metropolitan-district-council/walsall,WC97-87,31/08/2018,Adult Social Care,ACEPAY LTD (COTTAGE NUR HOME),14/08/2018,"2,258.22",73373-RESIDENTIAL & NURSING CARE PLACEMENTS,OP PACKAGE/PLACEMENT COSTS,Third Party Payments,,Revenue
Walsall Council,http://opendatacommunities.org/id/metropolitan-district-council/walsall,WC97-88,31/08/2018,Childrens,ACORN CARE & EDUCATION LTD (SALES),13/08/2018,"6,333.34",66502-TOP UP FUNDING -GRANTS TO SCHOOLS,INDEPENDENT PROVIDERS - SPECIAL & AP,Third Party Payments,,Revenue
Walsall Council,http://opendatacommunities.org/id/metropolitan-district-council/walsall,WC97-89,31/08/2018,Childrens,ACORN CARE & EDUCATION LTD (SALES),28/08/2018,"12,853.34",66502-TOP UP FUNDING -GRANTS TO SCHOOLS,INDEPENDENT PROVIDERS - SPECIAL & AP,Third Party Payments,,Revenue
Walsall Council,http://opendatacommunities.org/id/metropolitan-district-council/walsall,WC97-90,31/08/2018,Childrens,ACORN CARE & EDUCATION LTD (SALES),13/08/2018,"16,166.66",66502-TOP UP FUNDING -GRANTS TO SCHOOLS,INDEPENDENT PROVIDERS - SPECIAL & AP,Third Party Payments,,Revenue
Walsall Council,http://opendatacommunities.org/id/metropolitan-district-council/walsall,WC97-91,31/08/2018,Adult Social Care,ACORN REST HOME,07/08/2018,"1,688.84",73373-RESIDENTIAL & NURSING CARE PLACEMENTS,OP PACKAGE/PLACEMENT COSTS,Third Party Payments,,Revenue
Walsall Council,http://opendatacommunities.org/id/metropolitan-district-council/walsall,WC97-92,31/08/2018,Childrens,ACORNS CHILDRENS HOSPICE TRUST,02/08/2018,750.00,63000-PROFESSIONAL FEES AND SERVICES,DIRECTLY COMMISSIONED NURSING SERVICES,Supplies & Services,,Revenue
Walsall Council,http://opendatacommunities.org/id/metropolitan-district-council/walsall,WC97-93,31/08/2018,Childrens,ACORNS CHILDRENS HOSPICE TRUST,02/08/2018,"1,543.05",63000-PROFESSIONAL FEES AND SERVICES,DIRECTLY COMMISSIONED NURSING SERVICES,Supplies & Services,,Revenue
Walsall Council,http://opendatacommunities.org/id/metropolitan-district-council/walsall,WC97-94,31/08/2018,Economy & Environment,ACTION DIGITAL MEDIA LTD,28/08/2018,233.47,"62521-INTERPRETATION,TRANSLATION & HUMAN AIDS TO TRANSCRIPTION",NAG - TEMPORARY EXHIBITIONS,Supplies & Services,,Revenue
Walsall Council,http://opendatacommunities.org/id/metropolitan-district-council/walsall,WC97-95,31/08/2018,Economy & Environment,ACTION MIDLANDS LTD,09/08/2018,150.00,63000-PROFESSIONAL FEES AND SERVICES,YEI (IMPACT) PROGRAMME,Supplies & Services,,Revenue
Walsall Council,http://opendatacommunities.org/id/metropolitan-district-council/walsall,WC97-96,31/08/2018,Economy & Environment,ACTION MIDLANDS LTD,09/08/2018,150.00,63000-PROFESSIONAL FEES AND SERVICES,YEI ESF FUNDING,Supplies & Services,,Revenue
Walsall Council,http://opendatacommunities.org/id/metropolitan-district-council/walsall,WC97-97,31/08/2018,Economy & Environment,ACTION MIDLANDS LTD,09/08/2018,300.00,63000-PROFESSIONAL FEES AND SERVICES,YEI (IMPACT) PROGRAMME,Supplies & Services,,Revenue
Walsall Council,http://opendatacommunities.org/id/metropolitan-district-council/walsall,WC97-98,31/08/2018,Economy & Environment,ACTION MIDLANDS LTD,09/08/2018,300.00,63000-PROFESSIONAL FEES AND SERVICES,YEI ESF FUNDING,Supplies & Services,,Revenue
Walsall Council,http://opendatacommunities.org/id/metropolitan-district-council/walsall,WC97-99,31/08/2018,Resources and Transformation,ADA BUILDERS & JOINERS,10/08/2018,"1,500.00",01045-PRIVATE GRANTS,CFR 826 DISABLED FACILITIES GRANTS (SOCIAL SERVICES),Capital,,Capital
Walsall Council,http://opendatacommunities.org/id/metropolitan-district-council/walsall,WC97-100,31/08/2018,Adult Social Care,REDACTED,14/08/2018,546.00,73506-DIRECT PAYMENT,LEARNING DISABILITY SUPPORT,Third Party Payments,,Revenue
Walsall Council,http://opendatacommunities.org/id/metropolitan-district-council/walsall,WC97-101,31/08/2018,Adult Social Care,REDACTED,10/08/2018,442.52,73506-DIRECT PAYMENT,LEARNING DISABILITY SUPPORT,Third Party Payments,,Revenue
Walsall Council,http://opendatacommunities.org/id/metropolitan-district-council/walsall,WC97-102,31/08/2018,Adult Social Care,REDACTED,10/08/2018,448.60,73506-DIRECT PAYMENT,LEARNING DISABILITY SUPPORT,Third Party Payments,,Revenue
Walsall Council,http://opendatacommunities.org/id/metropolitan-district-council/walsall,WC97-103,31/08/2018,Childrens,ADAMS TOURS,22/08/2018,265.00,77000-TRANSFER PAYMENTS-MANDATORY AWARDS,CENTRAL & EAST LOCALITY - SCHOOL READY,Transfer Payments,,Revenue
Walsall Council,http://opendatacommunities.org/id/metropolitan-district-council/walsall,WC97-104,31/08/2018,Resources and Transformation,ADELIE FOODS LTD,17/08/2018,715.00,61305-CATERING,TOWN HALL RESTAURANT BISTRO,Supplies & Services,,Revenue
Walsall Council,http://opendatacommunities.org/id/metropolitan-district-council/walsall,WC97-105,31/08/2018,Resources and Transformation,ADELIE FOODS LTD,15/08/2018,797.61,61305-CATERING,TOWN HALL RESTAURANT BISTRO,Supplies & Services,,Revenue
Walsall Council,http://opendatacommunities.org/id/metropolitan-district-council/walsall,WC97-106,31/08/2018,Resources and Transformation,ADELIE FOODS LTD,15/08/2018,815.70,61305-CATERING,TOWN HALL RESTAURANT BISTRO,Supplies & Services,,Revenue
Walsall Council,http://opendatacommunities.org/id/metropolitan-district-council/walsall,WC97-107,31/08/2018,Resources and Transformation,ADELIE FOODS LTD,15/08/2018,830.65,61305-CATERING,TOWN HALL RESTAURANT BISTRO,Supplies & Services,,Revenue
Walsall Council,http://opendatacommunities.org/id/metropolitan-district-council/walsall,WC97-108,31/08/2018,Resources and Transformation,ADELIE FOODS LTD,15/08/2018,873.69,61305-CATERING,TOWN HALL RESTAURANT BISTRO,Supplies & Services,,Revenue
Walsall Council,http://opendatacommunities.org/id/metropolitan-district-council/walsall,WC97-109,31/08/2018,Adult Social Care,REDACTED,10/08/2018,"1,029.09",73506-DIRECT PAYMENT,PHYSICAL SUPPORT,Third Party Payments,,Revenue
Walsall Council,http://opendatacommunities.org/id/metropolitan-district-council/walsall,WC97-110,31/08/2018,Childrens,REDACTED,24/08/2018,333.12,74510-RESIDENTS ORDERS,ADOPTION ALLOWANCES,Third Party Payments,,Revenue
Walsall Council,http://opendatacommunities.org/id/metropolitan-district-council/walsall,WC97-111,31/08/2018,Childrens,REDACTED,24/08/2018,361.12,74510-RESIDENTS ORDERS,ADOPTION ALLOWANCES,Third Party Payments,,Revenue
Walsall Council,http://opendatacommunities.org/id/metropolitan-district-council/walsall,WC97-112,31/08/2018,Adult Social Care,REDACTED,10/08/2018,"2,083.20",73506-DIRECT PAYMENT,LEARNING DISABILITY SUPPORT,Third Party Payments,,Revenue
Walsall Council,http://opendatacommunities.org/id/metropolitan-district-council/walsall,WC97-113,31/08/2018,Adult Social Care,ADVANCE HEALTH CARE (UK) LTD,14/08/2018,"-1,690.50",73372-DOMICILIARY CARE,OP PACKAGE/PLACEMENT COSTS,Third Party Payments,,Revenue
Walsall Council,http://opendatacommunities.org/id/metropolitan-district-council/walsall,WC97-114,31/08/2018,Adult Social Care,ADVANCE HEALTH CARE (UK) LTD,14/08/2018,"-1,616.71",73372-DOMICILIARY CARE,OP PACKAGE/PLACEMENT COSTS,Third Party Payments,,Revenue
Walsall Council,http://opendatacommunities.org/id/metropolitan-district-council/walsall,WC97-115,31/08/2018,Adult Social Care,ADVANCE HEALTH CARE (UK) LTD,15/08/2018,-421.50,73019-PSE'S-PRIV CONTRACTOR FEES,INTEGRATED DISCHARGE TEAM,Third Party Payments,,Revenue
Walsall Council,http://opendatacommunities.org/id/metropolitan-district-council/walsall,WC97-116,31/08/2018,Adult Social Care,ADVANCE HEALTH CARE (UK) LTD,15/08/2018,252.90,73025-PROFESSIONAL SERVICES-PRIV CONTRACTOR & OTHER AGENCIES,TRANSITIONAL CARE SUPPORT TEAM,Third Party Payments,,Revenue
Walsall Council,http://opendatacommunities.org/id/metropolitan-district-council/walsall,WC97-117,31/08/2018,Adult Social Care,ADVANCE HEALTH CARE (UK) LTD,20/08/2018,252.90,73025-PROFESSIONAL SERVICES-PRIV CONTRACTOR & OTHER AGENCIES,TRANSITIONAL CARE SUPPORT TEAM,Third Party Payments,,Revenue
Walsall Council,http://opendatacommunities.org/id/metropolitan-district-council/walsall,WC97-118,31/08/2018,Adult Social Care,ADVANCE HEALTH CARE (UK) LTD,24/08/2018,252.90,73025-PROFESSIONAL SERVICES-PRIV CONTRACTOR & OTHER AGENCIES,TRANSITIONAL CARE SUPPORT TEAM,Third Party Payments,,Revenue
Walsall Council,http://opendatacommunities.org/id/metropolitan-district-council/walsall,WC97-119,31/08/2018,Adult Social Care,ADVANCE HEALTH CARE (UK) LTD,15/08/2018,266.95,73025-PROFESSIONAL SERVICES-PRIV CONTRACTOR & OTHER AGENCIES,TRANSITIONAL CARE SUPPORT TEAM,Third Party Payments,,Revenue
Walsall Council,http://opendatacommunities.org/id/metropolitan-district-council/walsall,WC97-120,31/08/2018,Adult Social Care,ADVANCE HEALTH CARE (UK) LTD,20/08/2018,266.95,73025-PROFESSIONAL SERVICES-PRIV CONTRACTOR & OTHER AGENCIES,TRANSITIONAL CARE SUPPORT TEAM,Third Party Payments,,Revenue
Walsall Council,http://opendatacommunities.org/id/metropolitan-district-council/walsall,WC97-121,31/08/2018,Adult Social Care,ADVANCE HEALTH CARE (UK) LTD,24/08/2018,266.95,73025-PROFESSIONAL SERVICES-PRIV CONTRACTOR & OTHER AGENCIES,TRANSITIONAL CARE SUPPORT TEAM,Third Party Payments,,Revenue
Walsall Council,http://opendatacommunities.org/id/metropolitan-district-council/walsall,WC97-122,31/08/2018,Adult Social Care,ADVANCE HEALTH CARE (UK) LTD,15/08/2018,281.00,73025-PROFESSIONAL SERVICES-PRIV CONTRACTOR & OTHER AGENCIES,TRANSITIONAL CARE SUPPORT TEAM,Third Party Payments,,Revenue
Walsall Council,http://opendatacommunities.org/id/metropolitan-district-council/walsall,WC97-123,31/08/2018,Adult Social Care,ADVANCE HEALTH CARE (UK) LTD,09/08/2018,288.03,73025-PROFESSIONAL SERVICES-PRIV CONTRACTOR & OTHER AGENCIES,TRANSITIONAL CARE SUPPORT TEAM,Third Party Payments,,Revenue
Walsall Council,http://opendatacommunities.org/id/metropolitan-district-council/walsall,WC97-124,31/08/2018,Adult Social Care,ADVANCE HEALTH CARE (UK) LTD,09/08/2018,309.10,73025-PROFESSIONAL SERVICES-PRIV CONTRACTOR & OTHER AGENCIES,TRANSITIONAL CARE SUPPORT TEAM,Third Party Payments,,Revenue
Walsall Council,http://opendatacommunities.org/id/metropolitan-district-council/walsall,WC97-125,31/08/2018,Adult Social Care,ADVANCE HEALTH CARE (UK) LTD,24/08/2018,309.10,73025-PROFESSIONAL SERVICES-PRIV CONTRACTOR & OTHER AGENCIES,TRANSITIONAL CARE SUPPORT TEAM,Third Party Payments,,Revenue
Walsall Council,http://opendatacommunities.org/id/metropolitan-district-council/walsall,WC97-126,31/08/2018,Adult Social Care,ADVANCE HEALTH CARE (UK) LTD,09/08/2018,316.13,73025-PROFESSIONAL SERVICES-PRIV CONTRACTOR & OTHER AGENCIES,TRANSITIONAL CARE SUPPORT TEAM,Third Party Payments,,Revenue
Walsall Council,http://opendatacommunities.org/id/metropolitan-district-council/walsall,WC97-127,31/08/2018,Adult Social Care,ADVANCE HEALTH CARE (UK) LTD,15/08/2018,330.18,73025-PROFESSIONAL SERVICES-PRIV CONTRACTOR & OTHER AGENCIES,TRANSITIONAL CARE SUPPORT TEAM,Third Party Payments,,Revenue
Walsall Council,http://opendatacommunities.org/id/metropolitan-district-council/walsall,WC97-128,31/08/2018,Adult Social Care,ADVANCE HEALTH CARE (UK) LTD,09/08/2018,344.23,73025-PROFESSIONAL SERVICES-PRIV CONTRACTOR & OTHER AGENCIES,TRANSITIONAL CARE SUPPORT TEAM,Third Party Payments,,Revenue
Walsall Council,http://opendatacommunities.org/id/metropolitan-district-council/walsall,WC97-129,31/08/2018,Adult Social Care,ADVANCE HEALTH CARE (UK) LTD,15/08/2018,344.23,73025-PROFESSIONAL SERVICES-PRIV CONTRACTOR & OTHER AGENCIES,TRANSITIONAL CARE SUPPORT TEAM,Third Party Payments,,Revenue
Walsall Council,http://opendatacommunities.org/id/metropolitan-district-council/walsall,WC97-130,31/08/2018,Adult Social Care,ADVANCE HEALTH CARE (UK) LTD,20/08/2018,344.23,73025-PROFESSIONAL SERVICES-PRIV CONTRACTOR & OTHER AGENCIES,TRANSITIONAL CARE SUPPORT TEAM,Third Party Payments,,Revenue
Walsall Council,http://opendatacommunities.org/id/metropolitan-district-council/walsall,WC97-131,31/08/2018,Adult Social Care,ADVANCE HEALTH CARE (UK) LTD,09/08/2018,365.30,73025-PROFESSIONAL SERVICES-PRIV CONTRACTOR & OTHER AGENCIES,TRANSITIONAL CARE SUPPORT TEAM,Third Party Payments,,Revenue
Walsall Council,http://opendatacommunities.org/id/metropolitan-district-council/walsall,WC97-132,31/08/2018,Adult Social Care,ADVANCE HEALTH CARE (UK) LTD,15/08/2018,393.40,73025-PROFESSIONAL SERVICES-PRIV CONTRACTOR & OTHER AGENCIES,TRANSITIONAL CARE SUPPORT TEAM,Third Party Payments,,Revenue
Walsall Council,http://opendatacommunities.org/id/metropolitan-district-council/walsall,WC97-133,31/08/2018,Adult Social Care,ADVANCE HEALTH CARE (UK) LTD,06/08/2018,400.43,73025-PROFESSIONAL SERVICES-PRIV CONTRACTOR & OTHER AGENCIES,COMMUNITY INTERMEDIATE CARE,Third Party Payments,,Revenue
Walsall Council,http://opendatacommunities.org/id/metropolitan-district-council/walsall,WC97-134,31/08/2018,Adult Social Care,ADVANCE HEALTH CARE (UK) LTD,20/08/2018,400.43,73025-PROFESSIONAL SERVICES-PRIV CONTRACTOR & OTHER AGENCIES,TRANSITIONAL CARE SUPPORT TEAM,Third Party Payments,,Revenue
Walsall Council,http://opendatacommunities.org/id/metropolitan-district-council/walsall,WC97-135,31/08/2018,Adult Social Care,ADVANCE HEALTH CARE (UK) LTD,20/08/2018,400.43,73025-PROFESSIONAL SERVICES-PRIV CONTRACTOR & OTHER AGENCIES,TRANSITIONAL CARE SUPPORT TEAM,Third Party Payments,,Revenue
Walsall Council,http://opendatacommunities.org/id/metropolitan-district-council/walsall,WC97-136,31/08/2018,Adult Social Care,ADVANCE HEALTH CARE (UK) LTD,24/08/2018,400.43,73025-PROFESSIONAL SERVICES-PRIV CONTRACTOR & OTHER AGENCIES,TRANSITIONAL CARE SUPPORT TEAM,Third Party Payments,,Revenue
Walsall Council,http://opendatacommunities.org/id/metropolitan-district-council/walsall,WC97-137,31/08/2018,Adult Social Care,ADVANCE HEALTH CARE (UK) LTD,15/08/2018,428.53,73025-PROFESSIONAL SERVICES-PRIV CONTRACTOR & OTHER AGENCIES,TRANSITIONAL CARE SUPPORT TEAM,Third Party Payments,,Revenue
Walsall Council,http://opendatacommunities.org/id/metropolitan-district-council/walsall,WC97-138,31/08/2018,Adult Social Care,ADVANCE HEALTH CARE (UK) LTD,06/08/2018,442.58,73025-PROFESSIONAL SERVICES-PRIV CONTRACTOR & OTHER AGENCIES,COMMUNITY INTERMEDIATE CARE,Third Party Payments,,Revenue
Walsall Council,http://opendatacommunities.org/id/metropolitan-district-council/walsall,WC97-139,31/08/2018,Adult Social Care,ADVANCE HEALTH CARE (UK) LTD,06/08/2018,442.58,73025-PROFESSIONAL SERVICES-PRIV CONTRACTOR & OTHER AGENCIES,COMMUNITY INTERMEDIATE CARE,Third Party Payments,,Revenue
Walsall Council,http://opendatacommunities.org/id/metropolitan-district-council/walsall,WC97-140,31/08/2018,Adult Social Care,ADVANCE HEALTH CARE (UK) LTD,06/08/2018,442.58,73025-PROFESSIONAL SERVICES-PRIV CONTRACTOR & OTHER AGENCIES,COMMUNITY INTERMEDIATE CARE,Third Party Payments,,Revenue
Walsall Council,http://opendatacommunities.org/id/metropolitan-district-council/walsall,WC97-141,31/08/2018,Adult Social Care,ADVANCE HEALTH CARE (UK) LTD,06/08/2018,442.58,73025-PROFESSIONAL SERVICES-PRIV CONTRACTOR & OTHER AGENCIES,COMMUNITY INTERMEDIATE CARE,Third Party Payments,,Revenue
Walsall Council,http://opendatacommunities.org/id/metropolitan-district-council/walsall,WC97-142,31/08/2018,Adult Social Care,ADVANCE HEALTH CARE (UK) LTD,06/08/2018,442.58,73025-PROFESSIONAL SERVICES-PRIV CONTRACTOR & OTHER AGENCIES,COMMUNITY INTERMEDIATE CARE,Third Party Payments,,Revenue
Walsall Council,http://opendatacommunities.org/id/metropolitan-district-council/walsall,WC97-143,31/08/2018,Adult Social Care,ADVANCE HEALTH CARE (UK) LTD,06/08/2018,442.58,73025-PROFESSIONAL SERVICES-PRIV CONTRACTOR & OTHER AGENCIES,COMMUNITY INTERMEDIATE CARE,Third Party Payments,,Revenue
Walsall Council,http://opendatacommunities.org/id/metropolitan-district-council/walsall,WC97-144,31/08/2018,Adult Social Care,ADVANCE HEALTH CARE (UK) LTD,06/08/2018,442.58,73025-PROFESSIONAL SERVICES-PRIV CONTRACTOR & OTHER AGENCIES,COMMUNITY INTERMEDIATE CARE,Third Party Payments,,Revenue
Walsall Council,http://opendatacommunities.org/id/metropolitan-district-council/walsall,WC97-145,31/08/2018,Adult Social Care,ADVANCE HEALTH CARE (UK) LTD,06/08/2018,442.58,73025-PROFESSIONAL SERVICES-PRIV CONTRACTOR & OTHER AGENCIES,COMMUNITY INTERMEDIATE CARE,Third Party Payments,,Revenue
Walsall Council,http://opendatacommunities.org/id/metropolitan-district-council/walsall,WC97-146,31/08/2018,Adult Social Care,ADVANCE HEALTH CARE (UK) LTD,06/08/2018,442.58,73025-PROFESSIONAL SERVICES-PRIV CONTRACTOR & OTHER AGENCIES,COMMUNITY INTERMEDIATE CARE,Third Party Payments,,Revenue
Walsall Council,http://opendatacommunities.org/id/metropolitan-district-council/walsall,WC97-147,31/08/2018,Adult Social Care,ADVANCE HEALTH CARE (UK) LTD,06/08/2018,442.58,73025-PROFESSIONAL SERVICES-PRIV CONTRACTOR & OTHER AGENCIES,COMMUNITY INTERMEDIATE CARE,Third Party Payments,,Revenue
Walsall Council,http://opendatacommunities.org/id/metropolitan-district-council/walsall,WC97-148,31/08/2018,Adult Social Care,ADVANCE HEALTH CARE (UK) LTD,06/08/2018,442.58,73025-PROFESSIONAL SERVICES-PRIV CONTRACTOR & OTHER AGENCIES,COMMUNITY INTERMEDIATE CARE,Third Party Payments,,Revenue
Walsall Council,http://opendatacommunities.org/id/metropolitan-district-council/walsall,WC97-149,31/08/2018,Adult Social Care,ADVANCE HEALTH CARE (UK) LTD,09/08/2018,442.58,73025-PROFESSIONAL SERVICES-PRIV CONTRACTOR & OTHER AGENCIES,TRANSITIONAL CARE SUPPORT TEAM,Third Party Payments,,Revenue
Walsall Council,http://opendatacommunities.org/id/metropolitan-district-council/walsall,WC97-150,31/08/2018,Adult Social Care,ADVANCE HEALTH CARE (UK) LTD,09/08/2018,442.58,73025-PROFESSIONAL SERVICES-PRIV CONTRACTOR & OTHER AGENCIES,TRANSITIONAL CARE SUPPORT TEAM,Third Party Payments,,Revenue
Walsall Council,http://opendatacommunities.org/id/metropolitan-district-council/walsall,WC97-151,31/08/2018,Adult Social Care,ADVANCE HEALTH CARE (UK) LTD,09/08/2018,442.58,73025-PROFESSIONAL SERVICES-PRIV CONTRACTOR & OTHER AGENCIES,TRANSITIONAL CARE SUPPORT TEAM,Third Party Payments,,Revenue
Walsall Council,http://opendatacommunities.org/id/metropolitan-district-council/walsall,WC97-152,31/08/2018,Adult Social Care,ADVANCE HEALTH CARE (UK) LTD,09/08/2018,442.58,73025-PROFESSIONAL SERVICES-PRIV CONTRACTOR & OTHER AGENCIES,TRANSITIONAL CARE SUPPORT TEAM,Third Party Payments,,Revenue
Walsall Council,http://opendatacommunities.org/id/metropolitan-district-council/walsall,WC97-153,31/08/2018,Adult Social Care,ADVANCE HEALTH CARE (UK) LTD,09/08/2018,442.58,73025-PROFESSIONAL SERVICES-PRIV CONTRACTOR & OTHER AGENCIES,TRANSITIONAL CARE SUPPORT TEAM,Third Party Payments,,Revenue
Walsall Council,http://opendatacommunities.org/id/metropolitan-district-council/walsall,WC97-154,31/08/2018,Adult Social Care,ADVANCE HEALTH CARE (UK) LTD,09/08/2018,442.58,73025-PROFESSIONAL SERVICES-PRIV CONTRACTOR & OTHER AGENCIES,TRANSITIONAL CARE SUPPORT TEAM,Third Party Payments,,Revenue
Walsall Council,http://opendatacommunities.org/id/metropolitan-district-council/walsall,WC97-155,31/08/2018,Adult Social Care,ADVANCE HEALTH CARE (UK) LTD,15/08/2018,442.58,73025-PROFESSIONAL SERVICES-PRIV CONTRACTOR & OTHER AGENCIES,TRANSITIONAL CARE SUPPORT TEAM,Third Party Payments,,Revenue
Walsall Council,http://opendatacommunities.org/id/metropolitan-district-council/walsall,WC97-156,31/08/2018,Adult Social Care,ADVANCE HEALTH CARE (UK) LTD,15/08/2018,442.58,73025-PROFESSIONAL SERVICES-PRIV CONTRACTOR & OTHER AGENCIES,TRANSITIONAL CARE SUPPORT TEAM,Third Party Payments,,Revenue
Walsall Council,http://opendatacommunities.org/id/metropolitan-district-council/walsall,WC97-157,31/08/2018,Adult Social Care,ADVANCE HEALTH CARE (UK) LTD,15/08/2018,442.58,73025-PROFESSIONAL SERVICES-PRIV CONTRACTOR & OTHER AGENCIES,TRANSITIONAL CARE SUPPORT TEAM,Third Party Payments,,Revenue
Walsall Council,http://opendatacommunities.org/id/metropolitan-district-council/walsall,WC97-158,31/08/2018,Adult Social Care,ADVANCE HEALTH CARE (UK) LTD,15/08/2018,442.58,73025-PROFESSIONAL SERVICES-PRIV CONTRACTOR & OTHER AGENCIES,TRANSITIONAL CARE SUPPORT TEAM,Third Party Payments,,Revenue
Walsall Council,http://opendatacommunities.org/id/metropolitan-district-council/walsall,WC97-159,31/08/2018,Adult Social Care,ADVANCE HEALTH CARE (UK) LTD,15/08/2018,442.58,73025-PROFESSIONAL SERVICES-PRIV CONTRACTOR & OTHER AGENCIES,TRANSITIONAL CARE SUPPORT TEAM,Third Party Payments,,Revenue
Walsall Council,http://opendatacommunities.org/id/metropolitan-district-council/walsall,WC97-160,31/08/2018,Adult Social Care,ADVANCE HEALTH CARE (UK) LTD,15/08/2018,442.58,73025-PROFESSIONAL SERVICES-PRIV CONTRACTOR & OTHER AGENCIES,TRANSITIONAL CARE SUPPORT TEAM,Third Party Payments,,Revenue
Walsall Council,http://opendatacommunities.org/id/metropolitan-district-council/walsall,WC97-161,31/08/2018,Adult Social Care,ADVANCE HEALTH CARE (UK) LTD,20/08/2018,442.58,73025-PROFESSIONAL SERVICES-PRIV CONTRACTOR & OTHER AGENCIES,TRANSITIONAL CARE SUPPORT TEAM,Third Party Payments,,Revenue
Walsall Council,http://opendatacommunities.org/id/metropolitan-district-council/walsall,WC97-162,31/08/2018,Adult Social Care,ADVANCE HEALTH CARE (UK) LTD,20/08/2018,442.58,73025-PROFESSIONAL SERVICES-PRIV CONTRACTOR & OTHER AGENCIES,TRANSITIONAL CARE SUPPORT TEAM,Third Party Payments,,Revenue
Walsall Council,http://opendatacommunities.org/id/metropolitan-district-council/walsall,WC97-163,31/08/2018,Adult Social Care,ADVANCE HEALTH CARE (UK) LTD,20/08/2018,442.58,73025-PROFESSIONAL SERVICES-PRIV CONTRACTOR & OTHER AGENCIES,TRANSITIONAL CARE SUPPORT TEAM,Third Party Payments,,Revenue
Walsall Council,http://opendatacommunities.org/id/metropolitan-district-council/walsall,WC97-164,31/08/2018,Adult Social Care,ADVANCE HEALTH CARE (UK) LTD,20/08/2018,442.58,73025-PROFESSIONAL SERVICES-PRIV CONTRACTOR & OTHER AGENCIES,TRANSITIONAL CARE SUPPORT TEAM,Third Party Payments,,Revenue
Walsall Council,http://opendatacommunities.org/id/metropolitan-district-council/walsall,WC97-165,31/08/2018,Adult Social Care,ADVANCE HEALTH CARE (UK) LTD,20/08/2018,442.58,73025-PROFESSIONAL SERVICES-PRIV CONTRACTOR & OTHER AGENCIES,TRANSITIONAL CARE SUPPORT TEAM,Third Party Payments,,Revenue
Walsall Council,http://opendatacommunities.org/id/metropolitan-district-council/walsall,WC97-166,31/08/2018,Adult Social Care,ADVANCE HEALTH CARE (UK) LTD,20/08/2018,442.58,73025-PROFESSIONAL SERVICES-PRIV CONTRACTOR & OTHER AGENCIES,TRANSITIONAL CARE SUPPORT TEAM,Third Party Payments,,Revenue
Walsall Council,http://opendatacommunities.org/id/metropolitan-district-council/walsall,WC97-167,31/08/2018,Adult Social Care,ADVANCE HEALTH CARE (UK) LTD,20/08/2018,442.58,73025-PROFESSIONAL SERVICES-PRIV CONTRACTOR & OTHER AGENCIES,TRANSITIONAL CARE SUPPORT TEAM,Third Party Payments,,Revenue
Walsall Council,http://opendatacommunities.org/id/metropolitan-district-council/walsall,WC97-168,31/08/2018,Adult Social Care,ADVANCE HEALTH CARE (UK) LTD,24/08/2018,442.58,73025-PROFESSIONAL SERVICES-PRIV CONTRACTOR & OTHER AGENCIES,TRANSITIONAL CARE SUPPORT TEAM,Third Party Payments,,Revenue
Walsall Council,http://opendatacommunities.org/id/metropolitan-district-council/walsall,WC97-169,31/08/2018,Adult Social Care,ADVANCE HEALTH CARE (UK) LTD,24/08/2018,442.58,73025-PROFESSIONAL SERVICES-PRIV CONTRACTOR & OTHER AGENCIES,TRANSITIONAL CARE SUPPORT TEAM,Third Party Payments,,Revenue
Walsall Council,http://opendatacommunities.org/id/metropolitan-district-council/walsall,WC97-170,31/08/2018,Adult Social Care,ADVANCE HEALTH CARE (UK) LTD,24/08/2018,442.58,73025-PROFESSIONAL SERVICES-PRIV CONTRACTOR & OTHER AGENCIES,TRANSITIONAL CARE SUPPORT TEAM,Third Party Payments,,Revenue
Walsall Council,http://opendatacommunities.org/id/metropolitan-district-council/walsall,WC97-171,31/08/2018,Adult Social Care,ADVANCE HEALTH CARE (UK) LTD,24/08/2018,442.58,73025-PROFESSIONAL SERVICES-PRIV CONTRACTOR & OTHER AGENCIES,TRANSITIONAL CARE SUPPORT TEAM,Third Party Payments,,Revenue
Walsall Council,http://opendatacommunities.org/id/metropolitan-district-council/walsall,WC97-172,31/08/2018,Adult Social Care,ADVANCE HEALTH CARE (UK) LTD,24/08/2018,442.58,73025-PROFESSIONAL SERVICES-PRIV CONTRACTOR & OTHER AGENCIES,TRANSITIONAL CARE SUPPORT TEAM,Third Party Payments,,Revenue
Walsall Council,http://opendatacommunities.org/id/metropolitan-district-council/walsall,WC97-173,31/08/2018,Adult Social Care,ADVANCE HEALTH CARE (UK) LTD,24/08/2018,442.58,73025-PROFESSIONAL SERVICES-PRIV CONTRACTOR & OTHER AGENCIES,TRANSITIONAL CARE SUPPORT TEAM,Third Party Payments,,Revenue
Walsall Council,http://opendatacommunities.org/id/metropolitan-district-council/walsall,WC97-174,31/08/2018,Adult Social Care,ADVANCE HEALTH CARE (UK) LTD,24/08/2018,442.58,73025-PROFESSIONAL SERVICES-PRIV CONTRACTOR & OTHER AGENCIES,TRANSITIONAL CARE SUPPORT TEAM,Third Party Payments,,Revenue
Walsall Council,http://opendatacommunities.org/id/metropolitan-district-council/walsall,WC97-175,31/08/2018,Adult Social Care,ADVANCE HEALTH CARE (UK) LTD,24/08/2018,442.58,73025-PROFESSIONAL SERVICES-PRIV CONTRACTOR & OTHER AGENCIES,TRANSITIONAL CARE SUPPORT TEAM,Third Party Payments,,Revenue
Walsall Council,http://opendatacommunities.org/id/metropolitan-district-council/walsall,WC97-176,31/08/2018,Adult Social Care,ADVANCE HEALTH CARE (UK) LTD,24/08/2018,442.58,73025-PROFESSIONAL SERVICES-PRIV CONTRACTOR & OTHER AGENCIES,TRANSITIONAL CARE SUPPORT TEAM,Third Party Payments,,Revenue
Walsall Council,http://opendatacommunities.org/id/metropolitan-district-council/walsall,WC97-177,31/08/2018,Adult Social Care,ADVANCE HEALTH CARE (UK) LTD,20/08/2018,456.63,73025-PROFESSIONAL SERVICES-PRIV CONTRACTOR & OTHER AGENCIES,TRANSITIONAL CARE SUPPORT TEAM,Third Party Payments,,Revenue
Walsall Council,http://opendatacommunities.org/id/metropolitan-district-council/walsall,WC97-178,31/08/2018,Adult Social Care,ADVANCE HEALTH CARE (UK) LTD,24/08/2018,456.63,73025-PROFESSIONAL SERVICES-PRIV CONTRACTOR & OTHER AGENCIES,TRANSITIONAL CARE SUPPORT TEAM,Third Party Payments,,Revenue
Walsall Council,http://opendatacommunities.org/id/metropolitan-district-council/walsall,WC97-179,31/08/2018,Adult Social Care,ADVANCE HEALTH CARE (UK) LTD,06/08/2018,463.65,73025-PROFESSIONAL SERVICES-PRIV CONTRACTOR & OTHER AGENCIES,COMMUNITY INTERMEDIATE CARE,Third Party Payments,,Revenue
Walsall Council,http://opendatacommunities.org/id/metropolitan-district-council/walsall,WC97-180,31/08/2018,Adult Social Care,ADVANCE HEALTH CARE (UK) LTD,24/08/2018,470.68,73025-PROFESSIONAL SERVICES-PRIV CONTRACTOR & OTHER AGENCIES,TRANSITIONAL CARE SUPPORT TEAM,Third Party Payments,,Revenue
Walsall Council,http://opendatacommunities.org/id/metropolitan-district-council/walsall,WC97-181,31/08/2018,Adult Social Care,ADVANCE HEALTH CARE (UK) LTD,20/08/2018,477.70,73025-PROFESSIONAL SERVICES-PRIV CONTRACTOR & OTHER AGENCIES,RAPID RESPONSE,Third Party Payments,,Revenue
Walsall Council,http://opendatacommunities.org/id/metropolitan-district-council/walsall,WC97-182,31/08/2018,Adult Social Care,ADVANCE HEALTH CARE (UK) LTD,06/08/2018,533.90,73025-PROFESSIONAL SERVICES-PRIV CONTRACTOR & OTHER AGENCIES,COMMUNITY INTERMEDIATE CARE,Third Party Payments,,Revenue
Walsall Council,http://opendatacommunities.org/id/metropolitan-district-council/walsall,WC97-183,31/08/2018,Adult Social Care,ADVANCE HEALTH CARE (UK) LTD,09/08/2018,533.90,73025-PROFESSIONAL SERVICES-PRIV CONTRACTOR & OTHER AGENCIES,TRANSITIONAL CARE SUPPORT TEAM,Third Party Payments,,Revenue
Walsall Council,http://opendatacommunities.org/id/metropolitan-district-council/walsall,WC97-184,31/08/2018,Adult Social Care,ADVANCE HEALTH CARE (UK) LTD,15/08/2018,533.90,73025-PROFESSIONAL SERVICES-PRIV CONTRACTOR & OTHER AGENCIES,TRANSITIONAL CARE SUPPORT TEAM,Third Party Payments,,Revenue
Walsall Council,http://opendatacommunities.org/id/metropolitan-district-council/walsall,WC97-185,31/08/2018,Adult Social Care,ADVANCE HEALTH CARE (UK) LTD,20/08/2018,533.90,73025-PROFESSIONAL SERVICES-PRIV CONTRACTOR & OTHER AGENCIES,TRANSITIONAL CARE SUPPORT TEAM,Third Party Payments,,Revenue
Walsall Council,http://opendatacommunities.org/id/metropolitan-district-council/walsall,WC97-186,31/08/2018,Adult Social Care,ADVANCE HEALTH CARE (UK) LTD,24/08/2018,533.90,73025-PROFESSIONAL SERVICES-PRIV CONTRACTOR & OTHER AGENCIES,TRANSITIONAL CARE SUPPORT TEAM,Third Party Payments,,Revenue
Walsall Council,http://opendatacommunities.org/id/metropolitan-district-council/walsall,WC97-187,31/08/2018,Adult Social Care,ADVANCE HEALTH CARE (UK) LTD,09/08/2018,540.93,73025-PROFESSIONAL SERVICES-PRIV CONTRACTOR & OTHER AGENCIES,TRANSITIONAL CARE SUPPORT TEAM,Third Party Payments,,Revenue
Walsall Council,http://opendatacommunities.org/id/metropolitan-district-council/walsall,WC97-188,31/08/2018,Adult Social Care,ADVANCE HEALTH CARE (UK) LTD,06/08/2018,569.03,73025-PROFESSIONAL SERVICES-PRIV CONTRACTOR & OTHER AGENCIES,COMMUNITY INTERMEDIATE CARE,Third Party Payments,,Revenue
Walsall Council,http://opendatacommunities.org/id/metropolitan-district-council/walsall,WC97-189,31/08/2018,Adult Social Care,ADVANCE HEALTH CARE (UK) LTD,06/08/2018,720.72,73025-PROFESSIONAL SERVICES-PRIV CONTRACTOR & OTHER AGENCIES,COMMUNITY INTERMEDIATE CARE,Third Party Payments,,Revenue
Walsall Council,http://opendatacommunities.org/id/metropolitan-district-council/walsall,WC97-190,31/08/2018,Adult Social Care,ADVANCE HEALTH CARE (UK) LTD,14/08/2018,"85,298.73",73372-DOMICILIARY CARE,OP PACKAGE/PLACEMENT COSTS,Third Party Payments,,Revenue
Walsall Council,http://opendatacommunities.org/id/metropolitan-district-council/walsall,WC97-191,31/08/2018,Economy & Environment,ADVANTAGE RESTORATION LTD,17/08/2018,"1,000.00","40000-REPAIRS,ALTERATIONS & MAINTENANCE-PREM",SHOPS AND COMMERCIAL PREMISES,Premises,,Revenue
Walsall Council,http://opendatacommunities.org/id/metropolitan-district-council/walsall,WC97-192,31/08/2018,Childrens,ADVENTURELAND DAY NURSERY,09/08/2018,640.00,77200-TRANSFER PAYMENTS-OTHER SCHOOLCHILDREN/STUDENT RELATED ITEMS,EARLY YEARS - SOCIAL INCLUSION FUND - 3/4 YR OLD,Transfer Payments,,Revenue
Walsall Council,http://opendatacommunities.org/id/metropolitan-district-council/walsall,WC97-193,31/08/2018,Economy & Environment,AEBI SCHMIDT UK LIMITED,20/08/2018,261.72,60500-GENERAL MATERIALS,FLEET,Supplies & Services,,Revenue
Walsall Council,http://opendatacommunities.org/id/metropolitan-district-council/walsall,WC97-194,31/08/2018,Economy & Environment,AECOM LIMITED,15/08/2018,"11,519.12",73025-PROFESSIONAL SERVICES-PRIV CONTRACTOR & OTHER AGENCIES,SECTION 38 OF HIGHWAYS ACT - SUPERVISION,Third Party Payments,,Revenue
Walsall Council,http://opendatacommunities.org/id/metropolitan-district-council/walsall,WC97-195,31/08/2018,Adult Social Care,AGINCARE UK LTD,01/08/2018,"1,573.60",73372-DOMICILIARY CARE,LD PACKAGE/PLACEMENT COSTS,Third Party Payments,,Revenue
Walsall Council,http://opendatacommunities.org/id/metropolitan-district-council/walsall,WC97-196,31/08/2018,Adult Social Care,AGINCARE UK LTD,29/08/2018,"1,573.60",73372-DOMICILIARY CARE,OP PACKAGE/PLACEMENT COSTS,Third Party Payments,,Revenue
Walsall Council,http://opendatacommunities.org/id/metropolitan-district-council/walsall,WC97-197,31/08/2018,Economy & Environment,AGROVISTA UK LTD,01/08/2018,"1,863.00",60500-GENERAL MATERIALS,GROUNDS,Supplies & Services,,Revenue
Walsall Council,http://opendatacommunities.org/id/metropolitan-district-council/walsall,WC97-198,31/08/2018,Adult Social Care,REDACTED,10/08/2018,"2,092.80",73506-DIRECT PAYMENT,LEARNING DISABILITY SUPPORT,Third Party Payments,,Revenue
Walsall Council,http://opendatacommunities.org/id/metropolitan-district-council/walsall,WC97-199,31/08/2018,Adult Social Care,REDACTED,10/08/2018,"1,277.00",73506-DIRECT PAYMENT,PHYSICAL SUPPORT,Third Party Payments,,Revenue
Walsall Council,http://opendatacommunities.org/id/metropolitan-district-council/walsall,WC97-200,31/08/2018,Adult Social Care,REDACTED,10/08/2018,786.80,73506-DIRECT PAYMENT,PHYSICAL SUPPORT,Third Party Payments,,Revenue
Walsall Council,http://opendatacommunities.org/id/metropolitan-district-council/walsall,WC97-201,31/08/2018,Economy & Environment,ALBERT JAGGER LTD,03/08/2018,498.21,60514-MATERIALS TO STORES,FLEET PARTS STOCK ACCOUNT,Supplies & Services,,Revenue
Walsall Council,http://opendatacommunities.org/id/metropolitan-district-council/walsall,WC97-202,31/08/2018,Childrens,ALBRIGHTON CARE LTD,10/08/2018,"9,980.00",74036-EXTERNAL RESIDENTIAL CARE-OTH AGENCY PROVISION,INDEPENDENT RESIDENTIAL HOMES,Third Party Payments,,Revenue
Walsall Council,http://opendatacommunities.org/id/metropolitan-district-council/walsall,WC97-203,31/08/2018,Childrens,ALBRIGHTON CARE LTD,10/08/2018,"19,460.00",74036-EXTERNAL RESIDENTIAL CARE-OTH AGENCY PROVISION,INDEPENDENT RESIDENTIAL HOMES,Third Party Payments,,Revenue
Walsall Council,http://opendatacommunities.org/id/metropolitan-district-council/walsall,WC97-204,31/08/2018,Economy & Environment,ALDERBROOK HEALTHCARE LTD,02/08/2018,"4,460.20",63000-PROFESSIONAL FEES AND SERVICES,CORONERS SERVICE,Supplies & Services,,Revenue
Walsall Council,http://opendatacommunities.org/id/metropolitan-district-council/walsall,WC97-205,31/08/2018,Childrens,ALDRIDGE & BARONS LIMITED,06/08/2018,"9,527.91",52000-WITH DRIVER-HIRE OF VEHICLES,HOME TO SCHOOL TRANSPORT,Transport,,Revenue
Walsall Council,http://opendatacommunities.org/id/metropolitan-district-council/walsall,WC97-206,31/08/2018,Childrens,ALDRIDGE & BARONS LIMITED,06/08/2018,"13,038.10",52000-WITH DRIVER-HIRE OF VEHICLES,HOME TO SCHOOL TRANSPORT,Transport,,Revenue
Walsall Council,http://opendatacommunities.org/id/metropolitan-district-council/walsall,WC97-207,31/08/2018,Economy & Environment,ALDRIDGE SHED,17/08/2018,625.00,63253-PAYMENT TO CONTRACTOR,MENTAL HEALTH,Third Party Payments,,Revenue
Walsall Council,http://opendatacommunities.org/id/metropolitan-district-council/walsall,WC97-208,31/08/2018,Childrens,ALERE TOXICOLOGY PLC,01/08/2018,230.25,73014-LEGAL FEES-PRIV CONTRACTOR FEES,GENERAL MANAGEMENT SUPPORT (INC LEGAL),Third Party Payments,,Revenue
Walsall Council,http://opendatacommunities.org/id/metropolitan-district-council/walsall,WC97-209,31/08/2018,Childrens,ALERE TOXICOLOGY PLC,01/08/2018,319.50,73014-LEGAL FEES-PRIV CONTRACTOR FEES,GENERAL MANAGEMENT SUPPORT (INC LEGAL),Third Party Payments,,Revenue
Walsall Council,http://opendatacommunities.org/id/metropolitan-district-council/walsall,WC97-210,31/08/2018,Childrens,ALERE TOXICOLOGY PLC,01/08/2018,390.51,73014-LEGAL FEES-PRIV CONTRACTOR FEES,GENERAL MANAGEMENT SUPPORT (INC LEGAL),Third Party Payments,,Revenue
Walsall Council,http://opendatacommunities.org/id/metropolitan-district-council/walsall,WC97-211,31/08/2018,Adult Social Care,REDACTED,10/08/2018,"1,348.80",73506-DIRECT PAYMENT,PHYSICAL SUPPORT,Third Party Payments,,Revenue
Walsall Council,http://opendatacommunities.org/id/metropolitan-district-council/walsall,WC97-212,31/08/2018,Adult Social Care,ALEXANDRA HOUSE CARE SERVICES LTD T/A STONEBRIDGE NURSING HOME,07/08/2018,"7,117.44",73373-RESIDENTIAL & NURSING CARE PLACEMENTS,LD PACKAGE/PLACEMENT COSTS,Third Party Payments,,Revenue
Walsall Council,http://opendatacommunities.org/id/metropolitan-district-council/walsall,WC97-213,31/08/2018,Adult Social Care,ALEXANDRA HOUSE CARE SERVICES LTD T/A STONEBRIDGE NURSING HOME,07/08/2018,"7,117.44",73373-RESIDENTIAL & NURSING CARE PLACEMENTS,LD PACKAGE/PLACEMENT COSTS,Third Party Payments,,Revenue
Walsall Council,http://opendatacommunities.org/id/metropolitan-district-council/walsall,WC97-214,31/08/2018,Adult Social Care,REDACTED,10/08/2018,"1,771.28",73506-DIRECT PAYMENT,PHYSICAL SUPPORT,Third Party Payments,,Revenue
Walsall Council,http://opendatacommunities.org/id/metropolitan-district-council/walsall,WC97-215,31/08/2018,Childrens,REDACTED,06/08/2018,288.00,73506-DIRECT PAYMENT,FAMILY SUPPORT - DIRECT PAYMENTS,Third Party Payments,,Revenue
Walsall Council,http://opendatacommunities.org/id/metropolitan-district-council/walsall,WC97-216,31/08/2018,Adult Social Care,ALLSORTS OFFICE SUPPLIES LTD,01/08/2018,320.00,60000-FURNITURE & EQUIPMENT,COMMUNITY ALARMS SERVICE,Supplies & Services,,Revenue
Walsall Council,http://opendatacommunities.org/id/metropolitan-district-council/walsall,WC97-217,31/08/2018,Resources and Transformation,ALLSORTS OFFICE SUPPLIES LTD,02/08/2018,521.00,60000-FURNITURE & EQUIPMENT,BUSINESS SUPPORT,Supplies & Services,,Revenue
Walsall Council,http://opendatacommunities.org/id/metropolitan-district-council/walsall,WC97-218,31/08/2018,Resources and Transformation,ALLSORTS OFFICE SUPPLIES LTD,17/08/2018,"1,360.00",63800-COMPUTER EQUIPMENT AND SUPPLIES,RECHARGEABLE EQUIPMENT,Supplies & Services,,Revenue
Walsall Council,http://opendatacommunities.org/id/metropolitan-district-council/walsall,WC97-219,31/08/2018,Resources and Transformation,ALLSORTS OFFICE SUPPLIES LTD,07/08/2018,"1,632.00",63800-COMPUTER EQUIPMENT AND SUPPLIES,RECHARGEABLE EQUIPMENT,Supplies & Services,,Revenue
Walsall Council,http://opendatacommunities.org/id/metropolitan-district-council/walsall,WC97-220,31/08/2018,Adult Social Care,ALMA COURT,21/08/2018,"1,571.43",73373-RESIDENTIAL & NURSING CARE PLACEMENTS,OP PACKAGE/PLACEMENT COSTS,Third Party Payments,,Revenue
Walsall Council,http://opendatacommunities.org/id/metropolitan-district-council/walsall,WC97-221,31/08/2018,Adult Social Care,ALMA COURT,21/08/2018,"4,285.71",73373-RESIDENTIAL & NURSING CARE PLACEMENTS,OP PACKAGE/PLACEMENT COSTS,Third Party Payments,,Revenue
Walsall Council,http://opendatacommunities.org/id/metropolitan-district-council/walsall,WC97-222,31/08/2018,Adult Social Care,ALMA COURT,21/08/2018,"4,428.57",73373-RESIDENTIAL & NURSING CARE PLACEMENTS,OP PACKAGE/PLACEMENT COSTS,Third Party Payments,,Revenue
Walsall Council,http://opendatacommunities.org/id/metropolitan-district-council/walsall,WC97-223,31/08/2018,Adult Social Care,ALMA COURT,21/08/2018,"4,428.57",73373-RESIDENTIAL & NURSING CARE PLACEMENTS,OP PACKAGE/PLACEMENT COSTS,Third Party Payments,,Revenue
Walsall Council,http://opendatacommunities.org/id/metropolitan-district-council/walsall,WC97-224,31/08/2018,Childrens,ALMOZENE NURSERY & CHILDRENS CENTRE,06/08/2018,471.60,66505-OTHER-GRANTS TO OTHER ORGS,EARLY YEARS - 2 YR OLDS,Third Party Payments,,Revenue
Walsall Council,http://opendatacommunities.org/id/metropolitan-district-council/walsall,WC97-225,31/08/2018,Adult Social Care,ALPHA HEALTH CARE LTD,21/08/2018,503.57,73373-RESIDENTIAL & NURSING CARE PLACEMENTS,OP PACKAGE/PLACEMENT COSTS,Third Party Payments,,Revenue
Walsall Council,http://opendatacommunities.org/id/metropolitan-district-council/walsall,WC97-226,31/08/2018,Adult Social Care,ALPHA HEALTH CARE LTD,24/08/2018,663.47,73373-RESIDENTIAL & NURSING CARE PLACEMENTS,OP PACKAGE/PLACEMENT COSTS,Third Party Payments,,Revenue
Walsall Council,http://opendatacommunities.org/id/metropolitan-district-council/walsall,WC97-227,31/08/2018,Adult Social Care,ALPHA HEALTH CARE LTD,24/08/2018,722.86,73373-RESIDENTIAL & NURSING CARE PLACEMENTS,OP PACKAGE/PLACEMENT COSTS,Third Party Payments,,Revenue
Walsall Council,http://opendatacommunities.org/id/metropolitan-district-council/walsall,WC97-228,31/08/2018,Adult Social Care,ALPHA HEALTH CARE LTD,24/08/2018,737.20,73373-RESIDENTIAL & NURSING CARE PLACEMENTS,OP PACKAGE/PLACEMENT COSTS,Third Party Payments,,Revenue
Walsall Council,http://opendatacommunities.org/id/metropolitan-district-council/walsall,WC97-229,31/08/2018,Adult Social Care,ALPHA HEALTH CARE LTD,24/08/2018,801.30,73373-RESIDENTIAL & NURSING CARE PLACEMENTS,OP PACKAGE/PLACEMENT COSTS,Third Party Payments,,Revenue
Walsall Council,http://opendatacommunities.org/id/metropolitan-district-council/walsall,WC97-230,31/08/2018,Adult Social Care,ALPHA HEALTH CARE LTD,24/08/2018,848.57,73373-RESIDENTIAL & NURSING CARE PLACEMENTS,OP PACKAGE/PLACEMENT COSTS,Third Party Payments,,Revenue
Walsall Council,http://opendatacommunities.org/id/metropolitan-district-council/walsall,WC97-231,31/08/2018,Adult Social Care,ALPHA HEALTH CARE LTD,24/08/2018,881.43,73373-RESIDENTIAL & NURSING CARE PLACEMENTS,OP PACKAGE/PLACEMENT COSTS,Third Party Payments,,Revenue
Walsall Council,http://opendatacommunities.org/id/metropolitan-district-council/walsall,WC97-232,31/08/2018,Adult Social Care,ALPHA HEALTH CARE LTD,24/08/2018,881.43,73373-RESIDENTIAL & NURSING CARE PLACEMENTS,OP PACKAGE/PLACEMENT COSTS,Third Party Payments,,Revenue
Walsall Council,http://opendatacommunities.org/id/metropolitan-district-council/walsall,WC97-233,31/08/2018,Adult Social Care,ALPHA HEALTH CARE LTD,24/08/2018,881.43,73373-RESIDENTIAL & NURSING CARE PLACEMENTS,OP PACKAGE/PLACEMENT COSTS,Third Party Payments,,Revenue
Walsall Council,http://opendatacommunities.org/id/metropolitan-district-council/walsall,WC97-234,31/08/2018,Adult Social Care,ALPHA HEALTH CARE LTD,24/08/2018,913.79,73373-RESIDENTIAL & NURSING CARE PLACEMENTS,MENTAL HEALTH PACKAGE/PLACEMENT COSTS,Third Party Payments,,Revenue
Walsall Council,http://opendatacommunities.org/id/metropolitan-district-council/walsall,WC97-235,31/08/2018,Adult Social Care,ALPHA HEALTH CARE LTD,24/08/2018,934.92,73373-RESIDENTIAL & NURSING CARE PLACEMENTS,OP PACKAGE/PLACEMENT COSTS,Third Party Payments,,Revenue
Walsall Council,http://opendatacommunities.org/id/metropolitan-district-council/walsall,WC97-236,31/08/2018,Adult Social Care,ALPHA HEALTH CARE LTD,24/08/2018,976.21,73373-RESIDENTIAL & NURSING CARE PLACEMENTS,OP PACKAGE/PLACEMENT COSTS,Third Party Payments,,Revenue
Walsall Council,http://opendatacommunities.org/id/metropolitan-district-council/walsall,WC97-237,31/08/2018,Adult Social Care,ALPHA HEALTH CARE LTD,24/08/2018,"1,056.33",73373-RESIDENTIAL & NURSING CARE PLACEMENTS,OP PACKAGE/PLACEMENT COSTS,Third Party Payments,,Revenue
Walsall Council,http://opendatacommunities.org/id/metropolitan-district-council/walsall,WC97-238,31/08/2018,Adult Social Care,ALPHA HEALTH CARE LTD,24/08/2018,"1,087.17",73373-RESIDENTIAL & NURSING CARE PLACEMENTS,OP PACKAGE/PLACEMENT COSTS,Third Party Payments,,Revenue
Walsall Council,http://opendatacommunities.org/id/metropolitan-district-council/walsall,WC97-239,31/08/2018,Adult Social Care,ALPHA HEALTH CARE LTD,24/08/2018,"1,092.06",73373-RESIDENTIAL & NURSING CARE PLACEMENTS,OP PACKAGE/PLACEMENT COSTS,Third Party Payments,,Revenue
Walsall Council,http://opendatacommunities.org/id/metropolitan-district-council/walsall,WC97-240,31/08/2018,Adult Social Care,ALPHA HEALTH CARE LTD,24/08/2018,"1,109.21",73373-RESIDENTIAL & NURSING CARE PLACEMENTS,OP PACKAGE/PLACEMENT COSTS,Third Party Payments,,Revenue
Walsall Council,http://opendatacommunities.org/id/metropolitan-district-council/walsall,WC97-241,31/08/2018,Adult Social Care,ALPHA HEALTH CARE LTD,21/08/2018,"1,335.71",73373-RESIDENTIAL & NURSING CARE PLACEMENTS,MENTAL HEALTH PACKAGE/PLACEMENT COSTS,Third Party Payments,,Revenue
Walsall Council,http://opendatacommunities.org/id/metropolitan-district-council/walsall,WC97-242,31/08/2018,Adult Social Care,ALPHA HEALTH CARE LTD,14/08/2018,"1,688.84",73373-RESIDENTIAL & NURSING CARE PLACEMENTS,OP PACKAGE/PLACEMENT COSTS,Third Party Payments,,Revenue
Walsall Council,http://opendatacommunities.org/id/metropolitan-district-council/walsall,WC97-243,31/08/2018,Adult Social Care,ALPHA HEALTH CARE LTD,14/08/2018,"1,840.00",73373-RESIDENTIAL & NURSING CARE PLACEMENTS,OP PACKAGE/PLACEMENT COSTS,Third Party Payments,,Revenue
Walsall Council,http://opendatacommunities.org/id/metropolitan-district-council/walsall,WC97-244,31/08/2018,Adult Social Care,ALPHA HEALTH CARE LTD,14/08/2018,"1,876.52",73373-RESIDENTIAL & NURSING CARE PLACEMENTS,OP PACKAGE/PLACEMENT COSTS,Third Party Payments,,Revenue
Walsall Council,http://opendatacommunities.org/id/metropolitan-district-council/walsall,WC97-245,31/08/2018,Adult Social Care,ALPHA HEALTH CARE LTD,14/08/2018,"2,039.68",73373-RESIDENTIAL & NURSING CARE PLACEMENTS,OP PACKAGE/PLACEMENT COSTS,Third Party Payments,,Revenue
Walsall Council,http://opendatacommunities.org/id/metropolitan-district-council/walsall,WC97-246,31/08/2018,Adult Social Care,ALPHA HEALTH CARE LTD,24/08/2018,"2,137.25",73373-RESIDENTIAL & NURSING CARE PLACEMENTS,MENTAL HEALTH PACKAGE/PLACEMENT COSTS,Third Party Payments,,Revenue
Walsall Council,http://opendatacommunities.org/id/metropolitan-district-council/walsall,WC97-247,31/08/2018,Adult Social Care,ALPHA HEALTH CARE LTD,14/08/2018,"2,160.00",73373-RESIDENTIAL & NURSING CARE PLACEMENTS,OP PACKAGE/PLACEMENT COSTS,Third Party Payments,,Revenue
Walsall Council,http://opendatacommunities.org/id/metropolitan-district-council/walsall,WC97-248,31/08/2018,Adult Social Care,ALPHA HEALTH CARE LTD,14/08/2018,"2,243.64",73373-RESIDENTIAL & NURSING CARE PLACEMENTS,OP PACKAGE/PLACEMENT COSTS,Third Party Payments,,Revenue
Walsall Council,http://opendatacommunities.org/id/metropolitan-district-council/walsall,WC97-249,31/08/2018,Adult Social Care,ALPHA HEALTH CARE LTD,14/08/2018,"2,243.64",73373-RESIDENTIAL & NURSING CARE PLACEMENTS,OP PACKAGE/PLACEMENT COSTS,Third Party Payments,,Revenue
Walsall Council,http://opendatacommunities.org/id/metropolitan-district-council/walsall,WC97-250,31/08/2018,Adult Social Care,ALPHA HEALTH CARE LTD,14/08/2018,"2,243.64",73373-RESIDENTIAL & NURSING CARE PLACEMENTS,OP PACKAGE/PLACEMENT COSTS,Third Party Payments,,Revenue
Walsall Council,http://opendatacommunities.org/id/metropolitan-district-council/walsall,WC97-251,31/08/2018,Adult Social Care,ALPHA HEALTH CARE LTD,14/08/2018,"2,326.00",73373-RESIDENTIAL & NURSING CARE PLACEMENTS,MENTAL HEALTH PACKAGE/PLACEMENT COSTS,Third Party Payments,,Revenue
Walsall Council,http://opendatacommunities.org/id/metropolitan-district-council/walsall,WC97-252,31/08/2018,Adult Social Care,ALPHA HEALTH CARE LTD,14/08/2018,"2,379.80",73373-RESIDENTIAL & NURSING CARE PLACEMENTS,OP PACKAGE/PLACEMENT COSTS,Third Party Payments,,Revenue
Walsall Council,http://opendatacommunities.org/id/metropolitan-district-council/walsall,WC97-253,31/08/2018,Adult Social Care,ALPHA HEALTH CARE LTD,14/08/2018,"2,484.88",73373-RESIDENTIAL & NURSING CARE PLACEMENTS,OP PACKAGE/PLACEMENT COSTS,Third Party Payments,,Revenue
Walsall Council,http://opendatacommunities.org/id/metropolitan-district-council/walsall,WC97-254,31/08/2018,Adult Social Care,ALPHA HEALTH CARE LTD,21/08/2018,"2,652.75",73373-RESIDENTIAL & NURSING CARE PLACEMENTS,MENTAL HEALTH PACKAGE/PLACEMENT COSTS,Third Party Payments,,Revenue
Walsall Council,http://opendatacommunities.org/id/metropolitan-district-council/walsall,WC97-255,31/08/2018,Adult Social Care,ALPHA HEALTH CARE LTD,14/08/2018,"2,688.84",73373-RESIDENTIAL & NURSING CARE PLACEMENTS,OP PACKAGE/PLACEMENT COSTS,Third Party Payments,,Revenue
Walsall Council,http://opendatacommunities.org/id/metropolitan-district-council/walsall,WC97-256,31/08/2018,Adult Social Care,ALPHA HEALTH CARE LTD,14/08/2018,"2,767.36",73373-RESIDENTIAL & NURSING CARE PLACEMENTS,OP PACKAGE/PLACEMENT COSTS,Third Party Payments,,Revenue
Walsall Council,http://opendatacommunities.org/id/metropolitan-district-council/walsall,WC97-257,31/08/2018,Adult Social Care,ALPHA HEALTH CARE LTD,14/08/2018,"2,779.80",73373-RESIDENTIAL & NURSING CARE PLACEMENTS,OP PACKAGE/PLACEMENT COSTS,Third Party Payments,,Revenue
Walsall Council,http://opendatacommunities.org/id/metropolitan-district-council/walsall,WC97-258,31/08/2018,Adult Social Care,ALPHA HEALTH CARE LTD,21/08/2018,"2,820.00",73373-RESIDENTIAL & NURSING CARE PLACEMENTS,OP PACKAGE/PLACEMENT COSTS,Third Party Payments,,Revenue
Walsall Council,http://opendatacommunities.org/id/metropolitan-district-council/walsall,WC97-259,31/08/2018,Adult Social Care,ALPHA HEALTH CARE LTD,21/08/2018,"2,820.00",73373-RESIDENTIAL & NURSING CARE PLACEMENTS,OP PACKAGE/PLACEMENT COSTS,Third Party Payments,,Revenue
Walsall Council,http://opendatacommunities.org/id/metropolitan-district-council/walsall,WC97-260,31/08/2018,Adult Social Care,ALPHA HEALTH CARE LTD,14/08/2018,"2,823.44",73373-RESIDENTIAL & NURSING CARE PLACEMENTS,OP PACKAGE/PLACEMENT COSTS,Third Party Payments,,Revenue
Walsall Council,http://opendatacommunities.org/id/metropolitan-district-council/walsall,WC97-261,31/08/2018,Adult Social Care,ALPHA HEALTH CARE LTD,06/08/2018,"3,471.43",73019-PSE'S-PRIV CONTRACTOR FEES,INTEGRATED DISCHARGE TEAM,Third Party Payments,,Revenue
Walsall Council,http://opendatacommunities.org/id/metropolitan-district-council/walsall,WC97-262,31/08/2018,Adult Social Care,ALPHA HEALTH CARE LTD,14/08/2018,"5,440.28",73373-RESIDENTIAL & NURSING CARE PLACEMENTS,MENTAL HEALTH PACKAGE/PLACEMENT COSTS,Third Party Payments,,Revenue
Walsall Council,http://opendatacommunities.org/id/metropolitan-district-council/walsall,WC97-263,31/08/2018,Childrens,ALPHA TRAINING ACADEMY UK LTD,15/08/2018,500.00,30030-EXTERNAL TRAINING,EARLY HELP HUB,Employees,,Revenue
Walsall Council,http://opendatacommunities.org/id/metropolitan-district-council/walsall,WC97-264,31/08/2018,Childrens,ALPHABIOLABS,08/08/2018,449.00,73014-LEGAL FEES-PRIV CONTRACTOR FEES,GENERAL MANAGEMENT SUPPORT (INC LEGAL),Third Party Payments,,Revenue
Walsall Council,http://opendatacommunities.org/id/metropolitan-district-council/walsall,WC97-265,31/08/2018,Childrens,ALTUM RESIDENTIAL CARE LTD,10/08/2018,"15,000.00",74036-EXTERNAL RESIDENTIAL CARE-OTH AGENCY PROVISION,INDEPENDENT RESIDENTIAL HOMES,Third Party Payments,,Revenue
Walsall Council,http://opendatacommunities.org/id/metropolitan-district-council/walsall,WC97-266,31/08/2018,Childrens,AMAH NURSERIES LIMITED T/A BANANA MOON WALSALL,06/08/2018,"1,650.60",66505-OTHER-GRANTS TO OTHER ORGS,EARLY YEARS - 2 YR OLDS,Third Party Payments,,Revenue
Walsall Council,http://opendatacommunities.org/id/metropolitan-district-council/walsall,WC97-267,31/08/2018,Childrens,REDACTED,24/08/2018,318.08,74510-RESIDENTS ORDERS,ADOPTION ALLOWANCES,Third Party Payments,,Revenue
Walsall Council,http://opendatacommunities.org/id/metropolitan-district-council/walsall,WC97-268,31/08/2018,Childrens,REDACTED,24/08/2018,318.08,74510-RESIDENTS ORDERS,ADOPTION ALLOWANCES,Third Party Payments,,Revenue
Walsall Council,http://opendatacommunities.org/id/metropolitan-district-council/walsall,WC97-269,31/08/2018,Childrens,REDACTED,24/08/2018,808.04,74009-ADOPTION ALLOWANCE,ADOPTION ALLOWANCES,Transfer Payments,,Revenue
Walsall Council,http://opendatacommunities.org/id/metropolitan-district-council/walsall,WC97-270,31/08/2018,Childrens,REDACTED,10/08/2018,105.16,74506-TRAVEL-FOSTER CARERS,INTERNAL FOSTER CARE PROVISION,Transfer Payments,,Revenue
Walsall Council,http://opendatacommunities.org/id/metropolitan-district-council/walsall,WC97-271,31/08/2018,Childrens,REDACTED,10/08/2018,175.00,74505-SCHOOL UNIFORM/INITIAL TRAINING ALLOWANCE-FOSTER CARERS,INTERNAL FOSTER CARE PROVISION,Transfer Payments,,Revenue
Walsall Council,http://opendatacommunities.org/id/metropolitan-district-council/walsall,WC97-272,31/08/2018,Childrens,REDACTED,10/08/2018,600.00,74501-MAINTENANCE ALLOWANCE-FOSTER CARERS,INTERNAL FOSTER CARE PROVISION,Transfer Payments,,Revenue
Walsall Council,http://opendatacommunities.org/id/metropolitan-district-council/walsall,WC97-273,31/08/2018,Childrens,REDACTED,10/08/2018,800.00,74508-INTERNAL FOSTER CARERS-CARER FEES,INTERNAL FOSTER CARE PROVISION,Transfer Payments,,Revenue
Walsall Council,http://opendatacommunities.org/id/metropolitan-district-council/walsall,WC97-274,31/08/2018,Childrens,AMANS TRAVEL LTD,06/08/2018,"12,735.00",52000-WITH DRIVER-HIRE OF VEHICLES,HOME TO SCHOOL TRANSPORT,Transport,,Revenue
Walsall Council,http://opendatacommunities.org/id/metropolitan-district-council/walsall,WC97-275,31/08/2018,Adult Social Care,REDACTED,10/08/2018,897.60,73506-DIRECT PAYMENT,LEARNING DISABILITY SUPPORT,Third Party Payments,,Revenue
Walsall Council,http://opendatacommunities.org/id/metropolitan-district-council/walsall,WC97-276,31/08/2018,Resources and Transformation,AMEY LG LIMITED,21/08/2018,443.46,60008-MAINTENANCE-FURNITURE & EQUIPMENT,CCTV,Supplies & Services,,Revenue
Walsall Council,http://opendatacommunities.org/id/metropolitan-district-council/walsall,WC97-277,31/08/2018,Economy & Environment,AMEY LG LIMITED,01/08/2018,"4,845.32",01006-SITE WORKS MAIN CONTRACTORS,CFR 1281 HIGHWAY EFFICIENCY PROGRAMME,Capital,,Capital
Walsall Council,http://opendatacommunities.org/id/metropolitan-district-council/walsall,WC97-278,31/08/2018,Economy & Environment,AMEY LG LIMITED,07/08/2018,"20,950.81",73025-PROFESSIONAL SERVICES-PRIV CONTRACTOR & OTHER AGENCIES,TRAFFIC MANAGEMENT,Third Party Payments,,Revenue
Walsall Council,http://opendatacommunities.org/id/metropolitan-district-council/walsall,WC97-279,31/08/2018,Childrens,AMG NURSING CARE SERVICES,21/08/2018,"2,260.24",63000-PROFESSIONAL FEES AND SERVICES,DIRECTLY COMMISSIONED NURSING SERVICES,Supplies & Services,,Revenue
Walsall Council,http://opendatacommunities.org/id/metropolitan-district-council/walsall,WC97-280,31/08/2018,Childrens,AMG NURSING CARE SERVICES,01/08/2018,"2,644.72",63000-PROFESSIONAL FEES AND SERVICES,DIRECTLY COMMISSIONED NURSING SERVICES,Supplies & Services,,Revenue
Walsall Council,http://opendatacommunities.org/id/metropolitan-district-council/walsall,WC97-281,31/08/2018,Adult Social Care,AMG NURSING CARE SERVICES,22/08/2018,"3,640.00",73372-DOMICILIARY CARE,LD PACKAGE/PLACEMENT COSTS,Third Party Payments,,Revenue
Walsall Council,http://opendatacommunities.org/id/metropolitan-district-council/walsall,WC97-282,31/08/2018,Adult Social Care,AMG NURSING CARE SERVICES,29/08/2018,"10,711.68",73372-DOMICILIARY CARE,OP PACKAGE/PLACEMENT COSTS,Third Party Payments,,Revenue
Walsall Council,http://opendatacommunities.org/id/metropolitan-district-council/walsall,WC97-283,31/08/2018,Adult Social Care,REDACTED,10/08/2018,"1,133.44",73506-DIRECT PAYMENT,PHYSICAL SUPPORT,Third Party Payments,,Revenue
Walsall Council,http://opendatacommunities.org/id/metropolitan-district-council/walsall,WC97-284,31/08/2018,Childrens,REDACTED,24/08/2018,340.00,74508-INTERNAL FOSTER CARERS-CARER FEES,FAMILY & FRIENDS FOSTER CARE PROVISION,Transfer Payments,,Revenue
Walsall Council,http://opendatacommunities.org/id/metropolitan-district-council/walsall,WC97-285,31/08/2018,Childrens,REDACTED,24/08/2018,600.00,74501-MAINTENANCE ALLOWANCE-FOSTER CARERS,FAMILY & FRIENDS FOSTER CARE PROVISION,Transfer Payments,,Revenue
Walsall Council,http://opendatacommunities.org/id/metropolitan-district-council/walsall,WC97-286,31/08/2018,Childrens,REDACTED,24/08/2018,425.08,74510-RESIDENTS ORDERS,ADOPTION ALLOWANCES,Third Party Payments,,Revenue
Walsall Council,http://opendatacommunities.org/id/metropolitan-district-council/walsall,WC97-287,31/08/2018,Adult Social Care,ANCHOR,24/08/2018,"-3,008.13",73373-RESIDENTIAL & NURSING CARE PLACEMENTS,OP PACKAGE/PLACEMENT COSTS,Third Party Payments,,Revenue
Walsall Council,http://opendatacommunities.org/id/metropolitan-district-council/walsall,WC97-288,31/08/2018,Adult Social Care,ANCHOR,24/08/2018,"-2,118.07",73373-RESIDENTIAL & NURSING CARE PLACEMENTS,OP PACKAGE/PLACEMENT COSTS,Third Party Payments,,Revenue
Walsall Council,http://opendatacommunities.org/id/metropolitan-district-council/walsall,WC97-289,31/08/2018,Adult Social Care,ANCHOR,07/08/2018,376.42,73373-RESIDENTIAL & NURSING CARE PLACEMENTS,OP PACKAGE/PLACEMENT COSTS,Third Party Payments,,Revenue
Walsall Council,http://opendatacommunities.org/id/metropolitan-district-council/walsall,WC97-290,31/08/2018,Adult Social Care,ANCHOR,24/08/2018,482.53,73373-RESIDENTIAL & NURSING CARE PLACEMENTS,OP PACKAGE/PLACEMENT COSTS,Third Party Payments,,Revenue
Walsall Council,http://opendatacommunities.org/id/metropolitan-district-council/walsall,WC97-291,31/08/2018,Adult Social Care,ANCHOR,14/08/2018,545.00,73373-RESIDENTIAL & NURSING CARE PLACEMENTS,OP PACKAGE/PLACEMENT COSTS,Third Party Payments,,Revenue
Walsall Council,http://opendatacommunities.org/id/metropolitan-district-council/walsall,WC97-292,31/08/2018,Adult Social Care,ANCHOR,24/08/2018,574.86,73373-RESIDENTIAL & NURSING CARE PLACEMENTS,OP PACKAGE/PLACEMENT COSTS,Third Party Payments,,Revenue
Walsall Council,http://opendatacommunities.org/id/metropolitan-district-council/walsall,WC97-293,31/08/2018,Adult Social Care,ANCHOR,07/08/2018,578.23,73373-RESIDENTIAL & NURSING CARE PLACEMENTS,OP PACKAGE/PLACEMENT COSTS,Third Party Payments,,Revenue
Walsall Council,http://opendatacommunities.org/id/metropolitan-district-council/walsall,WC97-294,31/08/2018,Adult Social Care,ANCHOR,24/08/2018,737.20,73373-RESIDENTIAL & NURSING CARE PLACEMENTS,OP PACKAGE/PLACEMENT COSTS,Third Party Payments,,Revenue
Walsall Council,http://opendatacommunities.org/id/metropolitan-district-council/walsall,WC97-295,31/08/2018,Adult Social Care,ANCHOR,14/08/2018,856.43,73373-RESIDENTIAL & NURSING CARE PLACEMENTS,OP PACKAGE/PLACEMENT COSTS,Third Party Payments,,Revenue
Walsall Council,http://opendatacommunities.org/id/metropolitan-district-council/walsall,WC97-296,31/08/2018,Adult Social Care,ANCHOR,21/08/2018,964.10,73373-RESIDENTIAL & NURSING CARE PLACEMENTS,OP PACKAGE/PLACEMENT COSTS,Third Party Payments,,Revenue
Walsall Council,http://opendatacommunities.org/id/metropolitan-district-council/walsall,WC97-297,31/08/2018,Adult Social Care,ANCHOR,24/08/2018,"1,005.28",73373-RESIDENTIAL & NURSING CARE PLACEMENTS,OP PACKAGE/PLACEMENT COSTS,Third Party Payments,,Revenue
Walsall Council,http://opendatacommunities.org/id/metropolitan-district-council/walsall,WC97-298,31/08/2018,Adult Social Care,ANCHOR,14/08/2018,"1,012.14",73373-RESIDENTIAL & NURSING CARE PLACEMENTS,OP PACKAGE/PLACEMENT COSTS,Third Party Payments,,Revenue
Walsall Council,http://opendatacommunities.org/id/metropolitan-district-council/walsall,WC97-299,31/08/2018,Adult Social Care,ANCHOR,21/08/2018,"1,098.26",73373-RESIDENTIAL & NURSING CARE PLACEMENTS,OP PACKAGE/PLACEMENT COSTS,Third Party Payments,,Revenue
Walsall Council,http://opendatacommunities.org/id/metropolitan-district-council/walsall,WC97-300,31/08/2018,Adult Social Care,ANCHOR,14/08/2018,"1,167.86",73373-RESIDENTIAL & NURSING CARE PLACEMENTS,OP PACKAGE/PLACEMENT COSTS,Third Party Payments,,Revenue
Walsall Council,http://opendatacommunities.org/id/metropolitan-district-council/walsall,WC97-301,31/08/2018,Adult Social Care,ANCHOR,14/08/2018,"1,635.00",73373-RESIDENTIAL & NURSING CARE PLACEMENTS,OP PACKAGE/PLACEMENT COSTS,Third Party Payments,,Revenue
Walsall Council,http://opendatacommunities.org/id/metropolitan-district-council/walsall,WC97-302,31/08/2018,Adult Social Care,ANCHOR,24/08/2018,"1,688.84",73373-RESIDENTIAL & NURSING CARE PLACEMENTS,OP PACKAGE/PLACEMENT COSTS,Third Party Payments,,Revenue
Walsall Council,http://opendatacommunities.org/id/metropolitan-district-council/walsall,WC97-303,31/08/2018,Adult Social Care,ANCHOR,24/08/2018,"1,688.84",73373-RESIDENTIAL & NURSING CARE PLACEMENTS,OP PACKAGE/PLACEMENT COSTS,Third Party Payments,,Revenue
Walsall Council,http://opendatacommunities.org/id/metropolitan-district-council/walsall,WC97-304,31/08/2018,Adult Social Care,ANCHOR,24/08/2018,"1,688.84",73373-RESIDENTIAL & NURSING CARE PLACEMENTS,OP PACKAGE/PLACEMENT COSTS,Third Party Payments,,Revenue
Walsall Council,http://opendatacommunities.org/id/metropolitan-district-council/walsall,WC97-305,31/08/2018,Adult Social Care,ANCHOR,24/08/2018,"1,840.00",73373-RESIDENTIAL & NURSING CARE PLACEMENTS,OP PACKAGE/PLACEMENT COSTS,Third Party Payments,,Revenue
Walsall Council,http://opendatacommunities.org/id/metropolitan-district-council/walsall,WC97-306,31/08/2018,Adult Social Care,ANCHOR,24/08/2018,"1,848.84",73373-RESIDENTIAL & NURSING CARE PLACEMENTS,OP PACKAGE/PLACEMENT COSTS,Third Party Payments,,Revenue
Walsall Council,http://opendatacommunities.org/id/metropolitan-district-council/walsall,WC97-307,31/08/2018,Adult Social Care,ANCHOR,07/08/2018,"1,876.52",73373-RESIDENTIAL & NURSING CARE PLACEMENTS,OP PACKAGE/PLACEMENT COSTS,Third Party Payments,,Revenue
Walsall Council,http://opendatacommunities.org/id/metropolitan-district-council/walsall,WC97-308,31/08/2018,Adult Social Care,ANCHOR,21/08/2018,"1,876.52",73373-RESIDENTIAL & NURSING CARE PLACEMENTS,OP PACKAGE/PLACEMENT COSTS,Third Party Payments,,Revenue
Walsall Council,http://opendatacommunities.org/id/metropolitan-district-council/walsall,WC97-309,31/08/2018,Adult Social Care,ANCHOR,24/08/2018,"1,876.52",73373-RESIDENTIAL & NURSING CARE PLACEMENTS,OP PACKAGE/PLACEMENT COSTS,Third Party Payments,,Revenue
Walsall Council,http://opendatacommunities.org/id/metropolitan-district-council/walsall,WC97-310,31/08/2018,Adult Social Care,ANCHOR,24/08/2018,"1,876.52",73373-RESIDENTIAL & NURSING CARE PLACEMENTS,OP PACKAGE/PLACEMENT COSTS,Third Party Payments,,Revenue
Walsall Council,http://opendatacommunities.org/id/metropolitan-district-council/walsall,WC97-311,31/08/2018,Adult Social Care,ANCHOR,24/08/2018,"1,876.52",73373-RESIDENTIAL & NURSING CARE PLACEMENTS,OP PACKAGE/PLACEMENT COSTS,Third Party Payments,,Revenue
Walsall Council,http://opendatacommunities.org/id/metropolitan-district-council/walsall,WC97-312,31/08/2018,Adult Social Care,ANCHOR,24/08/2018,"1,876.52",73373-RESIDENTIAL & NURSING CARE PLACEMENTS,OP PACKAGE/PLACEMENT COSTS,Third Party Payments,,Revenue
Walsall Council,http://opendatacommunities.org/id/metropolitan-district-council/walsall,WC97-313,31/08/2018,Adult Social Care,ANCHOR,24/08/2018,"1,876.52",73373-RESIDENTIAL & NURSING CARE PLACEMENTS,OP PACKAGE/PLACEMENT COSTS,Third Party Payments,,Revenue
Walsall Council,http://opendatacommunities.org/id/metropolitan-district-council/walsall,WC97-314,31/08/2018,Adult Social Care,ANCHOR,24/08/2018,"1,876.52",73373-RESIDENTIAL & NURSING CARE PLACEMENTS,OP PACKAGE/PLACEMENT COSTS,Third Party Payments,,Revenue
Walsall Council,http://opendatacommunities.org/id/metropolitan-district-council/walsall,WC97-315,31/08/2018,Adult Social Care,ANCHOR,24/08/2018,"1,876.52",73373-RESIDENTIAL & NURSING CARE PLACEMENTS,OP PACKAGE/PLACEMENT COSTS,Third Party Payments,,Revenue
Walsall Council,http://opendatacommunities.org/id/metropolitan-district-council/walsall,WC97-316,31/08/2018,Adult Social Care,ANCHOR,24/08/2018,"1,876.52",73373-RESIDENTIAL & NURSING CARE PLACEMENTS,OP PACKAGE/PLACEMENT COSTS,Third Party Payments,,Revenue
Walsall Council,http://opendatacommunities.org/id/metropolitan-district-council/walsall,WC97-317,31/08/2018,Adult Social Care,ANCHOR,24/08/2018,"1,876.52",73373-RESIDENTIAL & NURSING CARE PLACEMENTS,OP PACKAGE/PLACEMENT COSTS,Third Party Payments,,Revenue
Walsall Council,http://opendatacommunities.org/id/metropolitan-district-council/walsall,WC97-318,31/08/2018,Adult Social Care,ANCHOR,24/08/2018,"2,016.00",73373-RESIDENTIAL & NURSING CARE PLACEMENTS,OP PACKAGE/PLACEMENT COSTS,Third Party Payments,,Revenue
Walsall Council,http://opendatacommunities.org/id/metropolitan-district-council/walsall,WC97-319,31/08/2018,Adult Social Care,ANCHOR,24/08/2018,"2,028.84",73373-RESIDENTIAL & NURSING CARE PLACEMENTS,OP PACKAGE/PLACEMENT COSTS,Third Party Payments,,Revenue
Walsall Council,http://opendatacommunities.org/id/metropolitan-district-council/walsall,WC97-320,31/08/2018,Adult Social Care,ANCHOR,21/08/2018,"2,076.52",73373-RESIDENTIAL & NURSING CARE PLACEMENTS,OP PACKAGE/PLACEMENT COSTS,Third Party Payments,,Revenue
Walsall Council,http://opendatacommunities.org/id/metropolitan-district-council/walsall,WC97-321,31/08/2018,Adult Social Care,ANCHOR,21/08/2018,"2,076.52",73373-RESIDENTIAL & NURSING CARE PLACEMENTS,OP PACKAGE/PLACEMENT COSTS,Third Party Payments,,Revenue
Walsall Council,http://opendatacommunities.org/id/metropolitan-district-council/walsall,WC97-322,31/08/2018,Adult Social Care,ANCHOR,14/08/2018,"2,180.00",73373-RESIDENTIAL & NURSING CARE PLACEMENTS,OP PACKAGE/PLACEMENT COSTS,Third Party Payments,,Revenue
Walsall Council,http://opendatacommunities.org/id/metropolitan-district-council/walsall,WC97-323,31/08/2018,Adult Social Care,ANCHOR,14/08/2018,"2,180.00",73373-RESIDENTIAL & NURSING CARE PLACEMENTS,OP PACKAGE/PLACEMENT COSTS,Third Party Payments,,Revenue
Walsall Council,http://opendatacommunities.org/id/metropolitan-district-council/walsall,WC97-324,31/08/2018,Adult Social Care,ANCHOR,14/08/2018,"2,180.00",73373-RESIDENTIAL & NURSING CARE PLACEMENTS,OP PACKAGE/PLACEMENT COSTS,Third Party Payments,,Revenue
Walsall Council,http://opendatacommunities.org/id/metropolitan-district-council/walsall,WC97-325,31/08/2018,Adult Social Care,ANCHOR,14/08/2018,"2,180.00",73373-RESIDENTIAL & NURSING CARE PLACEMENTS,OP PACKAGE/PLACEMENT COSTS,Third Party Payments,,Revenue
Walsall Council,http://opendatacommunities.org/id/metropolitan-district-council/walsall,WC97-326,31/08/2018,Adult Social Care,ANCHOR,14/08/2018,"2,180.00",73373-RESIDENTIAL & NURSING CARE PLACEMENTS,OP PACKAGE/PLACEMENT COSTS,Third Party Payments,,Revenue
Walsall Council,http://opendatacommunities.org/id/metropolitan-district-council/walsall,WC97-327,31/08/2018,Adult Social Care,ANCHOR,14/08/2018,"2,180.00",73373-RESIDENTIAL & NURSING CARE PLACEMENTS,OP PACKAGE/PLACEMENT COSTS,Third Party Payments,,Revenue
Walsall Council,http://opendatacommunities.org/id/metropolitan-district-council/walsall,WC97-328,31/08/2018,Adult Social Care,ANCHOR,14/08/2018,"2,180.00",73373-RESIDENTIAL & NURSING CARE PLACEMENTS,OP PACKAGE/PLACEMENT COSTS,Third Party Payments,,Revenue
Walsall Council,http://opendatacommunities.org/id/metropolitan-district-council/walsall,WC97-329,31/08/2018,Adult Social Care,ANCHOR,14/08/2018,"2,180.00",73373-RESIDENTIAL & NURSING CARE PLACEMENTS,OP PACKAGE/PLACEMENT COSTS,Third Party Payments,,Revenue
Walsall Council,http://opendatacommunities.org/id/metropolitan-district-council/walsall,WC97-330,31/08/2018,Adult Social Care,ANCHOR,14/08/2018,"2,180.00",73373-RESIDENTIAL & NURSING CARE PLACEMENTS,OP PACKAGE/PLACEMENT COSTS,Third Party Payments,,Revenue
Walsall Council,http://opendatacommunities.org/id/metropolitan-district-council/walsall,WC97-331,31/08/2018,Adult Social Care,ANCHOR,14/08/2018,"2,180.00",73373-RESIDENTIAL & NURSING CARE PLACEMENTS,OP PACKAGE/PLACEMENT COSTS,Third Party Payments,,Revenue
Walsall Council,http://opendatacommunities.org/id/metropolitan-district-council/walsall,WC97-332,31/08/2018,Adult Social Care,ANCHOR,24/08/2018,"2,180.00",73373-RESIDENTIAL & NURSING CARE PLACEMENTS,OP PACKAGE/PLACEMENT COSTS,Third Party Payments,,Revenue
Walsall Council,http://opendatacommunities.org/id/metropolitan-district-council/walsall,WC97-333,31/08/2018,Adult Social Care,ANCHOR,21/08/2018,"2,196.52",73373-RESIDENTIAL & NURSING CARE PLACEMENTS,OP PACKAGE/PLACEMENT COSTS,Third Party Payments,,Revenue
Walsall Council,http://opendatacommunities.org/id/metropolitan-district-council/walsall,WC97-334,31/08/2018,Adult Social Care,ANCHOR,24/08/2018,"2,196.52",73373-RESIDENTIAL & NURSING CARE PLACEMENTS,OP PACKAGE/PLACEMENT COSTS,Third Party Payments,,Revenue
Walsall Council,http://opendatacommunities.org/id/metropolitan-district-council/walsall,WC97-335,31/08/2018,Adult Social Care,ANCHOR,24/08/2018,"2,216.52",73373-RESIDENTIAL & NURSING CARE PLACEMENTS,OP PACKAGE/PLACEMENT COSTS,Third Party Payments,,Revenue
Walsall Council,http://opendatacommunities.org/id/metropolitan-district-council/walsall,WC97-336,31/08/2018,Adult Social Care,ANCHOR,07/08/2018,"3,377.68",73373-RESIDENTIAL & NURSING CARE PLACEMENTS,OP PACKAGE/PLACEMENT COSTS,Third Party Payments,,Revenue
Walsall Council,http://opendatacommunities.org/id/metropolitan-district-council/walsall,WC97-337,31/08/2018,Childrens,REDACTED,24/08/2018,314.44,74509-SPECIAL GUARDIANSHIP ORDERS,ADOPTION ALLOWANCES,Transfer Payments,,Revenue
Walsall Council,http://opendatacommunities.org/id/metropolitan-district-council/walsall,WC97-338,31/08/2018,Childrens,REDACTED,10/08/2018,360.00,74504-HOLIDAY/CHRISTMAS ALLOWANCE-FOSTER CARERS,INTERNAL FOSTER CARE PROVISION,Transfer Payments,,Revenue
Walsall Council,http://opendatacommunities.org/id/metropolitan-district-council/walsall,WC97-339,31/08/2018,Childrens,REDACTED,10/08/2018,451.65,74506-TRAVEL-FOSTER CARERS,INTERNAL FOSTER CARE PROVISION,Transfer Payments,,Revenue
Walsall Council,http://opendatacommunities.org/id/metropolitan-district-council/walsall,WC97-340,31/08/2018,Childrens,REDACTED,10/08/2018,720.00,74501-MAINTENANCE ALLOWANCE-FOSTER CARERS,INTERNAL FOSTER CARE PROVISION,Transfer Payments,,Revenue
Walsall Council,http://opendatacommunities.org/id/metropolitan-district-council/walsall,WC97-341,31/08/2018,Childrens,REDACTED,10/08/2018,"1,000.00",74508-INTERNAL FOSTER CARERS-CARER FEES,INTERNAL FOSTER CARE PROVISION,Transfer Payments,,Revenue
Walsall Council,http://opendatacommunities.org/id/metropolitan-district-council/walsall,WC97-342,31/08/2018,Adult Social Care,REDACTED,10/08/2018,"1,771.28",73506-DIRECT PAYMENT,PHYSICAL SUPPORT,Third Party Payments,,Revenue
Walsall Council,http://opendatacommunities.org/id/metropolitan-district-council/walsall,WC97-343,31/08/2018,Economy & Environment,REDACTED,01/08/2018,300.00,63000-PROFESSIONAL FEES AND SERVICES,EXHIBITION NO.3,Supplies & Services,,Revenue
Walsall Council,http://opendatacommunities.org/id/metropolitan-district-council/walsall,WC97-344,31/08/2018,Economy & Environment,REDACTED,02/08/2018,300.00,63000-PROFESSIONAL FEES AND SERVICES,EXHIBITION NO.3,Supplies & Services,,Revenue
Walsall Council,http://opendatacommunities.org/id/metropolitan-district-council/walsall,WC97-345,31/08/2018,Adult Social Care,ANGEL COURT RESIDENTIAL CARE HOME,21/08/2018,"1,869.72",73373-RESIDENTIAL & NURSING CARE PLACEMENTS,OP PACKAGE/PLACEMENT COSTS,Third Party Payments,,Revenue
Walsall Council,http://opendatacommunities.org/id/metropolitan-district-council/walsall,WC97-346,31/08/2018,Adult Social Care,ANGEL COURT RESIDENTIAL CARE HOME,21/08/2018,"2,077.58",73373-RESIDENTIAL & NURSING CARE PLACEMENTS,OP PACKAGE/PLACEMENT COSTS,Third Party Payments,,Revenue
Walsall Council,http://opendatacommunities.org/id/metropolitan-district-council/walsall,WC97-347,31/08/2018,Adult Social Care,ANGEL COURT RESIDENTIAL CARE HOME,21/08/2018,"2,158.57",73373-RESIDENTIAL & NURSING CARE PLACEMENTS,OP PACKAGE/PLACEMENT COSTS,Third Party Payments,,Revenue
Walsall Council,http://opendatacommunities.org/id/metropolitan-district-council/walsall,WC97-348,31/08/2018,Adult Social Care,ANGEL COURT RESIDENTIAL CARE HOME,21/08/2018,"2,190.50",73373-RESIDENTIAL & NURSING CARE PLACEMENTS,OP PACKAGE/PLACEMENT COSTS,Third Party Payments,,Revenue
Walsall Council,http://opendatacommunities.org/id/metropolitan-district-council/walsall,WC97-349,31/08/2018,Childrens,REDACTED,24/08/2018,368.76,74509-SPECIAL GUARDIANSHIP ORDERS,ADOPTION ALLOWANCES,Transfer Payments,,Revenue
Walsall Council,http://opendatacommunities.org/id/metropolitan-district-council/walsall,WC97-350,31/08/2018,Childrens,REDACTED,24/08/2018,368.76,74509-SPECIAL GUARDIANSHIP ORDERS,ADOPTION ALLOWANCES,Transfer Payments,,Revenue
Walsall Council,http://opendatacommunities.org/id/metropolitan-district-council/walsall,WC97-351,31/08/2018,Childrens,REDACTED,24/08/2018,500.16,74509-SPECIAL GUARDIANSHIP ORDERS,ADOPTION ALLOWANCES,Transfer Payments,,Revenue
Walsall Council,http://opendatacommunities.org/id/metropolitan-district-council/walsall,WC97-352,31/08/2018,Childrens,REDACTED,24/08/2018,312.04,74509-SPECIAL GUARDIANSHIP ORDERS,ADOPTION ALLOWANCES,Transfer Payments,,Revenue
Walsall Council,http://opendatacommunities.org/id/metropolitan-district-council/walsall,WC97-353,31/08/2018,Adult Social Care,REDACTED,10/08/2018,327.36,73506-DIRECT PAYMENT,LEARNING DISABILITY SUPPORT,Third Party Payments,,Revenue
Walsall Council,http://opendatacommunities.org/id/metropolitan-district-council/walsall,WC97-354,31/08/2018,Adult Social Care,REDACTED,10/08/2018,"1,152.12",73506-DIRECT PAYMENT,PHYSICAL SUPPORT,Third Party Payments,,Revenue
Walsall Council,http://opendatacommunities.org/id/metropolitan-district-council/walsall,WC97-355,31/08/2018,Adult Social Care,ANSON COURT RESIDENTIAL HOME,07/08/2018,"1,876.52",73373-RESIDENTIAL & NURSING CARE PLACEMENTS,OP PACKAGE/PLACEMENT COSTS,Third Party Payments,,Revenue
Walsall Council,http://opendatacommunities.org/id/metropolitan-district-council/walsall,WC97-356,31/08/2018,Adult Social Care,ANSON COURT RESIDENTIAL HOME,07/08/2018,"1,876.52",73373-RESIDENTIAL & NURSING CARE PLACEMENTS,OP PACKAGE/PLACEMENT COSTS,Third Party Payments,,Revenue
Walsall Council,http://opendatacommunities.org/id/metropolitan-district-council/walsall,WC97-357,31/08/2018,Adult Social Care,ANSON COURT RESIDENTIAL HOME,07/08/2018,"1,876.52",73373-RESIDENTIAL & NURSING CARE PLACEMENTS,OP PACKAGE/PLACEMENT COSTS,Third Party Payments,,Revenue
Walsall Council,http://opendatacommunities.org/id/metropolitan-district-council/walsall,WC97-358,31/08/2018,Adult Social Care,ANSON COURT RESIDENTIAL HOME,07/08/2018,"1,876.52",73373-RESIDENTIAL & NURSING CARE PLACEMENTS,OP PACKAGE/PLACEMENT COSTS,Third Party Payments,,Revenue
Walsall Council,http://opendatacommunities.org/id/metropolitan-district-council/walsall,WC97-359,31/08/2018,Adult Social Care,ANSON COURT RESIDENTIAL HOME,07/08/2018,"1,876.52",73373-RESIDENTIAL & NURSING CARE PLACEMENTS,OP PACKAGE/PLACEMENT COSTS,Third Party Payments,,Revenue
Walsall Council,http://opendatacommunities.org/id/metropolitan-district-council/walsall,WC97-360,31/08/2018,Adult Social Care,ANSON COURT RESIDENTIAL HOME,07/08/2018,"1,876.52",73373-RESIDENTIAL & NURSING CARE PLACEMENTS,OP PACKAGE/PLACEMENT COSTS,Third Party Payments,,Revenue
Walsall Council,http://opendatacommunities.org/id/metropolitan-district-council/walsall,WC97-361,31/08/2018,Adult Social Care,ANSON COURT RESIDENTIAL HOME,07/08/2018,"1,876.52",73373-RESIDENTIAL & NURSING CARE PLACEMENTS,MENTAL HEALTH PACKAGE/PLACEMENT COSTS,Third Party Payments,,Revenue
Walsall Council,http://opendatacommunities.org/id/metropolitan-district-council/walsall,WC97-362,31/08/2018,Adult Social Care,ANSON COURT RESIDENTIAL HOME,07/08/2018,"1,876.52",73373-RESIDENTIAL & NURSING CARE PLACEMENTS,OP PACKAGE/PLACEMENT COSTS,Third Party Payments,,Revenue
Walsall Council,http://opendatacommunities.org/id/metropolitan-district-council/walsall,WC97-363,31/08/2018,Adult Social Care,ANSON COURT RESIDENTIAL HOME,07/08/2018,"1,876.52",73373-RESIDENTIAL & NURSING CARE PLACEMENTS,OP PACKAGE/PLACEMENT COSTS,Third Party Payments,,Revenue
Walsall Council,http://opendatacommunities.org/id/metropolitan-district-council/walsall,WC97-364,31/08/2018,Adult Social Care,ANSON COURT RESIDENTIAL HOME,07/08/2018,"1,876.52",73373-RESIDENTIAL & NURSING CARE PLACEMENTS,OP PACKAGE/PLACEMENT COSTS,Third Party Payments,,Revenue
Walsall Council,http://opendatacommunities.org/id/metropolitan-district-council/walsall,WC97-365,31/08/2018,Adult Social Care,ANSON COURT RESIDENTIAL HOME,07/08/2018,"1,876.52",73373-RESIDENTIAL & NURSING CARE PLACEMENTS,OP PACKAGE/PLACEMENT COSTS,Third Party Payments,,Revenue
Walsall Council,http://opendatacommunities.org/id/metropolitan-district-council/walsall,WC97-366,31/08/2018,Adult Social Care,ANSON COURT RESIDENTIAL HOME,07/08/2018,"1,876.52",73373-RESIDENTIAL & NURSING CARE PLACEMENTS,OP PACKAGE/PLACEMENT COSTS,Third Party Payments,,Revenue
Walsall Council,http://opendatacommunities.org/id/metropolitan-district-council/walsall,WC97-367,31/08/2018,Adult Social Care,ANSON COURT RESIDENTIAL HOME,07/08/2018,"1,876.52",73373-RESIDENTIAL & NURSING CARE PLACEMENTS,OP PACKAGE/PLACEMENT COSTS,Third Party Payments,,Revenue
Walsall Council,http://opendatacommunities.org/id/metropolitan-district-council/walsall,WC97-368,31/08/2018,Adult Social Care,ANSON COURT RESIDENTIAL HOME,07/08/2018,"1,876.52",73373-RESIDENTIAL & NURSING CARE PLACEMENTS,OP PACKAGE/PLACEMENT COSTS,Third Party Payments,,Revenue
Walsall Council,http://opendatacommunities.org/id/metropolitan-district-council/walsall,WC97-369,31/08/2018,Adult Social Care,ANSON COURT RESIDENTIAL HOME,14/08/2018,"1,876.52",73373-RESIDENTIAL & NURSING CARE PLACEMENTS,OP PACKAGE/PLACEMENT COSTS,Third Party Payments,,Revenue
Walsall Council,http://opendatacommunities.org/id/metropolitan-district-council/walsall,WC97-370,31/08/2018,Adult Social Care,ANSON COURT RESIDENTIAL HOME,14/08/2018,"1,876.52",73373-RESIDENTIAL & NURSING CARE PLACEMENTS,OP PACKAGE/PLACEMENT COSTS,Third Party Payments,,Revenue
Walsall Council,http://opendatacommunities.org/id/metropolitan-district-council/walsall,WC97-371,31/08/2018,Adult Social Care,ANSON COURT RESIDENTIAL HOME,07/08/2018,"1,956.52",73373-RESIDENTIAL & NURSING CARE PLACEMENTS,OP PACKAGE/PLACEMENT COSTS,Third Party Payments,,Revenue
Walsall Council,http://opendatacommunities.org/id/metropolitan-district-council/walsall,WC97-372,31/08/2018,Adult Social Care,ANSON COURT RESIDENTIAL HOME,07/08/2018,"1,956.52",73373-RESIDENTIAL & NURSING CARE PLACEMENTS,OP PACKAGE/PLACEMENT COSTS,Third Party Payments,,Revenue
Walsall Council,http://opendatacommunities.org/id/metropolitan-district-council/walsall,WC97-373,31/08/2018,Adult Social Care,ANSON COURT RESIDENTIAL HOME,07/08/2018,"1,956.52",73373-RESIDENTIAL & NURSING CARE PLACEMENTS,OP PACKAGE/PLACEMENT COSTS,Third Party Payments,,Revenue
Walsall Council,http://opendatacommunities.org/id/metropolitan-district-council/walsall,WC97-374,31/08/2018,Adult Social Care,ANSON COURT RESIDENTIAL HOME,14/08/2018,"1,956.52",73373-RESIDENTIAL & NURSING CARE PLACEMENTS,OP PACKAGE/PLACEMENT COSTS,Third Party Payments,,Revenue
Walsall Council,http://opendatacommunities.org/id/metropolitan-district-council/walsall,WC97-375,31/08/2018,Adult Social Care,ANSON COURT RESIDENTIAL HOME,07/08/2018,"1,996.52",73373-RESIDENTIAL & NURSING CARE PLACEMENTS,OP PACKAGE/PLACEMENT COSTS,Third Party Payments,,Revenue
Walsall Council,http://opendatacommunities.org/id/metropolitan-district-council/walsall,WC97-376,31/08/2018,Adult Social Care,ANSON COURT RESIDENTIAL HOME,07/08/2018,"1,996.52",73373-RESIDENTIAL & NURSING CARE PLACEMENTS,OP PACKAGE/PLACEMENT COSTS,Third Party Payments,,Revenue
Walsall Council,http://opendatacommunities.org/id/metropolitan-district-council/walsall,WC97-377,31/08/2018,Adult Social Care,ANSON COURT RESIDENTIAL HOME,07/08/2018,"4,956.52",73373-RESIDENTIAL & NURSING CARE PLACEMENTS,MENTAL HEALTH PACKAGE/PLACEMENT COSTS,Third Party Payments,,Revenue
Walsall Council,http://opendatacommunities.org/id/metropolitan-district-council/walsall,WC97-378,31/08/2018,Economy & Environment,ANTHONY COLLINS SOLICITORS,29/08/2018,"3,368.00",73014-LEGAL FEES-PRIV CONTRACTOR FEES,UNCAPITALISED SPEND,Third Party Payments,,Revenue
Walsall Council,http://opendatacommunities.org/id/metropolitan-district-council/walsall,WC97-379,31/08/2018,Childrens,REDACTED,24/08/2018,604.00,74510-RESIDENTS ORDERS,ADOPTION ALLOWANCES,Third Party Payments,,Revenue
Walsall Council,http://opendatacommunities.org/id/metropolitan-district-council/walsall,WC97-380,31/08/2018,Childrens,ANTI-PEST PEST CONTROL SERVICES,10/08/2018,275.00,73025-PROFESSIONAL SERVICES-PRIV CONTRACTOR & OTHER AGENCIES,LOCALITY FAMILY SUPPORT-WEST,Third Party Payments,,Revenue
Walsall Council,http://opendatacommunities.org/id/metropolitan-district-council/walsall,WC97-381,31/08/2018,Childrens,REDACTED,24/08/2018,333.12,74509-SPECIAL GUARDIANSHIP ORDERS,ADOPTION ALLOWANCES,Transfer Payments,,Revenue
Walsall Council,http://opendatacommunities.org/id/metropolitan-district-council/walsall,WC97-382,31/08/2018,Economy & Environment,APCOA PARKING SERVICES (UK) LTD,10/08/2018,"39,047.43",73025-PROFESSIONAL SERVICES-PRIV CONTRACTOR & OTHER AGENCIES,PARKING SERVICES OFF-STREET,Third Party Payments,,Revenue
Walsall Council,http://opendatacommunities.org/id/metropolitan-district-council/walsall,WC97-383,31/08/2018,Childrens,APPLE TRANSCRIPTION LIMITED,01/08/2018,342.30,73014-LEGAL FEES-PRIV CONTRACTOR FEES,GENERAL MANAGEMENT SUPPORT (INC LEGAL),Third Party Payments,,Revenue
Walsall Council,http://opendatacommunities.org/id/metropolitan-district-council/walsall,WC97-384,31/08/2018,Childrens,APPLE TRANSCRIPTION LIMITED,01/08/2018,442.44,73014-LEGAL FEES-PRIV CONTRACTOR FEES,GENERAL MANAGEMENT SUPPORT (INC LEGAL),Third Party Payments,,Revenue
Walsall Council,http://opendatacommunities.org/id/metropolitan-district-council/walsall,WC97-385,31/08/2018,Economy & Environment,APSE 001,03/08/2018,493.90,64500-PUBLICATIONS/ORGANISATIONS-SUBSCRIPTIONS,EH DIV GENERAL COSTS,Supplies & Services,,Revenue
Walsall Council,http://opendatacommunities.org/id/metropolitan-district-council/walsall,WC97-386,31/08/2018,Economy & Environment,APSE 001,03/08/2018,493.90,64500-PUBLICATIONS/ORGANISATIONS-SUBSCRIPTIONS,TRADING STANDARDS,Supplies & Services,,Revenue
Walsall Council,http://opendatacommunities.org/id/metropolitan-district-council/walsall,WC97-387,31/08/2018,Resources and Transformation,APSE 001,03/08/2018,493.90,64500-PUBLICATIONS/ORGANISATIONS-SUBSCRIPTIONS,INTEGRATED FACILITIES MANAGEMENT,Supplies & Services,,Revenue
Walsall Council,http://opendatacommunities.org/id/metropolitan-district-council/walsall,WC97-388,31/08/2018,Resources and Transformation,APSE 001,03/08/2018,493.90,64500-PUBLICATIONS/ORGANISATIONS-SUBSCRIPTIONS,CL ADMIN,Supplies & Services,,Revenue
Walsall Council,http://opendatacommunities.org/id/metropolitan-district-council/walsall,WC97-389,31/08/2018,Economy & Environment,APSE 001,03/08/2018,987.72,64500-PUBLICATIONS/ORGANISATIONS-SUBSCRIPTIONS,LEISURE - MANAGEMENT AND ADMIN,Supplies & Services,,Revenue
Walsall Council,http://opendatacommunities.org/id/metropolitan-district-council/walsall,WC97-390,31/08/2018,Economy & Environment,APSE 001,03/08/2018,987.72,64500-PUBLICATIONS/ORGANISATIONS-SUBSCRIPTIONS,ENGINEERING MANAGEMENT,Supplies & Services,,Revenue
Walsall Council,http://opendatacommunities.org/id/metropolitan-district-council/walsall,WC97-391,31/08/2018,Resources and Transformation,APSE 001,03/08/2018,987.72,64500-PUBLICATIONS/ORGANISATIONS-SUBSCRIPTIONS,CA CATERING OPERATIONAL SUPPORT,Supplies & Services,,Revenue
Walsall Council,http://opendatacommunities.org/id/metropolitan-district-council/walsall,WC97-392,31/08/2018,Economy & Environment,APSE 001,03/08/2018,"2,963.24",64500-PUBLICATIONS/ORGANISATIONS-SUBSCRIPTIONS,RESOURCE MANAGEMENT,Supplies & Services,,Revenue
Walsall Council,http://opendatacommunities.org/id/metropolitan-district-council/walsall,WC97-393,31/08/2018,Economy & Environment,AQUA FORCE SPECIAL WASTE LTD,29/08/2018,"2,000.00",73029-HAZARDOUS WASTE REMOVAL/DISPOSAL-PRIV CONTRACTOR FEES,WASTE DISPOSAL - RESIDUAL,Third Party Payments,,Revenue
Walsall Council,http://opendatacommunities.org/id/metropolitan-district-council/walsall,WC97-394,31/08/2018,Childrens,AQUAID (BIRMINGHAM CENTRAL),08/08/2018,308.00,61009-BEVERAGES-PROVISIONS,PELSALL EDC,Supplies & Services,,Revenue
Walsall Council,http://opendatacommunities.org/id/metropolitan-district-council/walsall,WC97-395,31/08/2018,Economy & Environment,AQUAMO LTD,07/08/2018,610.30,60000-FURNITURE & EQUIPMENT,WALSALL GALA CENTRE,Supplies & Services,,Revenue
Walsall Council,http://opendatacommunities.org/id/metropolitan-district-council/walsall,WC97-396,31/08/2018,Economy & Environment,AQUAMO LTD,21/08/2018,"1,607.00",60006-NEW-FURNITURE & EQUIPMENT,WALSALL GALA CENTRE,Supplies & Services,,Revenue
Walsall Council,http://opendatacommunities.org/id/metropolitan-district-council/walsall,WC97-397,31/08/2018,Adult Social Care,ARBORETUM NURSING HOME.,07/08/2018,"1,214.29",73373-RESIDENTIAL & NURSING CARE PLACEMENTS,OP PACKAGE/PLACEMENT COSTS,Third Party Payments,,Revenue
Walsall Council,http://opendatacommunities.org/id/metropolitan-district-council/walsall,WC97-398,31/08/2018,Adult Social Care,ARBORETUM NURSING HOME.,07/08/2018,"2,039.68",73373-RESIDENTIAL & NURSING CARE PLACEMENTS,PD PACKAGE/PLACEMENT COSTS,Third Party Payments,,Revenue
Walsall Council,http://opendatacommunities.org/id/metropolitan-district-council/walsall,WC97-399,31/08/2018,Adult Social Care,ARBORETUM NURSING HOME.,07/08/2018,"2,039.68",73373-RESIDENTIAL & NURSING CARE PLACEMENTS,OP PACKAGE/PLACEMENT COSTS,Third Party Payments,,Revenue
Walsall Council,http://opendatacommunities.org/id/metropolitan-district-council/walsall,WC97-400,31/08/2018,Adult Social Care,ARBORETUM NURSING HOME.,07/08/2018,"2,039.68",73373-RESIDENTIAL & NURSING CARE PLACEMENTS,OP PACKAGE/PLACEMENT COSTS,Third Party Payments,,Revenue
Walsall Council,http://opendatacommunities.org/id/metropolitan-district-council/walsall,WC97-401,31/08/2018,Adult Social Care,ARBORETUM NURSING HOME.,07/08/2018,"2,119.68",73373-RESIDENTIAL & NURSING CARE PLACEMENTS,OP PACKAGE/PLACEMENT COSTS,Third Party Payments,,Revenue
Walsall Council,http://opendatacommunities.org/id/metropolitan-district-council/walsall,WC97-402,31/08/2018,Adult Social Care,ARBORETUM NURSING HOME.,21/08/2018,"2,159.68",73373-RESIDENTIAL & NURSING CARE PLACEMENTS,OP PACKAGE/PLACEMENT COSTS,Third Party Payments,,Revenue
Walsall Council,http://opendatacommunities.org/id/metropolitan-district-council/walsall,WC97-403,31/08/2018,Adult Social Care,ARBORETUM NURSING HOME.,21/08/2018,"2,159.68",73373-RESIDENTIAL & NURSING CARE PLACEMENTS,OP PACKAGE/PLACEMENT COSTS,Third Party Payments,,Revenue
Walsall Council,http://opendatacommunities.org/id/metropolitan-district-council/walsall,WC97-404,31/08/2018,Adult Social Care,ARBORETUM NURSING HOME.,14/08/2018,"2,549.60",73373-RESIDENTIAL & NURSING CARE PLACEMENTS,OP PACKAGE/PLACEMENT COSTS,Third Party Payments,,Revenue
Walsall Council,http://opendatacommunities.org/id/metropolitan-district-council/walsall,WC97-405,31/08/2018,Adult Social Care,ARBORETUM NURSING HOME.,07/08/2018,"8,940.00",73025-PROFESSIONAL SERVICES-PRIV CONTRACTOR & OTHER AGENCIES,TRANSITIONAL CARE SUPPORT TEAM,Third Party Payments,,Revenue
Walsall Council,http://opendatacommunities.org/id/metropolitan-district-council/walsall,WC97-406,31/08/2018,Adult Social Care,ARBORETUM NURSING HOME.,07/08/2018,"14,900.00",73019-PSE'S-PRIV CONTRACTOR FEES,INTEGRATED DISCHARGE TEAM,Third Party Payments,,Revenue
Walsall Council,http://opendatacommunities.org/id/metropolitan-district-council/walsall,WC97-407,31/08/2018,Economy & Environment,ARCADIS,02/08/2018,"8,000.00",63000-PROFESSIONAL FEES AND SERVICES,SMARTER WORKPLACES WORKPLACE SOLUTIONS,Supplies & Services,,Revenue
Walsall Council,http://opendatacommunities.org/id/metropolitan-district-council/walsall,WC97-408,31/08/2018,Economy & Environment,ARCADIS,10/08/2018,"8,690.00",01001-OTHER CONSULTANTS FEES,CFR 1072 CHALLENGE BLOCK-LGF,Capital,,Capital
Walsall Council,http://opendatacommunities.org/id/metropolitan-district-council/walsall,WC97-409,31/08/2018,Resources and Transformation,ARCADIS,22/08/2018,"9,960.00",01006-SITE WORKS MAIN CONTRACTORS,CFR 804 FIRE SAFETY WORKS,Capital,,Capital
Walsall Council,http://opendatacommunities.org/id/metropolitan-district-council/walsall,WC97-410,31/08/2018,Childrens,ARCHWAY ACADEMY,13/08/2018,"17,540.60",66502-TOP UP FUNDING -GRANTS TO SCHOOLS,INDEPENDENT PROVIDERS - SPECIAL & AP,Third Party Payments,,Revenue
Walsall Council,http://opendatacommunities.org/id/metropolitan-district-council/walsall,WC97-411,31/08/2018,Economy & Environment,ARCHWAY TCS LTD,29/08/2018,707.50,60537-VEHICLE WASH PLANT-MATERIALS,DEPOT,Supplies & Services,,Revenue
Walsall Council,http://opendatacommunities.org/id/metropolitan-district-council/walsall,WC97-412,31/08/2018,Childrens,ARDEN PSYCHOLOGY SERVICES LTD,03/08/2018,"1,175.00",63000-PROFESSIONAL FEES AND SERVICES,DIRECTLY COMMISSIONED NURSING SERVICES,Supplies & Services,,Revenue
Walsall Council,http://opendatacommunities.org/id/metropolitan-district-council/walsall,WC97-413,31/08/2018,Childrens,ARNFIELD CARE LIMITED,10/08/2018,"2,788.57",74036-EXTERNAL RESIDENTIAL CARE-OTH AGENCY PROVISION,INDEPENDENT RESIDENTIAL HOMES,Third Party Payments,,Revenue
Walsall Council,http://opendatacommunities.org/id/metropolitan-district-council/walsall,WC97-414,31/08/2018,Childrens,ARTHUR M GRIFFITHS & SON LTD,20/08/2018,"21,715.81",01006-SITE WORKS MAIN CONTRACTORS,CFR 929 FIBBERSLEY PRIMARY SIGNIFICANT ENLARGEMENT,Capital,,Capital
Walsall Council,http://opendatacommunities.org/id/metropolitan-district-council/walsall,WC97-415,31/08/2018,Economy & Environment,ASDA PHARMACY,07/08/2018,316.80,71007-CONTRIBUTION TO PCT,PUBLIC HEALTH BUSINESS SUPPORT,Third Party Payments,,Revenue
Walsall Council,http://opendatacommunities.org/id/metropolitan-district-council/walsall,WC97-416,31/08/2018,Economy & Environment,ASDA PHARMACY,07/08/2018,437.20,71007-CONTRIBUTION TO PCT,PUBLIC HEALTH BUSINESS SUPPORT,Third Party Payments,,Revenue
Walsall Council,http://opendatacommunities.org/id/metropolitan-district-council/walsall,WC97-417,31/08/2018,Adult Social Care,ASH GRANGE CARE HOME,14/08/2018,"1,688.84",73373-RESIDENTIAL & NURSING CARE PLACEMENTS,OP PACKAGE/PLACEMENT COSTS,Third Party Payments,,Revenue
Walsall Council,http://opendatacommunities.org/id/metropolitan-district-council/walsall,WC97-418,31/08/2018,Adult Social Care,ASH GRANGE CARE HOME,14/08/2018,"1,688.84",73373-RESIDENTIAL & NURSING CARE PLACEMENTS,OP PACKAGE/PLACEMENT COSTS,Third Party Payments,,Revenue
Walsall Council,http://opendatacommunities.org/id/metropolitan-district-council/walsall,WC97-419,31/08/2018,Adult Social Care,ASH GRANGE CARE HOME,14/08/2018,"2,039.68",73373-RESIDENTIAL & NURSING CARE PLACEMENTS,OP PACKAGE/PLACEMENT COSTS,Third Party Payments,,Revenue
Walsall Council,http://opendatacommunities.org/id/metropolitan-district-council/walsall,WC97-420,31/08/2018,Adult Social Care,ASH GRANGE CARE HOME,14/08/2018,"2,039.68",73373-RESIDENTIAL & NURSING CARE PLACEMENTS,OP PACKAGE/PLACEMENT COSTS,Third Party Payments,,Revenue
Walsall Council,http://opendatacommunities.org/id/metropolitan-district-council/walsall,WC97-421,31/08/2018,Adult Social Care,ASH GRANGE CARE HOME,14/08/2018,"2,039.68",73373-RESIDENTIAL & NURSING CARE PLACEMENTS,OP PACKAGE/PLACEMENT COSTS,Third Party Payments,,Revenue
Walsall Council,http://opendatacommunities.org/id/metropolitan-district-council/walsall,WC97-422,31/08/2018,Adult Social Care,ASH GRANGE CARE HOME,14/08/2018,"2,039.68",73373-RESIDENTIAL & NURSING CARE PLACEMENTS,OP PACKAGE/PLACEMENT COSTS,Third Party Payments,,Revenue
Walsall Council,http://opendatacommunities.org/id/metropolitan-district-council/walsall,WC97-423,31/08/2018,Adult Social Care,ASH GRANGE CARE HOME,14/08/2018,"2,039.68",73373-RESIDENTIAL & NURSING CARE PLACEMENTS,OP PACKAGE/PLACEMENT COSTS,Third Party Payments,,Revenue
Walsall Council,http://opendatacommunities.org/id/metropolitan-district-council/walsall,WC97-424,31/08/2018,Adult Social Care,ASH GRANGE CARE HOME,14/08/2018,"2,039.68",73373-RESIDENTIAL & NURSING CARE PLACEMENTS,OP PACKAGE/PLACEMENT COSTS,Third Party Payments,,Revenue
Walsall Council,http://opendatacommunities.org/id/metropolitan-district-council/walsall,WC97-425,31/08/2018,Adult Social Care,ASH GRANGE CARE HOME,21/08/2018,"2,039.68",73373-RESIDENTIAL & NURSING CARE PLACEMENTS,MENTAL HEALTH PACKAGE/PLACEMENT COSTS,Third Party Payments,,Revenue
Walsall Council,http://opendatacommunities.org/id/metropolitan-district-council/walsall,WC97-426,31/08/2018,Adult Social Care,ASH GRANGE CARE HOME,21/08/2018,"2,039.68",73373-RESIDENTIAL & NURSING CARE PLACEMENTS,OP PACKAGE/PLACEMENT COSTS,Third Party Payments,,Revenue
Walsall Council,http://opendatacommunities.org/id/metropolitan-district-council/walsall,WC97-427,31/08/2018,Adult Social Care,ASH GRANGE CARE HOME,21/08/2018,"2,039.68",73373-RESIDENTIAL & NURSING CARE PLACEMENTS,OP PACKAGE/PLACEMENT COSTS,Third Party Payments,,Revenue
Walsall Council,http://opendatacommunities.org/id/metropolitan-district-council/walsall,WC97-428,31/08/2018,Adult Social Care,ASH GRANGE CARE HOME,21/08/2018,"2,039.68",73373-RESIDENTIAL & NURSING CARE PLACEMENTS,OP PACKAGE/PLACEMENT COSTS,Third Party Payments,,Revenue
Walsall Council,http://opendatacommunities.org/id/metropolitan-district-council/walsall,WC97-429,31/08/2018,Adult Social Care,ASH GRANGE CARE HOME,21/08/2018,"2,243.64",73373-RESIDENTIAL & NURSING CARE PLACEMENTS,OP PACKAGE/PLACEMENT COSTS,Third Party Payments,,Revenue
Walsall Council,http://opendatacommunities.org/id/metropolitan-district-council/walsall,WC97-430,31/08/2018,Adult Social Care,ASH GRANGE CARE HOME,21/08/2018,"2,243.64",73373-RESIDENTIAL & NURSING CARE PLACEMENTS,OP PACKAGE/PLACEMENT COSTS,Third Party Payments,,Revenue
Walsall Council,http://opendatacommunities.org/id/metropolitan-district-council/walsall,WC97-431,31/08/2018,Adult Social Care,ASH GRANGE CARE HOME,21/08/2018,"2,319.68",73373-RESIDENTIAL & NURSING CARE PLACEMENTS,OP PACKAGE/PLACEMENT COSTS,Third Party Payments,,Revenue
Walsall Council,http://opendatacommunities.org/id/metropolitan-district-council/walsall,WC97-432,31/08/2018,Adult Social Care,ASH GRANGE CARE HOME,21/08/2018,"2,495.72",73373-RESIDENTIAL & NURSING CARE PLACEMENTS,PD PACKAGE/PLACEMENT COSTS,Third Party Payments,,Revenue
Walsall Council,http://opendatacommunities.org/id/metropolitan-district-council/walsall,WC97-433,31/08/2018,Adult Social Care,ASH GRANGE CARE HOME,07/08/2018,"2,745.71",73373-RESIDENTIAL & NURSING CARE PLACEMENTS,OP PACKAGE/PLACEMENT COSTS,Third Party Payments,,Revenue
Walsall Council,http://opendatacommunities.org/id/metropolitan-district-council/walsall,WC97-434,31/08/2018,Adult Social Care,ASHBOURNE LODGE,14/08/2018,"2,173.99",73373-RESIDENTIAL & NURSING CARE PLACEMENTS,OP PACKAGE/PLACEMENT COSTS,Third Party Payments,,Revenue
Walsall Council,http://opendatacommunities.org/id/metropolitan-district-council/walsall,WC97-435,31/08/2018,Adult Social Care,ASHBOURNE LODGE,14/08/2018,"2,173.99",73373-RESIDENTIAL & NURSING CARE PLACEMENTS,OP PACKAGE/PLACEMENT COSTS,Third Party Payments,,Revenue
Walsall Council,http://opendatacommunities.org/id/metropolitan-district-council/walsall,WC97-436,31/08/2018,Economy & Environment,ASHDOWN SUPPLIES,22/08/2018,270.72,60500-GENERAL MATERIALS,STREETLY CREMATORIUM,Supplies & Services,,Revenue
Walsall Council,http://opendatacommunities.org/id/metropolitan-district-council/walsall,WC97-437,31/08/2018,Adult Social Care,REDACTED,10/08/2018,422.00,73506-DIRECT PAYMENT,LEARNING DISABILITY SUPPORT,Third Party Payments,,Revenue
Walsall Council,http://opendatacommunities.org/id/metropolitan-district-council/walsall,WC97-438,31/08/2018,Adult Social Care,REDACTED,10/08/2018,"1,092.00",73506-DIRECT PAYMENT,LEARNING DISABILITY SUPPORT,Third Party Payments,,Revenue
Walsall Council,http://opendatacommunities.org/id/metropolitan-district-council/walsall,WC97-439,31/08/2018,Adult Social Care,REDACTED,10/08/2018,856.80,73506-DIRECT PAYMENT,PHYSICAL SUPPORT,Third Party Payments,,Revenue
Walsall Council,http://opendatacommunities.org/id/metropolitan-district-council/walsall,WC97-440,31/08/2018,Childrens,ASPIRE RESIDENTIAL CARE HOME,10/08/2018,"3,600.00",74036-EXTERNAL RESIDENTIAL CARE-OTH AGENCY PROVISION,INDEPENDENT RESIDENTIAL HOMES,Third Party Payments,,Revenue
Walsall Council,http://opendatacommunities.org/id/metropolitan-district-council/walsall,WC97-441,31/08/2018,Economy & Environment,ASSOCIATION OF DIRECTORS OF PUBLIC HEALTH,01/08/2018,"3,100.00",64500-PUBLICATIONS/ORGANISATIONS-SUBSCRIPTIONS,PUBLIC HEALTH BUSINESS SUPPORT,Supplies & Services,,Revenue
Walsall Council,http://opendatacommunities.org/id/metropolitan-district-council/walsall,WC97-442,31/08/2018,Adult Social Care,ASSURED HEALTHCARE SOLUTIONS (PARK FARM LODGE),07/08/2018,"2,157.07",73373-RESIDENTIAL & NURSING CARE PLACEMENTS,OP PACKAGE/PLACEMENT COSTS,Third Party Payments,,Revenue
Walsall Council,http://opendatacommunities.org/id/metropolitan-district-council/walsall,WC97-443,31/08/2018,Economy & Environment,ATKINS LIMITED,01/08/2018,"11,007.09",01003-ENGINEERS ASSISTANTS TIME - DESIGN,CFR 819 LTP-YORKS BRIDGE,Capital,,Capital
Walsall Council,http://opendatacommunities.org/id/metropolitan-district-council/walsall,WC97-444,31/08/2018,Economy & Environment,AUDITORIA SERVICES LTD,29/08/2018,515.65,73025-PROFESSIONAL SERVICES-PRIV CONTRACTOR & OTHER AGENCIES,BLOXWICH LIBRARY,Third Party Payments,,Revenue
Walsall Council,http://opendatacommunities.org/id/metropolitan-district-council/walsall,WC97-445,31/08/2018,Economy & Environment,AUTOTAG TRADING LTD,02/08/2018,7.50,63500-POSTAGES AND COURIER SERVICES,MUSIC HUB FOREST ARTS,Supplies & Services,,Revenue
Walsall Council,http://opendatacommunities.org/id/metropolitan-district-council/walsall,WC97-446,31/08/2018,Economy & Environment,AUTOTAG TRADING LTD,02/08/2018,599.00,62001-STATIONERY & GENERAL SUPPLIES-OFFICE EXP,MUSIC HUB FOREST ARTS,Supplies & Services,,Revenue
Walsall Council,http://opendatacommunities.org/id/metropolitan-district-council/walsall,WC97-447,31/08/2018,Economy & Environment,AXIELL LIMITED,01/08/2018,260.57,63000-PROFESSIONAL FEES AND SERVICES,LIBRARY STOCK AND PERFORMANCE,Supplies & Services,,Revenue
Walsall Council,http://opendatacommunities.org/id/metropolitan-district-council/walsall,WC97-448,31/08/2018,Economy & Environment,AXIELL LIMITED,06/08/2018,"1,600.00",63800-COMPUTER EQUIPMENT AND SUPPLIES,BLOXWICH LIBRARY,Supplies & Services,,Revenue
Walsall Council,http://opendatacommunities.org/id/metropolitan-district-council/walsall,WC97-449,31/08/2018,Childrens,REDACTED,06/08/2018,"2,188.09",73506-DIRECT PAYMENT,FAMILY SUPPORT - DIRECT PAYMENTS,Third Party Payments,,Revenue
Walsall Council,http://opendatacommunities.org/id/metropolitan-district-council/walsall,WC97-450,31/08/2018,Adult Social Care,REDACTED,10/08/2018,"3,182.40",73506-DIRECT PAYMENT,LEARNING DISABILITY SUPPORT,Third Party Payments,,Revenue
Walsall Council,http://opendatacommunities.org/id/metropolitan-district-council/walsall,WC97-451,31/08/2018,Childrens,REDACTED,14/08/2018,464.00,76000-TRANSFER PAYMENTS - SOCIAL SERVICES CLIENTS,TRANSITION AND LEAVING CARE PLACEMENTS,Transfer Payments,,Revenue
Walsall Council,http://opendatacommunities.org/id/metropolitan-district-council/walsall,WC97-452,31/08/2018,Childrens,REDACTED,14/08/2018,464.00,76000-TRANSFER PAYMENTS - SOCIAL SERVICES CLIENTS,TRANSITION AND LEAVING CARE PLACEMENTS,Transfer Payments,,Revenue
Walsall Council,http://opendatacommunities.org/id/metropolitan-district-council/walsall,WC97-453,31/08/2018,Childrens,REDACTED,28/08/2018,464.00,76000-TRANSFER PAYMENTS - SOCIAL SERVICES CLIENTS,TRANSITION AND LEAVING CARE PLACEMENTS,Transfer Payments,,Revenue
Walsall Council,http://opendatacommunities.org/id/metropolitan-district-council/walsall,WC97-454,31/08/2018,Childrens,REDACTED,28/08/2018,464.00,76000-TRANSFER PAYMENTS - SOCIAL SERVICES CLIENTS,TRANSITION AND LEAVING CARE PLACEMENTS,Transfer Payments,,Revenue
Walsall Council,http://opendatacommunities.org/id/metropolitan-district-council/walsall,WC97-455,31/08/2018,Economy & Environment,BAKER HALL PARTNERSHIP,15/08/2018,"1,187.00",63000-PROFESSIONAL FEES AND SERVICES,BUILDING CONTROL REVENUE FUNDED,Supplies & Services,,Revenue
Walsall Council,http://opendatacommunities.org/id/metropolitan-district-council/walsall,WC97-456,31/08/2018,Adult Social Care,REDACTED,10/08/2018,"3,328.80",73506-DIRECT PAYMENT,LEARNING DISABILITY SUPPORT,Third Party Payments,,Revenue
Walsall Council,http://opendatacommunities.org/id/metropolitan-district-council/walsall,WC97-457,31/08/2018,Adult Social Care,REDACTED,10/08/2018,"1,582.88",73506-DIRECT PAYMENT,PHYSICAL SUPPORT,Third Party Payments,,Revenue
Walsall Council,http://opendatacommunities.org/id/metropolitan-district-council/walsall,WC97-458,31/08/2018,Childrens,REDACTED,24/08/2018,340.00,74508-INTERNAL FOSTER CARERS-CARER FEES,FAMILY & FRIENDS FOSTER CARE PROVISION,Transfer Payments,,Revenue
Walsall Council,http://opendatacommunities.org/id/metropolitan-district-council/walsall,WC97-459,31/08/2018,Childrens,REDACTED,24/08/2018,540.00,74501-MAINTENANCE ALLOWANCE-FOSTER CARERS,FAMILY & FRIENDS FOSTER CARE PROVISION,Transfer Payments,,Revenue
Walsall Council,http://opendatacommunities.org/id/metropolitan-district-council/walsall,WC97-460,31/08/2018,Adult Social Care,REDACTED,10/08/2018,814.92,73506-DIRECT PAYMENT,SUPPORT WITH MEMORY & COGNITION,Third Party Payments,,Revenue
Walsall Council,http://opendatacommunities.org/id/metropolitan-district-council/walsall,WC97-461,31/08/2018,Childrens,BARNARDOS SERVICES LTD,09/08/2018,933.00,63000-PROFESSIONAL FEES AND SERVICES,INDEPENDENT RESIDENTIAL HOMES,Supplies & Services,,Revenue
Walsall Council,http://opendatacommunities.org/id/metropolitan-district-council/walsall,WC97-462,31/08/2018,Childrens,BARNARDOS SERVICES LTD,10/08/2018,"3,116.40",74037-INDEPENDENT FOSTER CARE-OTH AGENCY PROVISION,EXTERNAL FOSTER CARE PROVISION,Third Party Payments,,Revenue
Walsall Council,http://opendatacommunities.org/id/metropolitan-district-council/walsall,WC97-463,31/08/2018,Adult Social Care,BARTHOLAMEW LODGE CARE HOME,07/08/2018,"2,823.44",73373-RESIDENTIAL & NURSING CARE PLACEMENTS,OP PACKAGE/PLACEMENT COSTS,Third Party Payments,,Revenue
Walsall Council,http://opendatacommunities.org/id/metropolitan-district-council/walsall,WC97-464,31/08/2018,Adult Social Care,REDACTED,10/08/2018,490.40,73506-DIRECT PAYMENT,PHYSICAL SUPPORT,Third Party Payments,,Revenue
Walsall Council,http://opendatacommunities.org/id/metropolitan-district-council/walsall,WC97-465,31/08/2018,Economy & Environment,BAT FABRICATIONS LTD,09/08/2018,386.00,40018-OTHER-OP MTCE,WALSALL MARKET,Premises,,Revenue
Walsall Council,http://opendatacommunities.org/id/metropolitan-district-council/walsall,WC97-466,31/08/2018,Economy & Environment,BAT FABRICATIONS LTD,20/08/2018,410.00,"40000-REPAIRS,ALTERATIONS & MAINTENANCE-PREM",ARBORETUM,Premises,,Revenue
Walsall Council,http://opendatacommunities.org/id/metropolitan-district-council/walsall,WC97-467,31/08/2018,Economy & Environment,BAT FABRICATIONS LTD,01/08/2018,550.00,60006-NEW-FURNITURE & EQUIPMENT,INFRASTRUCTURE MAINTENANCE,Supplies & Services,,Revenue
Walsall Council,http://opendatacommunities.org/id/metropolitan-district-council/walsall,WC97-468,31/08/2018,Economy & Environment,BAT FABRICATIONS LTD,24/08/2018,550.00,60006-NEW-FURNITURE & EQUIPMENT,INFRASTRUCTURE MAINTENANCE,Supplies & Services,,Revenue
Walsall Council,http://opendatacommunities.org/id/metropolitan-district-council/walsall,WC97-469,31/08/2018,Economy & Environment,BAT FABRICATIONS LTD,15/08/2018,750.00,"40000-REPAIRS,ALTERATIONS & MAINTENANCE-PREM",GREEN SPACE MANAGEMENT,Premises,,Revenue
Walsall Council,http://opendatacommunities.org/id/metropolitan-district-council/walsall,WC97-470,31/08/2018,Economy & Environment,BAT FABRICATIONS LTD,21/08/2018,750.00,60008-MAINTENANCE-FURNITURE & EQUIPMENT,ENVIRONMENTAL IMPROVEMENT SERVICE,Supplies & Services,,Revenue
Walsall Council,http://opendatacommunities.org/id/metropolitan-district-council/walsall,WC97-471,31/08/2018,Economy & Environment,BAT FABRICATIONS LTD,24/08/2018,750.00,"40000-REPAIRS,ALTERATIONS & MAINTENANCE-PREM",GREEN SPACE MANAGEMENT,Premises,,Revenue
Walsall Council,http://opendatacommunities.org/id/metropolitan-district-council/walsall,WC97-472,31/08/2018,Economy & Environment,BAT FABRICATIONS LTD,24/08/2018,"1,185.00",60500-GENERAL MATERIALS,INFRASTRUCTURE MAINTENANCE,Supplies & Services,,Revenue
Walsall Council,http://opendatacommunities.org/id/metropolitan-district-council/walsall,WC97-473,31/08/2018,Economy & Environment,BAT FABRICATIONS LTD,22/08/2018,"3,980.00",01006-SITE WORKS MAIN CONTRACTORS,CFR 1054 ALLOTMENT IMPROVEMENT PROGRAMME-EXTERNAL,Capital,,Capital
Walsall Council,http://opendatacommunities.org/id/metropolitan-district-council/walsall,WC97-474,31/08/2018,Economy & Environment,BAT FABRICATIONS LTD,29/08/2018,"7,000.00","40000-REPAIRS,ALTERATIONS & MAINTENANCE-PREM",GREEN SPACE MANAGEMENT,Premises,,Revenue
Walsall Council,http://opendatacommunities.org/id/metropolitan-district-council/walsall,WC97-475,31/08/2018,Childrens,BAT FABRICATIONS LTD,17/08/2018,"16,000.00",01006-SITE WORKS MAIN CONTRACTORS,CFR 1137 ST GILES PRIMARY EXPANSION,Capital,,Capital
Walsall Council,http://opendatacommunities.org/id/metropolitan-district-council/walsall,WC97-476,31/08/2018,Economy & Environment,BATLEYS,01/08/2018,53.69,61305-CATERING,FOREST ARTS CENTRE,Supplies & Services,,Revenue
Walsall Council,http://opendatacommunities.org/id/metropolitan-district-council/walsall,WC97-477,31/08/2018,Economy & Environment,BATLEYS,29/08/2018,233.95,61009-BEVERAGES-PROVISIONS,FOREST ARTS CENTRE,Supplies & Services,,Revenue
Walsall Council,http://opendatacommunities.org/id/metropolitan-district-council/walsall,WC97-478,31/08/2018,Economy & Environment,BATLEYS,01/08/2018,265.75,61009-BEVERAGES-PROVISIONS,FOREST ARTS CENTRE,Supplies & Services,,Revenue
Walsall Council,http://opendatacommunities.org/id/metropolitan-district-council/walsall,WC97-479,31/08/2018,Childrens,REDACTED,10/08/2018,345.38,74506-TRAVEL-FOSTER CARERS,INTERNAL FOSTER CARE PROVISION,Transfer Payments,,Revenue
Walsall Council,http://opendatacommunities.org/id/metropolitan-district-council/walsall,WC97-480,31/08/2018,Childrens,REDACTED,10/08/2018,800.00,74508-INTERNAL FOSTER CARERS-CARER FEES,INTERNAL FOSTER CARE PROVISION,Transfer Payments,,Revenue
Walsall Council,http://opendatacommunities.org/id/metropolitan-district-council/walsall,WC97-481,31/08/2018,Adult Social Care,REDACTED,10/08/2018,758.72,73506-DIRECT PAYMENT,PHYSICAL SUPPORT,Third Party Payments,,Revenue
Walsall Council,http://opendatacommunities.org/id/metropolitan-district-council/walsall,WC97-482,31/08/2018,Adult Social Care,BELVIDERE COURT,07/08/2018,"2,214.29",73373-RESIDENTIAL & NURSING CARE PLACEMENTS,MENTAL HEALTH PACKAGE/PLACEMENT COSTS,Third Party Payments,,Revenue
Walsall Council,http://opendatacommunities.org/id/metropolitan-district-council/walsall,WC97-483,31/08/2018,Adult Social Care,BELVIDERE COURT,14/08/2018,"2,214.29",73373-RESIDENTIAL & NURSING CARE PLACEMENTS,MENTAL HEALTH PACKAGE/PLACEMENT COSTS,Third Party Payments,,Revenue
Walsall Council,http://opendatacommunities.org/id/metropolitan-district-council/walsall,WC97-484,31/08/2018,Adult Social Care,BELVIDERE COURT,07/08/2018,"2,233.95",73373-RESIDENTIAL & NURSING CARE PLACEMENTS,MENTAL HEALTH PACKAGE/PLACEMENT COSTS,Third Party Payments,,Revenue
Walsall Council,http://opendatacommunities.org/id/metropolitan-district-council/walsall,WC97-485,31/08/2018,Adult Social Care,BELVIDERE COURT,14/08/2018,"2,233.95",73373-RESIDENTIAL & NURSING CARE PLACEMENTS,MENTAL HEALTH PACKAGE/PLACEMENT COSTS,Third Party Payments,,Revenue
Walsall Council,http://opendatacommunities.org/id/metropolitan-district-council/walsall,WC97-486,31/08/2018,Adult Social Care,BELVIDERE COURT,07/08/2018,"2,435.71",73373-RESIDENTIAL & NURSING CARE PLACEMENTS,OP PACKAGE/PLACEMENT COSTS,Third Party Payments,,Revenue
Walsall Council,http://opendatacommunities.org/id/metropolitan-district-council/walsall,WC97-487,31/08/2018,Adult Social Care,BELVIDERE COURT,14/08/2018,"2,435.71",73373-RESIDENTIAL & NURSING CARE PLACEMENTS,OP PACKAGE/PLACEMENT COSTS,Third Party Payments,,Revenue
Walsall Council,http://opendatacommunities.org/id/metropolitan-district-council/walsall,WC97-488,31/08/2018,Adult Social Care,BELVIDERE COURT,07/08/2018,"2,435.72",73373-RESIDENTIAL & NURSING CARE PLACEMENTS,OP PACKAGE/PLACEMENT COSTS,Third Party Payments,,Revenue
Walsall Council,http://opendatacommunities.org/id/metropolitan-district-council/walsall,WC97-489,31/08/2018,Adult Social Care,BELVIDERE COURT,14/08/2018,"2,435.72",73373-RESIDENTIAL & NURSING CARE PLACEMENTS,OP PACKAGE/PLACEMENT COSTS,Third Party Payments,,Revenue
Walsall Council,http://opendatacommunities.org/id/metropolitan-district-council/walsall,WC97-490,31/08/2018,Economy & Environment,BENCHMARK SOLICITORS LLP,28/08/2018,250.00,73014-LEGAL FEES-PRIV CONTRACTOR FEES,CEMETERIES CENTRAL ADMINISTRATION,Third Party Payments,,Revenue
Walsall Council,http://opendatacommunities.org/id/metropolitan-district-council/walsall,WC97-491,31/08/2018,Adult Social Care,REDACTED,10/08/2018,"2,569.64",73506-DIRECT PAYMENT,LEARNING DISABILITY SUPPORT,Third Party Payments,,Revenue
Walsall Council,http://opendatacommunities.org/id/metropolitan-district-council/walsall,WC97-492,31/08/2018,Adult Social Care,BENTLEY COURT PRIORY,13/08/2018,557.14,73019-PSE'S-PRIV CONTRACTOR FEES,TRANSITIONAL CARE SUPPORT TEAM,Third Party Payments,,Revenue
Walsall Council,http://opendatacommunities.org/id/metropolitan-district-council/walsall,WC97-493,31/08/2018,Adult Social Care,BENTLEY COURT PRIORY,13/08/2018,742.86,73019-PSE'S-PRIV CONTRACTOR FEES,TRANSITIONAL CARE SUPPORT TEAM,Third Party Payments,,Revenue
Walsall Council,http://opendatacommunities.org/id/metropolitan-district-council/walsall,WC97-494,31/08/2018,Adult Social Care,BENTLEY COURT PRIORY,17/08/2018,"1,809.29",73019-PSE'S-PRIV CONTRACTOR FEES,TRANSITIONAL CARE SUPPORT TEAM,Third Party Payments,,Revenue
Walsall Council,http://opendatacommunities.org/id/metropolitan-district-council/walsall,WC97-495,31/08/2018,Adult Social Care,BENTLEY COURT PRIORY,07/08/2018,"1,869.79",73373-RESIDENTIAL & NURSING CARE PLACEMENTS,OP PACKAGE/PLACEMENT COSTS,Third Party Payments,,Revenue
Walsall Council,http://opendatacommunities.org/id/metropolitan-district-council/walsall,WC97-496,31/08/2018,Adult Social Care,BENTLEY COURT PRIORY,07/08/2018,"2,109.24",73373-RESIDENTIAL & NURSING CARE PLACEMENTS,OP PACKAGE/PLACEMENT COSTS,Third Party Payments,,Revenue
Walsall Council,http://opendatacommunities.org/id/metropolitan-district-council/walsall,WC97-497,31/08/2018,Adult Social Care,BENTLEY COURT PRIORY,07/08/2018,"2,163.51",73373-RESIDENTIAL & NURSING CARE PLACEMENTS,MENTAL HEALTH PACKAGE/PLACEMENT COSTS,Third Party Payments,,Revenue
Walsall Council,http://opendatacommunities.org/id/metropolitan-district-council/walsall,WC97-498,31/08/2018,Adult Social Care,BENTLEY COURT PRIORY,22/08/2018,"2,235.00",73019-PSE'S-PRIV CONTRACTOR FEES,TRANSITIONAL CARE SUPPORT TEAM,Third Party Payments,,Revenue
Walsall Council,http://opendatacommunities.org/id/metropolitan-district-council/walsall,WC97-499,31/08/2018,Adult Social Care,BENTLEY COURT PRIORY,07/08/2018,"2,258.22",73373-RESIDENTIAL & NURSING CARE PLACEMENTS,OP PACKAGE/PLACEMENT COSTS,Third Party Payments,,Revenue
Walsall Council,http://opendatacommunities.org/id/metropolitan-district-council/walsall,WC97-500,31/08/2018,Adult Social Care,BENTLEY COURT PRIORY,17/08/2018,"2,447.86",73019-PSE'S-PRIV CONTRACTOR FEES,TRANSITIONAL CARE SUPPORT TEAM,Third Party Payments,,Revenue
Walsall Council,http://opendatacommunities.org/id/metropolitan-district-council/walsall,WC97-501,31/08/2018,Adult Social Care,BENTLEY COURT PRIORY,07/08/2018,"2,484.03",73373-RESIDENTIAL & NURSING CARE PLACEMENTS,OP PACKAGE/PLACEMENT COSTS,Third Party Payments,,Revenue
Walsall Council,http://opendatacommunities.org/id/metropolitan-district-council/walsall,WC97-502,31/08/2018,Adult Social Care,BENTLEY COURT PRIORY,07/08/2018,"2,484.03",73373-RESIDENTIAL & NURSING CARE PLACEMENTS,OP PACKAGE/PLACEMENT COSTS,Third Party Payments,,Revenue
Walsall Council,http://opendatacommunities.org/id/metropolitan-district-council/walsall,WC97-503,31/08/2018,Adult Social Care,BENTLEY COURT PRIORY,07/08/2018,"2,484.03",73373-RESIDENTIAL & NURSING CARE PLACEMENTS,OP PACKAGE/PLACEMENT COSTS,Third Party Payments,,Revenue
Walsall Council,http://opendatacommunities.org/id/metropolitan-district-council/walsall,WC97-504,31/08/2018,Adult Social Care,BENTLEY COURT PRIORY,07/08/2018,"2,484.03",73373-RESIDENTIAL & NURSING CARE PLACEMENTS,OP PACKAGE/PLACEMENT COSTS,Third Party Payments,,Revenue
Walsall Council,http://opendatacommunities.org/id/metropolitan-district-council/walsall,WC97-505,31/08/2018,Adult Social Care,BENTLEY COURT PRIORY,07/08/2018,"2,484.03",73373-RESIDENTIAL & NURSING CARE PLACEMENTS,MENTAL HEALTH PACKAGE/PLACEMENT COSTS,Third Party Payments,,Revenue
Walsall Council,http://opendatacommunities.org/id/metropolitan-district-council/walsall,WC97-506,31/08/2018,Adult Social Care,BENTLEY COURT PRIORY,09/08/2018,"2,515.03",73019-PSE'S-PRIV CONTRACTOR FEES,INTEGRATED DISCHARGE TEAM,Third Party Payments,,Revenue
Walsall Council,http://opendatacommunities.org/id/metropolitan-district-council/walsall,WC97-507,31/08/2018,Adult Social Care,BENTLEY COURT PRIORY,09/08/2018,"2,598.86",73019-PSE'S-PRIV CONTRACTOR FEES,INTEGRATED DISCHARGE TEAM,Third Party Payments,,Revenue
Walsall Council,http://opendatacommunities.org/id/metropolitan-district-council/walsall,WC97-508,31/08/2018,Adult Social Care,BENTLEY COURT PRIORY,13/08/2018,"2,878.57",73019-PSE'S-PRIV CONTRACTOR FEES,TRANSITIONAL CARE SUPPORT TEAM,Third Party Payments,,Revenue
Walsall Council,http://opendatacommunities.org/id/metropolitan-district-council/walsall,WC97-509,31/08/2018,Adult Social Care,BENTLEY COURT PRIORY,07/08/2018,"3,100.00",73373-RESIDENTIAL & NURSING CARE PLACEMENTS,OP PACKAGE/PLACEMENT COSTS,Third Party Payments,,Revenue
Walsall Council,http://opendatacommunities.org/id/metropolitan-district-council/walsall,WC97-510,31/08/2018,Adult Social Care,BENTLEY COURT PRIORY,22/08/2018,"3,299.29",73019-PSE'S-PRIV CONTRACTOR FEES,TRANSITIONAL CARE SUPPORT TEAM,Third Party Payments,,Revenue
Walsall Council,http://opendatacommunities.org/id/metropolitan-district-council/walsall,WC97-511,31/08/2018,Adult Social Care,BENTLEY COURT PRIORY,22/08/2018,"3,299.29",73019-PSE'S-PRIV CONTRACTOR FEES,TRANSITIONAL CARE SUPPORT TEAM,Third Party Payments,,Revenue
Walsall Council,http://opendatacommunities.org/id/metropolitan-district-council/walsall,WC97-512,31/08/2018,Adult Social Care,BENTLEY COURT PRIORY,14/08/2018,"6,142.86",73373-RESIDENTIAL & NURSING CARE PLACEMENTS,OP PACKAGE/PLACEMENT COSTS,Third Party Payments,,Revenue
Walsall Council,http://opendatacommunities.org/id/metropolitan-district-council/walsall,WC97-513,31/08/2018,Holding Accounts,BERRYMANS LACE MAWER LLP,02/08/2018,"1,939.52",67001-MISC INSURANCES - PAYMENT OF CLAIMS,PUBLIC LIABILITY,Supplies & Services,,Revenue
Walsall Council,http://opendatacommunities.org/id/metropolitan-district-council/walsall,WC97-514,31/08/2018,Adult Social Care,REDACTED,10/08/2018,"1,082.48",73506-DIRECT PAYMENT,PHYSICAL SUPPORT,Third Party Payments,,Revenue
Walsall Council,http://opendatacommunities.org/id/metropolitan-district-council/walsall,WC97-515,31/08/2018,Adult Social Care,REDACTED,10/08/2018,"1,743.20",73506-DIRECT PAYMENT,PHYSICAL SUPPORT,Third Party Payments,,Revenue
Walsall Council,http://opendatacommunities.org/id/metropolitan-district-council/walsall,WC97-516,31/08/2018,Childrens,REDACTED,10/08/2018,360.00,74501-MAINTENANCE ALLOWANCE-FOSTER CARERS,INTERNAL FOSTER CARE PROVISION,Transfer Payments,,Revenue
Walsall Council,http://opendatacommunities.org/id/metropolitan-district-council/walsall,WC97-517,31/08/2018,Adult Social Care,BESCOT LODGE RESIDENTIAL CARE HOME,21/08/2018,"1,869.79",73373-RESIDENTIAL & NURSING CARE PLACEMENTS,OP PACKAGE/PLACEMENT COSTS,Third Party Payments,,Revenue
Walsall Council,http://opendatacommunities.org/id/metropolitan-district-council/walsall,WC97-518,31/08/2018,Adult Social Care,BESCOT LODGE RESIDENTIAL CARE HOME,21/08/2018,"1,869.79",73373-RESIDENTIAL & NURSING CARE PLACEMENTS,LD PACKAGE/PLACEMENT COSTS,Third Party Payments,,Revenue
Walsall Council,http://opendatacommunities.org/id/metropolitan-district-council/walsall,WC97-519,31/08/2018,Adult Social Care,BESCOT LODGE RESIDENTIAL CARE HOME,21/08/2018,"2,077.58",73373-RESIDENTIAL & NURSING CARE PLACEMENTS,OP PACKAGE/PLACEMENT COSTS,Third Party Payments,,Revenue
Walsall Council,http://opendatacommunities.org/id/metropolitan-district-council/walsall,WC97-520,31/08/2018,Adult Social Care,BESCOT LODGE RESIDENTIAL CARE HOME,21/08/2018,"2,077.58",73373-RESIDENTIAL & NURSING CARE PLACEMENTS,OP PACKAGE/PLACEMENT COSTS,Third Party Payments,,Revenue
Walsall Council,http://opendatacommunities.org/id/metropolitan-district-council/walsall,WC97-521,31/08/2018,Adult Social Care,BESCOT LODGE RESIDENTIAL CARE HOME,21/08/2018,"2,077.58",73373-RESIDENTIAL & NURSING CARE PLACEMENTS,OP PACKAGE/PLACEMENT COSTS,Third Party Payments,,Revenue
Walsall Council,http://opendatacommunities.org/id/metropolitan-district-council/walsall,WC97-522,31/08/2018,Adult Social Care,BESCOT LODGE RESIDENTIAL CARE HOME,21/08/2018,"2,077.58",73373-RESIDENTIAL & NURSING CARE PLACEMENTS,OP PACKAGE/PLACEMENT COSTS,Third Party Payments,,Revenue
Walsall Council,http://opendatacommunities.org/id/metropolitan-district-council/walsall,WC97-523,31/08/2018,Adult Social Care,BESCOT LODGE RESIDENTIAL CARE HOME,21/08/2018,"2,166.15",73373-RESIDENTIAL & NURSING CARE PLACEMENTS,OP PACKAGE/PLACEMENT COSTS,Third Party Payments,,Revenue
Walsall Council,http://opendatacommunities.org/id/metropolitan-district-council/walsall,WC97-524,31/08/2018,Adult Social Care,BESCOT LODGE RESIDENTIAL CARE HOME,21/08/2018,"2,258.21",73373-RESIDENTIAL & NURSING CARE PLACEMENTS,OP PACKAGE/PLACEMENT COSTS,Third Party Payments,,Revenue
Walsall Council,http://opendatacommunities.org/id/metropolitan-district-council/walsall,WC97-525,31/08/2018,Economy & Environment,BESCOT STADIUM SUNDAY MARKET LTD,10/08/2018,"2,800.00",73025-PROFESSIONAL SERVICES-PRIV CONTRACTOR & OTHER AGENCIES,WILLENHALL MARKET,Third Party Payments,,Revenue
Walsall Council,http://opendatacommunities.org/id/metropolitan-district-council/walsall,WC97-526,31/08/2018,Adult Social Care,BESS CARE LIMITED,01/08/2018,646.30,73372-DOMICILIARY CARE,OP PACKAGE/PLACEMENT COSTS,Third Party Payments,,Revenue
Walsall Council,http://opendatacommunities.org/id/metropolitan-district-council/walsall,WC97-527,31/08/2018,Adult Social Care,BESS CARE LIMITED,01/08/2018,667.38,73372-DOMICILIARY CARE,OP PACKAGE/PLACEMENT COSTS,Third Party Payments,,Revenue
Walsall Council,http://opendatacommunities.org/id/metropolitan-district-council/walsall,WC97-528,31/08/2018,Adult Social Care,BESS CARE LIMITED,02/08/2018,674.40,73372-DOMICILIARY CARE,OP PACKAGE/PLACEMENT COSTS,Third Party Payments,,Revenue
Walsall Council,http://opendatacommunities.org/id/metropolitan-district-council/walsall,WC97-529,31/08/2018,Adult Social Care,BESS CARE LIMITED,17/08/2018,688.45,73372-DOMICILIARY CARE,OP PACKAGE/PLACEMENT COSTS,Third Party Payments,,Revenue
Walsall Council,http://opendatacommunities.org/id/metropolitan-district-council/walsall,WC97-530,31/08/2018,Adult Social Care,BESS CARE LIMITED,17/08/2018,688.45,73372-DOMICILIARY CARE,OP PACKAGE/PLACEMENT COSTS,Third Party Payments,,Revenue
Walsall Council,http://opendatacommunities.org/id/metropolitan-district-council/walsall,WC97-531,31/08/2018,Adult Social Care,BESS CARE LIMITED,28/08/2018,688.45,73372-DOMICILIARY CARE,OP PACKAGE/PLACEMENT COSTS,Third Party Payments,,Revenue
Walsall Council,http://opendatacommunities.org/id/metropolitan-district-council/walsall,WC97-532,31/08/2018,Adult Social Care,BESS CARE LIMITED,29/08/2018,688.45,73372-DOMICILIARY CARE,OP PACKAGE/PLACEMENT COSTS,Third Party Payments,,Revenue
Walsall Council,http://opendatacommunities.org/id/metropolitan-district-council/walsall,WC97-533,31/08/2018,Adult Social Care,BETHPHAGE.,20/08/2018,"1,282.50",73372-DOMICILIARY CARE,LD PACKAGE/PLACEMENT COSTS,Third Party Payments,,Revenue
Walsall Council,http://opendatacommunities.org/id/metropolitan-district-council/walsall,WC97-534,31/08/2018,Adult Social Care,BETHPHAGE.,20/08/2018,"1,638.75",73372-DOMICILIARY CARE,LD PACKAGE/PLACEMENT COSTS,Third Party Payments,,Revenue
Walsall Council,http://opendatacommunities.org/id/metropolitan-district-council/walsall,WC97-535,31/08/2018,Adult Social Care,BETHPHAGE.,20/08/2018,"1,674.40",73372-DOMICILIARY CARE,LD PACKAGE/PLACEMENT COSTS,Third Party Payments,,Revenue
Walsall Council,http://opendatacommunities.org/id/metropolitan-district-council/walsall,WC97-536,31/08/2018,Adult Social Care,BETHPHAGE.,20/08/2018,"1,777.71",73374-SUPPORTED & OTHER ACCOMMODATION,LD PACKAGE/PLACEMENT COSTS,Third Party Payments,,Revenue
Walsall Council,http://opendatacommunities.org/id/metropolitan-district-council/walsall,WC97-537,31/08/2018,Adult Social Care,BETHPHAGE.,20/08/2018,"3,366.55",73372-DOMICILIARY CARE,LD PACKAGE/PLACEMENT COSTS,Third Party Payments,,Revenue
Walsall Council,http://opendatacommunities.org/id/metropolitan-district-council/walsall,WC97-538,31/08/2018,Adult Social Care,REDACTED,10/08/2018,949.52,73506-DIRECT PAYMENT,PHYSICAL SUPPORT,Third Party Payments,,Revenue
Walsall Council,http://opendatacommunities.org/id/metropolitan-district-council/walsall,WC97-539,31/08/2018,Adult Social Care,REDACTED,10/08/2018,"2,767.84",73506-DIRECT PAYMENT,PHYSICAL SUPPORT,Third Party Payments,,Revenue
Walsall Council,http://opendatacommunities.org/id/metropolitan-district-council/walsall,WC97-540,31/08/2018,Childrens,REDACTED,20/08/2018,456.00,52000-WITH DRIVER-HIRE OF VEHICLES,HOME TO SCHOOL TRANSPORT,Transport,,Revenue
Walsall Council,http://opendatacommunities.org/id/metropolitan-district-council/walsall,WC97-541,31/08/2018,Economy & Environment,BIFFA WASTE SERVICES LTD,14/08/2018,201.00,73029-HAZARDOUS WASTE REMOVAL/DISPOSAL-PRIV CONTRACTOR FEES,WASTE DISPOSAL - RESIDUAL,Third Party Payments,,Revenue
Walsall Council,http://opendatacommunities.org/id/metropolitan-district-council/walsall,WC97-542,31/08/2018,Economy & Environment,BIFFA WASTE SERVICES LTD,14/08/2018,313.10,73039-LANDFILL TAX-PRIV CONTRACTOR FEES,WASTE DISPOSAL - RESIDUAL,Third Party Payments,,Revenue
Walsall Council,http://opendatacommunities.org/id/metropolitan-district-council/walsall,WC97-543,31/08/2018,Childrens,REDACTED,06/08/2018,517.92,73506-DIRECT PAYMENT,FAMILY SUPPORT - DIRECT PAYMENTS,Third Party Payments,,Revenue
Walsall Council,http://opendatacommunities.org/id/metropolitan-district-council/walsall,WC97-544,31/08/2018,Economy & Environment,BILSTON RESOURCE CENTRE,08/08/2018,375.00,63000-PROFESSIONAL FEES AND SERVICES,YEI (IMPACT) PROGRAMME,Supplies & Services,,Revenue
Walsall Council,http://opendatacommunities.org/id/metropolitan-district-council/walsall,WC97-545,31/08/2018,Economy & Environment,BILSTON RESOURCE CENTRE,08/08/2018,375.00,63000-PROFESSIONAL FEES AND SERVICES,YEI ESF FUNDING,Supplies & Services,,Revenue
Walsall Council,http://opendatacommunities.org/id/metropolitan-district-council/walsall,WC97-546,31/08/2018,Economy & Environment,BILSTON RESOURCE CENTRE,08/08/2018,425.75,63000-PROFESSIONAL FEES AND SERVICES,YEI (IMPACT) PROGRAMME,Supplies & Services,,Revenue
Walsall Council,http://opendatacommunities.org/id/metropolitan-district-council/walsall,WC97-547,31/08/2018,Economy & Environment,BILSTON RESOURCE CENTRE,08/08/2018,425.75,63000-PROFESSIONAL FEES AND SERVICES,YEI ESF FUNDING,Supplies & Services,,Revenue
Walsall Council,http://opendatacommunities.org/id/metropolitan-district-council/walsall,WC97-548,31/08/2018,Childrens,BIRMINGHAM CITY COUNCIL,10/08/2018,"1,956.16",74037-INDEPENDENT FOSTER CARE-OTH AGENCY PROVISION,EXTERNAL FOSTER CARE PROVISION,Third Party Payments,,Revenue
Walsall Council,http://opendatacommunities.org/id/metropolitan-district-council/walsall,WC97-549,31/08/2018,Economy & Environment,BLACK COUNTRY CONSORTIUM LIMITED,10/08/2018,"73,314.48",65500-GRANTS TO ASSOCIATIONS,LEP CORE FUNDING,Third Party Payments,,Revenue
Walsall Council,http://opendatacommunities.org/id/metropolitan-district-council/walsall,WC97-550,31/08/2018,Economy & Environment,BLACK COUNTRY CONSORTIUM LIMITED,01/08/2018,"124,624.16",65500-GRANTS TO ASSOCIATIONS,LEP- HESELTINE FUNDING,Third Party Payments,,Revenue
Walsall Council,http://opendatacommunities.org/id/metropolitan-district-council/walsall,WC97-551,31/08/2018,Resources and Transformation,BLACK COUNTRY INNOVATE CIC,02/08/2018,500.00,63102-CONSULTANTS FEES - CORPORATE,COHESION,Supplies & Services,,Revenue
Walsall Council,http://opendatacommunities.org/id/metropolitan-district-council/walsall,WC97-552,31/08/2018,Childrens,BLACK COUNTRY WOMENS AID,02/08/2018,380.00,30030-EXTERNAL TRAINING,TRADED WORKFORCE DEVELOPMENT,Employees,,Revenue
Walsall Council,http://opendatacommunities.org/id/metropolitan-district-council/walsall,WC97-553,31/08/2018,Economy & Environment,BLACK MAGIC STUDIO,23/08/2018,350.00,63000-PROFESSIONAL FEES AND SERVICES,YEI (IMPACT) PROGRAMME,Supplies & Services,,Revenue
Walsall Council,http://opendatacommunities.org/id/metropolitan-district-council/walsall,WC97-554,31/08/2018,Economy & Environment,BLACK MAGIC STUDIO,23/08/2018,350.00,63000-PROFESSIONAL FEES AND SERVICES,YEI ESF FUNDING,Supplies & Services,,Revenue
Walsall Council,http://opendatacommunities.org/id/metropolitan-district-council/walsall,WC97-555,31/08/2018,Resources and Transformation,BLOXWICH COMMUNITY PARTNERSHIP.,03/08/2018,320.00,61002-DRY FOODS-PROVISIONS,TOWN HALL RESTAURANT BISTRO,Supplies & Services,,Revenue
Walsall Council,http://opendatacommunities.org/id/metropolitan-district-council/walsall,WC97-556,31/08/2018,Childrens,BLOXWICH COMMUNITY PARTNERSHIP.,29/08/2018,"5,351.72",60500-GENERAL MATERIALS,PUPIL REFERAL UNIT EXCLUSIONS,Supplies & Services,,Revenue
Walsall Council,http://opendatacommunities.org/id/metropolitan-district-council/walsall,WC97-557,31/08/2018,Economy & Environment,BME UNITED LTD,01/08/2018,"3,528.00",63253-PAYMENT TO CONTRACTOR,SMOKING CESSATION,Third Party Payments,,Revenue
Walsall Council,http://opendatacommunities.org/id/metropolitan-district-council/walsall,WC97-558,31/08/2018,Economy & Environment,BME UNITED LTD,15/08/2018,"6,673.80",63253-PAYMENT TO CONTRACTOR,SMOKING CESSATION,Third Party Payments,,Revenue
Walsall Council,http://opendatacommunities.org/id/metropolitan-district-council/walsall,WC97-559,31/08/2018,Economy & Environment,BOC LTD,02/08/2018,-331.77,60500-GENERAL MATERIALS,INFRASTRUCTURE MAINTENANCE,Supplies & Services,,Revenue
Walsall Council,http://opendatacommunities.org/id/metropolitan-district-council/walsall,WC97-560,31/08/2018,Economy & Environment,BOC LTD,02/08/2018,323.30,60500-GENERAL MATERIALS,INFRASTRUCTURE MAINTENANCE,Supplies & Services,,Revenue
Walsall Council,http://opendatacommunities.org/id/metropolitan-district-council/walsall,WC97-561,31/08/2018,Holding Accounts,BODYCARE CLINICS,23/08/2018,620.00,67001-MISC INSURANCES - PAYMENT OF CLAIMS,PUBLIC LIABILITY,Supplies & Services,,Revenue
Walsall Council,http://opendatacommunities.org/id/metropolitan-district-council/walsall,WC97-562,31/08/2018,Resources and Transformation,BORSHCH LTD,13/08/2018,237.49,60000-FURNITURE & EQUIPMENT,WALSALL CRISIS SUPPORT SCHEME,Supplies & Services,,Revenue
Walsall Council,http://opendatacommunities.org/id/metropolitan-district-council/walsall,WC97-563,31/08/2018,Resources and Transformation,BORSHCH LTD,02/08/2018,287.50,60000-FURNITURE & EQUIPMENT,WALSALL CRISIS SUPPORT SCHEME,Supplies & Services,,Revenue
Walsall Council,http://opendatacommunities.org/id/metropolitan-district-council/walsall,WC97-564,31/08/2018,Resources and Transformation,BORSHCH LTD,01/08/2018,291.66,60000-FURNITURE & EQUIPMENT,WALSALL CRISIS SUPPORT SCHEME,Supplies & Services,,Revenue
Walsall Council,http://opendatacommunities.org/id/metropolitan-district-council/walsall,WC97-565,31/08/2018,Resources and Transformation,BORSHCH LTD,02/08/2018,291.66,60000-FURNITURE & EQUIPMENT,WALSALL CRISIS SUPPORT SCHEME,Supplies & Services,,Revenue
Walsall Council,http://opendatacommunities.org/id/metropolitan-district-council/walsall,WC97-566,31/08/2018,Resources and Transformation,BORSHCH LTD,06/08/2018,291.66,60000-FURNITURE & EQUIPMENT,WALSALL CRISIS SUPPORT SCHEME,Supplies & Services,,Revenue
Walsall Council,http://opendatacommunities.org/id/metropolitan-district-council/walsall,WC97-567,31/08/2018,Resources and Transformation,BORSHCH LTD,20/08/2018,291.66,60000-FURNITURE & EQUIPMENT,WALSALL CRISIS SUPPORT SCHEME,Supplies & Services,,Revenue
Walsall Council,http://opendatacommunities.org/id/metropolitan-district-council/walsall,WC97-568,31/08/2018,Resources and Transformation,BORSHCH LTD,08/08/2018,337.50,60000-FURNITURE & EQUIPMENT,WALSALL CRISIS SUPPORT SCHEME,Supplies & Services,,Revenue
Walsall Council,http://opendatacommunities.org/id/metropolitan-district-council/walsall,WC97-569,31/08/2018,Resources and Transformation,BORSHCH LTD,09/08/2018,370.83,60000-FURNITURE & EQUIPMENT,WALSALL CRISIS SUPPORT SCHEME,Supplies & Services,,Revenue
Walsall Council,http://opendatacommunities.org/id/metropolitan-district-council/walsall,WC97-570,31/08/2018,Resources and Transformation,BORSHCH LTD,02/08/2018,379.17,60000-FURNITURE & EQUIPMENT,WALSALL CRISIS SUPPORT SCHEME,Supplies & Services,,Revenue
Walsall Council,http://opendatacommunities.org/id/metropolitan-district-council/walsall,WC97-571,31/08/2018,Resources and Transformation,BORSHCH LTD,02/08/2018,391.67,60000-FURNITURE & EQUIPMENT,WALSALL CRISIS SUPPORT SCHEME,Supplies & Services,,Revenue
Walsall Council,http://opendatacommunities.org/id/metropolitan-district-council/walsall,WC97-572,31/08/2018,Resources and Transformation,BORSHCH LTD,01/08/2018,433.33,60000-FURNITURE & EQUIPMENT,WALSALL CRISIS SUPPORT SCHEME,Supplies & Services,,Revenue
Walsall Council,http://opendatacommunities.org/id/metropolitan-district-council/walsall,WC97-573,31/08/2018,Resources and Transformation,BORSHCH LTD,01/08/2018,433.33,60000-FURNITURE & EQUIPMENT,WALSALL CRISIS SUPPORT SCHEME,Supplies & Services,,Revenue
Walsall Council,http://opendatacommunities.org/id/metropolitan-district-council/walsall,WC97-574,31/08/2018,Resources and Transformation,BORSHCH LTD,02/08/2018,433.33,60000-FURNITURE & EQUIPMENT,WALSALL CRISIS SUPPORT SCHEME,Supplies & Services,,Revenue
Walsall Council,http://opendatacommunities.org/id/metropolitan-district-council/walsall,WC97-575,31/08/2018,Resources and Transformation,BORSHCH LTD,02/08/2018,433.33,60000-FURNITURE & EQUIPMENT,WALSALL CRISIS SUPPORT SCHEME,Supplies & Services,,Revenue
Walsall Council,http://opendatacommunities.org/id/metropolitan-district-council/walsall,WC97-576,31/08/2018,Resources and Transformation,BORSHCH LTD,06/08/2018,433.33,60000-FURNITURE & EQUIPMENT,WALSALL CRISIS SUPPORT SCHEME,Supplies & Services,,Revenue
Walsall Council,http://opendatacommunities.org/id/metropolitan-district-council/walsall,WC97-577,31/08/2018,Resources and Transformation,BORSHCH LTD,09/08/2018,433.33,60000-FURNITURE & EQUIPMENT,WALSALL CRISIS SUPPORT SCHEME,Supplies & Services,,Revenue
Walsall Council,http://opendatacommunities.org/id/metropolitan-district-council/walsall,WC97-578,31/08/2018,Resources and Transformation,BORSHCH LTD,09/08/2018,433.33,60000-FURNITURE & EQUIPMENT,WALSALL CRISIS SUPPORT SCHEME,Supplies & Services,,Revenue
Walsall Council,http://opendatacommunities.org/id/metropolitan-district-council/walsall,WC97-579,31/08/2018,Resources and Transformation,BORSHCH LTD,09/08/2018,433.33,60000-FURNITURE & EQUIPMENT,WALSALL CRISIS SUPPORT SCHEME,Supplies & Services,,Revenue
Walsall Council,http://opendatacommunities.org/id/metropolitan-district-council/walsall,WC97-580,31/08/2018,Resources and Transformation,BORSHCH LTD,13/08/2018,433.33,60000-FURNITURE & EQUIPMENT,WALSALL CRISIS SUPPORT SCHEME,Supplies & Services,,Revenue
Walsall Council,http://opendatacommunities.org/id/metropolitan-district-council/walsall,WC97-581,31/08/2018,Resources and Transformation,BORSHCH LTD,13/08/2018,433.33,60000-FURNITURE & EQUIPMENT,WALSALL CRISIS SUPPORT SCHEME,Supplies & Services,,Revenue
Walsall Council,http://opendatacommunities.org/id/metropolitan-district-council/walsall,WC97-582,31/08/2018,Resources and Transformation,BORSHCH LTD,13/08/2018,433.33,60000-FURNITURE & EQUIPMENT,WALSALL CRISIS SUPPORT SCHEME,Supplies & Services,,Revenue
Walsall Council,http://opendatacommunities.org/id/metropolitan-district-council/walsall,WC97-583,31/08/2018,Resources and Transformation,BORSHCH LTD,13/08/2018,433.33,60000-FURNITURE & EQUIPMENT,WALSALL CRISIS SUPPORT SCHEME,Supplies & Services,,Revenue
Walsall Council,http://opendatacommunities.org/id/metropolitan-district-council/walsall,WC97-584,31/08/2018,Resources and Transformation,BORSHCH LTD,13/08/2018,433.33,60000-FURNITURE & EQUIPMENT,WALSALL CRISIS SUPPORT SCHEME,Supplies & Services,,Revenue
Walsall Council,http://opendatacommunities.org/id/metropolitan-district-council/walsall,WC97-585,31/08/2018,Resources and Transformation,BORSHCH LTD,02/08/2018,433.33,60000-FURNITURE & EQUIPMENT,WALSALL CRISIS SUPPORT SCHEME,Supplies & Services,,Revenue
Walsall Council,http://opendatacommunities.org/id/metropolitan-district-council/walsall,WC97-586,31/08/2018,Resources and Transformation,BORSHCH LTD,13/08/2018,437.50,60000-FURNITURE & EQUIPMENT,WALSALL CRISIS SUPPORT SCHEME,Supplies & Services,,Revenue
Walsall Council,http://opendatacommunities.org/id/metropolitan-district-council/walsall,WC97-587,31/08/2018,Resources and Transformation,BORSHCH LTD,09/08/2018,470.83,60000-FURNITURE & EQUIPMENT,WALSALL CRISIS SUPPORT SCHEME,Supplies & Services,,Revenue
Walsall Council,http://opendatacommunities.org/id/metropolitan-district-council/walsall,WC97-588,31/08/2018,Resources and Transformation,BORSHCH LTD,02/08/2018,479.17,60000-FURNITURE & EQUIPMENT,WALSALL CRISIS SUPPORT SCHEME,Supplies & Services,,Revenue
Walsall Council,http://opendatacommunities.org/id/metropolitan-district-council/walsall,WC97-589,31/08/2018,Resources and Transformation,BORSHCH LTD,03/08/2018,479.17,60000-FURNITURE & EQUIPMENT,WALSALL CRISIS SUPPORT SCHEME,Supplies & Services,,Revenue
Walsall Council,http://opendatacommunities.org/id/metropolitan-district-council/walsall,WC97-590,31/08/2018,Economy & Environment,BOWDELL STEEL SERVICES LTD,28/08/2018,268.21,60500-GENERAL MATERIALS,FLEET,Supplies & Services,,Revenue
Walsall Council,http://opendatacommunities.org/id/metropolitan-district-council/walsall,WC97-591,31/08/2018,Adult Social Care,BOWDEN DERRA PARK,24/08/2018,"4,337.58",73373-RESIDENTIAL & NURSING CARE PLACEMENTS,LD PACKAGE/PLACEMENT COSTS,Third Party Payments,,Revenue
Walsall Council,http://opendatacommunities.org/id/metropolitan-district-council/walsall,WC97-592,31/08/2018,Adult Social Care,BOWDEN DERRA PARK,07/08/2018,"11,041.12",73373-RESIDENTIAL & NURSING CARE PLACEMENTS,LD PACKAGE/PLACEMENT COSTS,Third Party Payments,,Revenue
Walsall Council,http://opendatacommunities.org/id/metropolitan-district-council/walsall,WC97-593,31/08/2018,Economy & Environment,BPH DATA LTD,06/08/2018,700.00,69900-TALKING BOOKS - GENERAL,BLOXWICH LIBRARY,Supplies & Services,,Revenue
Walsall Council,http://opendatacommunities.org/id/metropolitan-district-council/walsall,WC97-594,31/08/2018,Resources and Transformation,BPP PROFESSIONAL EDUCATION,06/08/2018,864.32,30030-EXTERNAL TRAINING,FINANCE,Employees,,Revenue
Walsall Council,http://opendatacommunities.org/id/metropolitan-district-council/walsall,WC97-595,31/08/2018,Holding Accounts,BRADIN TRUBSHAW & KIRWAN LLP,06/08/2018,-360.00,67001-MISC INSURANCES - PAYMENT OF CLAIMS,PUBLIC LIABILITY,Supplies & Services,,Revenue
Walsall Council,http://opendatacommunities.org/id/metropolitan-district-council/walsall,WC97-596,31/08/2018,Childrens,BRADLEY ENVIRONMENTAL,01/08/2018,265.00,01006-SITE WORKS MAIN CONTRACTORS,CFR 1299 BROWNHILLS WEST PRIMARY SCHOOL - REPLACE BOILERS/ASBESTOS REMOVAL,Capital,,Capital
Walsall Council,http://opendatacommunities.org/id/metropolitan-district-council/walsall,WC97-597,31/08/2018,Resources and Transformation,BRADLEY ENVIRONMENTAL,28/08/2018,316.00,01006-SITE WORKS MAIN CONTRACTORS,CFR 801 ASBESTOS REMOVAL EAST,Capital,,Capital
Walsall Council,http://opendatacommunities.org/id/metropolitan-district-council/walsall,WC97-598,31/08/2018,Resources and Transformation,BRADLEY ENVIRONMENTAL,28/08/2018,317.00,01006-SITE WORKS MAIN CONTRACTORS,CFR 801 ASBESTOS REMOVAL EAST,Capital,,Capital
Walsall Council,http://opendatacommunities.org/id/metropolitan-district-council/walsall,WC97-599,31/08/2018,Resources and Transformation,BRADLEY ENVIRONMENTAL,28/08/2018,317.00,01006-SITE WORKS MAIN CONTRACTORS,CFR 801 ASBESTOS REMOVAL EAST,Capital,,Capital
Walsall Council,http://opendatacommunities.org/id/metropolitan-district-council/walsall,WC97-600,31/08/2018,Resources and Transformation,BRADLEY ENVIRONMENTAL,01/08/2018,750.00,30030-EXTERNAL TRAINING,INTEGRATED FACILITIES MANAGEMENT,Employees,,Revenue
Walsall Council,http://opendatacommunities.org/id/metropolitan-district-council/walsall,WC97-601,31/08/2018,Economy & Environment,BRADVALE LTD T/A INSPIRE HEALTHCARE SERVICES,29/08/2018,612.25,60500-GENERAL MATERIALS,ARBORETUM VISITOR CENTRE,Supplies & Services,,Revenue
Walsall Council,http://opendatacommunities.org/id/metropolitan-district-council/walsall,WC97-602,31/08/2018,Economy & Environment,BRADVALE LTD T/A INSPIRE HEALTHCARE SERVICES,29/08/2018,622.31,73025-PROFESSIONAL SERVICES-PRIV CONTRACTOR & OTHER AGENCIES,DEPOT,Third Party Payments,,Revenue
Walsall Council,http://opendatacommunities.org/id/metropolitan-district-council/walsall,WC97-603,31/08/2018,Childrens,BRELMAYNE LTD,01/08/2018,234.50,01006-SITE WORKS MAIN CONTRACTORS,CFR 1137 ST GILES PRIMARY EXPANSION,Capital,,Capital
Walsall Council,http://opendatacommunities.org/id/metropolitan-district-council/walsall,WC97-604,31/08/2018,Resources and Transformation,BRELMAYNE LTD,10/08/2018,270.00,60008-MAINTENANCE-FURNITURE & EQUIPMENT,CA ST MICHAELS C.E. PRIMARY SCHOOL,Supplies & Services,,Revenue
Walsall Council,http://opendatacommunities.org/id/metropolitan-district-council/walsall,WC97-605,31/08/2018,Resources and Transformation,BRELMAYNE LTD,22/08/2018,320.00,60008-MAINTENANCE-FURNITURE & EQUIPMENT,CA ELMORE GREEN PRIMARY SCHOOL,Supplies & Services,,Revenue
Walsall Council,http://opendatacommunities.org/id/metropolitan-district-council/walsall,WC97-606,31/08/2018,Resources and Transformation,BRELMAYNE LTD,10/08/2018,453.34,60007-REPAIR OF EQUIPMENT-EQUIPMENT,CA ST MICHAELS C.E. PRIMARY SCHOOL,Supplies & Services,,Revenue
Walsall Council,http://opendatacommunities.org/id/metropolitan-district-council/walsall,WC97-607,31/08/2018,Resources and Transformation,BRELMAYNE LTD,17/08/2018,"7,795.00",01044-PURCHASE OF FURNITURE & EQUIPMENT,CFR 1190 SCHOOLS PROJECT,Capital,,Capital
Walsall Council,http://opendatacommunities.org/id/metropolitan-district-council/walsall,WC97-608,31/08/2018,Resources and Transformation,BRELMAYNE LTD,01/08/2018,"7,797.00","40000-REPAIRS,ALTERATIONS & MAINTENANCE-PREM",CENTRALISED MAINTENANCE,Premises,,Revenue
Walsall Council,http://opendatacommunities.org/id/metropolitan-district-council/walsall,WC97-609,31/08/2018,Adult Social Care,REDACTED,10/08/2018,440.00,73506-DIRECT PAYMENT,LEARNING DISABILITY SUPPORT,Third Party Payments,,Revenue
Walsall Council,http://opendatacommunities.org/id/metropolitan-district-council/walsall,WC97-610,31/08/2018,Childrens,REDACTED,10/08/2018,204.43,74506-TRAVEL-FOSTER CARERS,INTERNAL FOSTER CARE PROVISION,Transfer Payments,,Revenue
Walsall Council,http://opendatacommunities.org/id/metropolitan-district-council/walsall,WC97-611,31/08/2018,Childrens,REDACTED,10/08/2018,720.00,74501-MAINTENANCE ALLOWANCE-FOSTER CARERS,INTERNAL FOSTER CARE PROVISION,Transfer Payments,,Revenue
Walsall Council,http://opendatacommunities.org/id/metropolitan-district-council/walsall,WC97-612,31/08/2018,Childrens,REDACTED,10/08/2018,720.00,74501-MAINTENANCE ALLOWANCE-FOSTER CARERS,INTERNAL FOSTER CARE PROVISION,Transfer Payments,,Revenue
Walsall Council,http://opendatacommunities.org/id/metropolitan-district-council/walsall,WC97-613,31/08/2018,Childrens,REDACTED,10/08/2018,"1,600.00",74508-INTERNAL FOSTER CARERS-CARER FEES,INTERNAL FOSTER CARE PROVISION,Transfer Payments,,Revenue
Walsall Council,http://opendatacommunities.org/id/metropolitan-district-council/walsall,WC97-614,31/08/2018,Economy & Environment,BRENNTAG UK LIMITED,06/08/2018,399.39,60503-CHEMICALS & SCIENTIFIC MATS-MATERIALS,BLOXWICH LEISURE CENTRE,Supplies & Services,,Revenue
Walsall Council,http://opendatacommunities.org/id/metropolitan-district-council/walsall,WC97-615,31/08/2018,Economy & Environment,BRENNTAG UK LIMITED,15/08/2018,406.39,60503-CHEMICALS & SCIENTIFIC MATS-MATERIALS,OAK PARK,Supplies & Services,,Revenue
Walsall Council,http://opendatacommunities.org/id/metropolitan-district-council/walsall,WC97-616,31/08/2018,Economy & Environment,BRENNTAG UK LIMITED,22/08/2018,433.48,60503-CHEMICALS & SCIENTIFIC MATS-MATERIALS,BLOXWICH LEISURE CENTRE,Supplies & Services,,Revenue
Walsall Council,http://opendatacommunities.org/id/metropolitan-district-council/walsall,WC97-617,31/08/2018,Economy & Environment,BRENNTAG UK LIMITED,29/08/2018,710.28,50301-FUEL-TRANSPORT RUN COSTS,FUEL STOCK ACCOUNT,Transport,,Revenue
Walsall Council,http://opendatacommunities.org/id/metropolitan-district-council/walsall,WC97-618,31/08/2018,Resources and Transformation,BRETT QUINTON FUNERAL DIRECTORS LTD T/A LASTING MEMORIALS,01/08/2018,600.00,63110-BURIAL & CREMATION-SERVICES-FEES,MOXLEY PEOPLES CENTRE,Supplies & Services,,Revenue
Walsall Council,http://opendatacommunities.org/id/metropolitan-district-council/walsall,WC97-619,31/08/2018,Adult Social Care,REDACTED,10/08/2018,"1,428.00",73506-DIRECT PAYMENT,PHYSICAL SUPPORT,Third Party Payments,,Revenue
Walsall Council,http://opendatacommunities.org/id/metropolitan-district-council/walsall,WC97-620,31/08/2018,Adult Social Care,REDACTED,10/08/2018,836.40,73506-DIRECT PAYMENT,PHYSICAL SUPPORT,Third Party Payments,,Revenue
Walsall Council,http://opendatacommunities.org/id/metropolitan-district-council/walsall,WC97-621,31/08/2018,Childrens,BRIGHT HORIZONS (BANSTEAD DAY NURSERY AND PRESCHOOL),29/08/2018,"1,026.95",32000-MISC FEES AND EXPENSES,ADOPTION TEAM,Employees,,Revenue
Walsall Council,http://opendatacommunities.org/id/metropolitan-district-council/walsall,WC97-622,31/08/2018,Resources and Transformation,BRITANNIA HOTELS LTD T/A BRITANNIA HOTEL WOLVERHAMPTON,24/08/2018,222.50,75501-BED & BREAKFAST PAYMENTS,BED & BREAKFAST PAYMENTS,Third Party Payments,,Revenue
Walsall Council,http://opendatacommunities.org/id/metropolitan-district-council/walsall,WC97-623,31/08/2018,Resources and Transformation,BRITANNIA HOTELS LTD T/A BRITANNIA HOTEL WOLVERHAMPTON,02/08/2018,254.97,75501-BED & BREAKFAST PAYMENTS,BED & BREAKFAST PAYMENTS,Third Party Payments,,Revenue
Walsall Council,http://opendatacommunities.org/id/metropolitan-district-council/walsall,WC97-624,31/08/2018,Resources and Transformation,BRITANNIA HOTELS LTD T/A BRITANNIA HOTEL WOLVERHAMPTON,24/08/2018,336.93,75501-BED & BREAKFAST PAYMENTS,BED & BREAKFAST PAYMENTS,Third Party Payments,,Revenue
Walsall Council,http://opendatacommunities.org/id/metropolitan-district-council/walsall,WC97-625,31/08/2018,Resources and Transformation,BRITANNIA HOTELS LTD T/A BRITANNIA HOTEL WOLVERHAMPTON,16/08/2018,337.56,75501-BED & BREAKFAST PAYMENTS,BED & BREAKFAST PAYMENTS,Third Party Payments,,Revenue
Walsall Council,http://opendatacommunities.org/id/metropolitan-district-council/walsall,WC97-626,31/08/2018,Resources and Transformation,BRITANNIA HOTELS LTD T/A BRITANNIA HOTEL WOLVERHAMPTON,02/08/2018,558.32,75501-BED & BREAKFAST PAYMENTS,BED & BREAKFAST PAYMENTS,Third Party Payments,,Revenue
Walsall Council,http://opendatacommunities.org/id/metropolitan-district-council/walsall,WC97-627,31/08/2018,Economy & Environment,BRITTONS FORK LIFT LIMITED,07/08/2018,675.00,60008-MAINTENANCE-FURNITURE & EQUIPMENT,ARBORETUM,Supplies & Services,,Revenue
Walsall Council,http://opendatacommunities.org/id/metropolitan-district-council/walsall,WC97-628,31/08/2018,Resources and Transformation,BROADLAND GROUP LTD,16/08/2018,"32,000.00",01006-SITE WORKS MAIN CONTRACTORS,CFR 1288 DARLASTON TOWN HALL-ASBESTOS & FIRE SAFETY WORKS,Capital,,Capital
Walsall Council,http://opendatacommunities.org/id/metropolitan-district-council/walsall,WC97-629,31/08/2018,Adult Social Care,BROADWAY HALLS CARE HOME,14/08/2018,"1,971.43",73373-RESIDENTIAL & NURSING CARE PLACEMENTS,OP PACKAGE/PLACEMENT COSTS,Third Party Payments,,Revenue
Walsall Council,http://opendatacommunities.org/id/metropolitan-district-council/walsall,WC97-630,31/08/2018,Adult Social Care,BROADWAY HALLS CARE HOME,07/08/2018,"2,037.14",73373-RESIDENTIAL & NURSING CARE PLACEMENTS,OP PACKAGE/PLACEMENT COSTS,Third Party Payments,,Revenue
Walsall Council,http://opendatacommunities.org/id/metropolitan-district-council/walsall,WC97-631,31/08/2018,Adult Social Care,BROADWAY HALLS CARE HOME,14/08/2018,"2,077.58",73373-RESIDENTIAL & NURSING CARE PLACEMENTS,OP PACKAGE/PLACEMENT COSTS,Third Party Payments,,Revenue
Walsall Council,http://opendatacommunities.org/id/metropolitan-district-council/walsall,WC97-632,31/08/2018,Holding Accounts,BROWNE JACOBSON SOLICITORS,02/08/2018,"1,399.00",67001-MISC INSURANCES - PAYMENT OF CLAIMS,PUBLIC LIABILITY,Supplies & Services,,Revenue
Walsall Council,http://opendatacommunities.org/id/metropolitan-district-council/walsall,WC97-633,31/08/2018,Economy & Environment,BROWNHILLS ASPHALT & TARMAC LIMITED,01/08/2018,465.00,60500-GENERAL MATERIALS,INFRASTRUCTURE MAINTENANCE,Supplies & Services,,Revenue
Walsall Council,http://opendatacommunities.org/id/metropolitan-district-council/walsall,WC97-634,31/08/2018,Economy & Environment,BROWNHILLS ASPHALT & TARMAC LIMITED,08/08/2018,"1,384.00",60500-GENERAL MATERIALS,CEMETERIES CENTRAL ADMINISTRATION,Supplies & Services,,Revenue
Walsall Council,http://opendatacommunities.org/id/metropolitan-district-council/walsall,WC97-635,31/08/2018,Childrens,BROWNHILLS ASPHALT & TARMAC LIMITED,01/08/2018,"1,800.00",01006-SITE WORKS MAIN CONTRACTORS,CFR 1297 OLD CHURCH PRIMARY SCHOOL EXPANSION,Capital,,Capital
Walsall Council,http://opendatacommunities.org/id/metropolitan-district-council/walsall,WC97-636,31/08/2018,Childrens,BROWNHILLS ASPHALT & TARMAC LIMITED,01/08/2018,"2,350.00",01006-SITE WORKS MAIN CONTRACTORS,CFR 1193 BUSIL JONES PRIMARY - REPLACEMENT DISTRIBUTORS & EMITTERS,Capital,,Capital
Walsall Council,http://opendatacommunities.org/id/metropolitan-district-council/walsall,WC97-637,31/08/2018,Childrens,BROWNHILLS ASPHALT & TARMAC LIMITED,20/08/2018,"14,980.00",01006-SITE WORKS MAIN CONTRACTORS,CFR 1299 BUSILL JONES PRMARY SCHOOL - ROOFING PHASE 2 KS2,Capital,,Capital
Walsall Council,http://opendatacommunities.org/id/metropolitan-district-council/walsall,WC97-638,31/08/2018,Childrens,BROWNHILLS ASPHALT & TARMAC LIMITED,09/08/2018,"18,000.00",01006-SITE WORKS MAIN CONTRACTORS,CFR 1299 BUSILL JONES PRMARY SCHOOL - ROOFING PHASE 2 KS2,Capital,,Capital
Walsall Council,http://opendatacommunities.org/id/metropolitan-district-council/walsall,WC97-639,31/08/2018,Childrens,BROWNHILLS ASPHALT & TARMAC LIMITED,01/08/2018,"18,720.00",01006-SITE WORKS MAIN CONTRACTORS,CFR 1137 ST GILES PRIMARY EXPANSION,Capital,,Capital
Walsall Council,http://opendatacommunities.org/id/metropolitan-district-council/walsall,WC97-640,31/08/2018,Childrens,BROWNHILLS ASPHALT & TARMAC LIMITED,03/08/2018,"20,000.00",01006-SITE WORKS MAIN CONTRACTORS,CFR 1137 ST GILES PRIMARY EXPANSION,Capital,,Capital
Walsall Council,http://opendatacommunities.org/id/metropolitan-district-council/walsall,WC97-641,31/08/2018,Resources and Transformation,BROWNHILLS COMMUNITY ASSOCIATION,06/08/2018,330.00,63000-PROFESSIONAL FEES AND SERVICES,AREA PARTNERSHIPS,Supplies & Services,,Revenue
Walsall Council,http://opendatacommunities.org/id/metropolitan-district-council/walsall,WC97-642,31/08/2018,Childrens,BROWNHILLS COMMUNITY ASSOCIATION,24/08/2018,360.00,63128-HIRE OF ROOM-SERVICES-FEES,CONTACT SESSIONAL STAFF,Supplies & Services,,Revenue
Walsall Council,http://opendatacommunities.org/id/metropolitan-district-council/walsall,WC97-643,31/08/2018,Childrens,BROWNHILLS COMMUNITY ASSOCIATION,24/08/2018,360.00,63128-HIRE OF ROOM-SERVICES-FEES,CONTACT SESSIONAL STAFF,Supplies & Services,,Revenue
Walsall Council,http://opendatacommunities.org/id/metropolitan-district-council/walsall,WC97-644,31/08/2018,Childrens,BROWNHILLS COMMUNITY ASSOCIATION,06/08/2018,"1,179.00",66505-OTHER-GRANTS TO OTHER ORGS,EARLY YEARS - 2 YR OLDS,Third Party Payments,,Revenue
Walsall Council,http://opendatacommunities.org/id/metropolitan-district-council/walsall,WC97-645,31/08/2018,Adult Social Care,REDACTED,10/08/2018,"1,713.60",73506-DIRECT PAYMENT,LEARNING DISABILITY SUPPORT,Third Party Payments,,Revenue
Walsall Council,http://opendatacommunities.org/id/metropolitan-district-council/walsall,WC97-646,31/08/2018,Economy & Environment,REDACTED,21/08/2018,500.00,63000-PROFESSIONAL FEES AND SERVICES,NAG - TEMPORARY EXHIBITIONS,Supplies & Services,,Revenue
Walsall Council,http://opendatacommunities.org/id/metropolitan-district-council/walsall,WC97-647,31/08/2018,Resources and Transformation,B-SURE SECURITY SERVICES LTD,01/08/2018,408.15,73002-SECURITY-PRIV CONTRACTOR FEES,CENTRAL OFFICE ACCOMMODATION,Third Party Payments,,Revenue
Walsall Council,http://opendatacommunities.org/id/metropolitan-district-council/walsall,WC97-648,31/08/2018,Economy & Environment,BT,14/08/2018,331.25,63602-COST OF RENTAL-TELEPHONES,FOREST ARTS CENTRE,Supplies & Services,,Revenue
Walsall Council,http://opendatacommunities.org/id/metropolitan-district-council/walsall,WC97-649,31/08/2018,Resources and Transformation,BT,06/08/2018,649.00,63603-COST OF CALLS-TELEPHONES,PROCESSING,Supplies & Services,,Revenue
Walsall Council,http://opendatacommunities.org/id/metropolitan-district-council/walsall,WC97-650,31/08/2018,Resources and Transformation,BT,01/08/2018,712.00,63603-COST OF CALLS-TELEPHONES,PROCESSING,Supplies & Services,,Revenue
Walsall Council,http://opendatacommunities.org/id/metropolitan-district-council/walsall,WC97-651,31/08/2018,Childrens,BT PLC,21/08/2018,392.98,63603-COST OF CALLS-TELEPHONES,LOCALITY FAMILY SUPPORT-WEST,Supplies & Services,,Revenue
Walsall Council,http://opendatacommunities.org/id/metropolitan-district-council/walsall,WC97-652,31/08/2018,Resources and Transformation,BT PLC,01/08/2018,"1,268.35",63807-COMMS LINKS-COMPUTER,NETWORKS,Supplies & Services,,Revenue
Walsall Council,http://opendatacommunities.org/id/metropolitan-district-council/walsall,WC97-653,31/08/2018,Resources and Transformation,BT PLC,03/08/2018,"1,356.12",63800-COMPUTER EQUIPMENT AND SUPPLIES,RECHARGEABLE EQUIPMENT,Supplies & Services,,Revenue
Walsall Council,http://opendatacommunities.org/id/metropolitan-district-council/walsall,WC97-654,31/08/2018,Resources and Transformation,BT PLC,09/08/2018,"1,742.49",63601-COSTS (NOT INTERNAL RECHARGES)-TELEPHONES,CENTRAL COMMUNICATIONS RECHARGES,Supplies & Services,,Revenue
Walsall Council,http://opendatacommunities.org/id/metropolitan-district-council/walsall,WC97-655,31/08/2018,Resources and Transformation,BT PLC,03/08/2018,"2,172.00",63807-COMMS LINKS-COMPUTER,SIT-INFRASTRUCTURE,Supplies & Services,,Revenue
Walsall Council,http://opendatacommunities.org/id/metropolitan-district-council/walsall,WC97-656,31/08/2018,Resources and Transformation,BT PLC,09/08/2018,"14,964.81",63601-COSTS (NOT INTERNAL RECHARGES)-TELEPHONES,CENTRAL COMMUNICATIONS RECHARGES,Supplies & Services,,Revenue
Walsall Council,http://opendatacommunities.org/id/metropolitan-district-council/walsall,WC97-657,31/08/2018,Economy & Environment,BUFFET EXPRESS LTD,29/08/2018,217.75,61009-BEVERAGES-PROVISIONS,FOREST ARTS CENTRE,Supplies & Services,,Revenue
Walsall Council,http://opendatacommunities.org/id/metropolitan-district-council/walsall,WC97-658,31/08/2018,Resources and Transformation,BURNTWOOD COMPRESSORS LTD,01/08/2018,"1,139.50","40000-REPAIRS,ALTERATIONS & MAINTENANCE-PREM",CENTRAL OFFICE ACCOMMODATION,Premises,,Revenue
Walsall Council,http://opendatacommunities.org/id/metropolitan-district-council/walsall,WC97-659,31/08/2018,Adult Social Care,BUSH HOME LTD,21/08/2018,"1,868.89",73373-RESIDENTIAL & NURSING CARE PLACEMENTS,OP PACKAGE/PLACEMENT COSTS,Third Party Payments,,Revenue
Walsall Council,http://opendatacommunities.org/id/metropolitan-district-council/walsall,WC97-660,31/08/2018,Adult Social Care,BUSH HOME LTD,21/08/2018,"1,869.78",73373-RESIDENTIAL & NURSING CARE PLACEMENTS,OP PACKAGE/PLACEMENT COSTS,Third Party Payments,,Revenue
Walsall Council,http://opendatacommunities.org/id/metropolitan-district-council/walsall,WC97-661,31/08/2018,Adult Social Care,BUSH HOME LTD,21/08/2018,"1,869.78",73373-RESIDENTIAL & NURSING CARE PLACEMENTS,OP PACKAGE/PLACEMENT COSTS,Third Party Payments,,Revenue
Walsall Council,http://opendatacommunities.org/id/metropolitan-district-council/walsall,WC97-662,31/08/2018,Adult Social Care,BUSH HOME LTD,21/08/2018,"1,869.78",73373-RESIDENTIAL & NURSING CARE PLACEMENTS,MENTAL HEALTH PACKAGE/PLACEMENT COSTS,Third Party Payments,,Revenue
Walsall Council,http://opendatacommunities.org/id/metropolitan-district-council/walsall,WC97-663,31/08/2018,Adult Social Care,BUSH HOME LTD,21/08/2018,"1,869.79",73373-RESIDENTIAL & NURSING CARE PLACEMENTS,OP PACKAGE/PLACEMENT COSTS,Third Party Payments,,Revenue
Walsall Council,http://opendatacommunities.org/id/metropolitan-district-council/walsall,WC97-664,31/08/2018,Adult Social Care,BUSH HOME LTD,21/08/2018,"1,869.79",73373-RESIDENTIAL & NURSING CARE PLACEMENTS,OP PACKAGE/PLACEMENT COSTS,Third Party Payments,,Revenue
Walsall Council,http://opendatacommunities.org/id/metropolitan-district-council/walsall,WC97-665,31/08/2018,Adult Social Care,BUSH HOME LTD,07/08/2018,"2,010.56",73373-RESIDENTIAL & NURSING CARE PLACEMENTS,OP PACKAGE/PLACEMENT COSTS,Third Party Payments,,Revenue
Walsall Council,http://opendatacommunities.org/id/metropolitan-district-council/walsall,WC97-666,31/08/2018,Adult Social Care,BUSH HOME LTD,07/08/2018,"2,010.64",73373-RESIDENTIAL & NURSING CARE PLACEMENTS,MENTAL HEALTH PACKAGE/PLACEMENT COSTS,Third Party Payments,,Revenue
Walsall Council,http://opendatacommunities.org/id/metropolitan-district-council/walsall,WC97-667,31/08/2018,Adult Social Care,BUSH HOME LTD,07/08/2018,"2,010.66",73373-RESIDENTIAL & NURSING CARE PLACEMENTS,MENTAL HEALTH PACKAGE/PLACEMENT COSTS,Third Party Payments,,Revenue
Walsall Council,http://opendatacommunities.org/id/metropolitan-district-council/walsall,WC97-668,31/08/2018,Adult Social Care,BUSH HOME LTD,21/08/2018,"2,077.49",73373-RESIDENTIAL & NURSING CARE PLACEMENTS,OP PACKAGE/PLACEMENT COSTS,Third Party Payments,,Revenue
Walsall Council,http://opendatacommunities.org/id/metropolitan-district-council/walsall,WC97-669,31/08/2018,Adult Social Care,BUSH HOME LTD,07/08/2018,"2,077.57",73373-RESIDENTIAL & NURSING CARE PLACEMENTS,MENTAL HEALTH PACKAGE/PLACEMENT COSTS,Third Party Payments,,Revenue
Walsall Council,http://opendatacommunities.org/id/metropolitan-district-council/walsall,WC97-670,31/08/2018,Adult Social Care,BUSH HOME LTD,07/08/2018,"2,077.57",73373-RESIDENTIAL & NURSING CARE PLACEMENTS,MENTAL HEALTH PACKAGE/PLACEMENT COSTS,Third Party Payments,,Revenue
Walsall Council,http://opendatacommunities.org/id/metropolitan-district-council/walsall,WC97-671,31/08/2018,Adult Social Care,BUSH HOME LTD,21/08/2018,"2,077.57",73373-RESIDENTIAL & NURSING CARE PLACEMENTS,OP PACKAGE/PLACEMENT COSTS,Third Party Payments,,Revenue
Walsall Council,http://opendatacommunities.org/id/metropolitan-district-council/walsall,WC97-672,31/08/2018,Adult Social Care,BUSH HOME LTD,21/08/2018,"2,077.57",73373-RESIDENTIAL & NURSING CARE PLACEMENTS,OP PACKAGE/PLACEMENT COSTS,Third Party Payments,,Revenue
Walsall Council,http://opendatacommunities.org/id/metropolitan-district-council/walsall,WC97-673,31/08/2018,Adult Social Care,BUSH HOME LTD,21/08/2018,"2,077.57",73373-RESIDENTIAL & NURSING CARE PLACEMENTS,MENTAL HEALTH PACKAGE/PLACEMENT COSTS,Third Party Payments,,Revenue
Walsall Council,http://opendatacommunities.org/id/metropolitan-district-council/walsall,WC97-674,31/08/2018,Adult Social Care,BUSH HOME LTD,07/08/2018,"2,077.58",73373-RESIDENTIAL & NURSING CARE PLACEMENTS,OP PACKAGE/PLACEMENT COSTS,Third Party Payments,,Revenue
Walsall Council,http://opendatacommunities.org/id/metropolitan-district-council/walsall,WC97-675,31/08/2018,Adult Social Care,BUSH HOME LTD,21/08/2018,"2,077.58",73373-RESIDENTIAL & NURSING CARE PLACEMENTS,OP PACKAGE/PLACEMENT COSTS,Third Party Payments,,Revenue
Walsall Council,http://opendatacommunities.org/id/metropolitan-district-council/walsall,WC97-676,31/08/2018,Adult Social Care,BUSH HOME LTD,21/08/2018,"2,077.85",73373-RESIDENTIAL & NURSING CARE PLACEMENTS,OP PACKAGE/PLACEMENT COSTS,Third Party Payments,,Revenue
Walsall Council,http://opendatacommunities.org/id/metropolitan-district-council/walsall,WC97-677,31/08/2018,Adult Social Care,BUSH HOME LTD,21/08/2018,"3,149.87",73373-RESIDENTIAL & NURSING CARE PLACEMENTS,OP PACKAGE/PLACEMENT COSTS,Third Party Payments,,Revenue
Walsall Council,http://opendatacommunities.org/id/metropolitan-district-council/walsall,WC97-678,31/08/2018,Adult Social Care,BUSH HOME LTD,21/08/2018,"4,825.34",73373-RESIDENTIAL & NURSING CARE PLACEMENTS,OP PACKAGE/PLACEMENT COSTS,Third Party Payments,,Revenue
Walsall Council,http://opendatacommunities.org/id/metropolitan-district-council/walsall,WC97-679,31/08/2018,Childrens,BY THE BRIDGE,10/08/2018,"3,996.00",74037-INDEPENDENT FOSTER CARE-OTH AGENCY PROVISION,EXTERNAL FOSTER CARE PROVISION,Third Party Payments,,Revenue
Walsall Council,http://opendatacommunities.org/id/metropolitan-district-council/walsall,WC97-680,31/08/2018,Economy & Environment,C ART ART TRANSPORT LTD,15/08/2018,615.00,73032-TRANSPORTATION-PRIV CONTRACTOR FEES,NAG - TEMPORARY EXHIBITIONS,Third Party Payments,,Revenue
Walsall Council,http://opendatacommunities.org/id/metropolitan-district-council/walsall,WC97-681,31/08/2018,Childrens,REDACTED,10/08/2018,720.00,74501-MAINTENANCE ALLOWANCE-FOSTER CARERS,INTERNAL FOSTER CARE PROVISION,Transfer Payments,,Revenue
Walsall Council,http://opendatacommunities.org/id/metropolitan-district-council/walsall,WC97-682,31/08/2018,Childrens,REDACTED,10/08/2018,720.00,74501-MAINTENANCE ALLOWANCE-FOSTER CARERS,INTERNAL FOSTER CARE PROVISION,Transfer Payments,,Revenue
Walsall Council,http://opendatacommunities.org/id/metropolitan-district-council/walsall,WC97-683,31/08/2018,Childrens,REDACTED,10/08/2018,720.00,74501-MAINTENANCE ALLOWANCE-FOSTER CARERS,INTERNAL FOSTER CARE PROVISION,Transfer Payments,,Revenue
Walsall Council,http://opendatacommunities.org/id/metropolitan-district-council/walsall,WC97-684,31/08/2018,Childrens,REDACTED,10/08/2018,860.00,74501-MAINTENANCE ALLOWANCE-FOSTER CARERS,INTERNAL FOSTER CARE PROVISION,Transfer Payments,,Revenue
Walsall Council,http://opendatacommunities.org/id/metropolitan-district-council/walsall,WC97-685,31/08/2018,Childrens,REDACTED,10/08/2018,"3,000.00",74508-INTERNAL FOSTER CARERS-CARER FEES,INTERNAL FOSTER CARE PROVISION,Transfer Payments,,Revenue
Walsall Council,http://opendatacommunities.org/id/metropolitan-district-council/walsall,WC97-686,31/08/2018,Childrens,REDACTED,10/08/2018,720.00,74501-MAINTENANCE ALLOWANCE-FOSTER CARERS,INTERNAL FOSTER CARE PROVISION,Transfer Payments,,Revenue
Walsall Council,http://opendatacommunities.org/id/metropolitan-district-council/walsall,WC97-687,31/08/2018,Childrens,REDACTED,10/08/2018,860.00,74501-MAINTENANCE ALLOWANCE-FOSTER CARERS,INTERNAL FOSTER CARE PROVISION,Transfer Payments,,Revenue
Walsall Council,http://opendatacommunities.org/id/metropolitan-district-council/walsall,WC97-688,31/08/2018,Childrens,REDACTED,10/08/2018,"1,600.00",74508-INTERNAL FOSTER CARERS-CARER FEES,INTERNAL FOSTER CARE PROVISION,Transfer Payments,,Revenue
Walsall Council,http://opendatacommunities.org/id/metropolitan-district-council/walsall,WC97-689,31/08/2018,Childrens,C M H T SOLICITORS LLP,13/08/2018,279.99,73014-LEGAL FEES-PRIV CONTRACTOR FEES,GENERAL MANAGEMENT SUPPORT (INC LEGAL),Third Party Payments,,Revenue
Walsall Council,http://opendatacommunities.org/id/metropolitan-district-council/walsall,WC97-690,31/08/2018,Childrens,C M H T SOLICITORS LLP,13/08/2018,864.94,73014-LEGAL FEES-PRIV CONTRACTOR FEES,GENERAL MANAGEMENT SUPPORT (INC LEGAL),Third Party Payments,,Revenue
Walsall Council,http://opendatacommunities.org/id/metropolitan-district-council/walsall,WC97-691,31/08/2018,Economy & Environment,C P DAVIDSON & SONS LTD,03/08/2018,-876.00,60500-GENERAL MATERIALS,FLEET,Supplies & Services,,Revenue
Walsall Council,http://opendatacommunities.org/id/metropolitan-district-council/walsall,WC97-692,31/08/2018,Economy & Environment,C P DAVIDSON & SONS LTD,29/08/2018,246.30,60500-GENERAL MATERIALS,FLEET,Supplies & Services,,Revenue
Walsall Council,http://opendatacommunities.org/id/metropolitan-district-council/walsall,WC97-693,31/08/2018,Economy & Environment,C P DAVIDSON & SONS LTD,29/08/2018,256.56,60500-GENERAL MATERIALS,FLEET,Supplies & Services,,Revenue
Walsall Council,http://opendatacommunities.org/id/metropolitan-district-council/walsall,WC97-694,31/08/2018,Economy & Environment,C P DAVIDSON & SONS LTD,20/08/2018,292.50,73025-PROFESSIONAL SERVICES-PRIV CONTRACTOR & OTHER AGENCIES,FLEET,Third Party Payments,,Revenue
Walsall Council,http://opendatacommunities.org/id/metropolitan-district-council/walsall,WC97-695,31/08/2018,Economy & Environment,C P DAVIDSON & SONS LTD,29/08/2018,422.90,60514-MATERIALS TO STORES,FLEET,Supplies & Services,,Revenue
Walsall Council,http://opendatacommunities.org/id/metropolitan-district-council/walsall,WC97-696,31/08/2018,Economy & Environment,C P DAVIDSON & SONS LTD,03/08/2018,"2,235.49",60500-GENERAL MATERIALS,FLEET,Supplies & Services,,Revenue
Walsall Council,http://opendatacommunities.org/id/metropolitan-district-council/walsall,WC97-697,31/08/2018,Economy & Environment,C P DAVIDSON & SONS LTD,03/08/2018,"3,350.00",60500-GENERAL MATERIALS,FLEET,Supplies & Services,,Revenue
Walsall Council,http://opendatacommunities.org/id/metropolitan-district-council/walsall,WC97-698,31/08/2018,Childrens,REDACTED,24/08/2018,110.00,74503-BIRTHDAY ALLOWANCE-FOSTER CARERS,FAMILY & FRIENDS FOSTER CARE PROVISION,Transfer Payments,,Revenue
Walsall Council,http://opendatacommunities.org/id/metropolitan-district-council/walsall,WC97-699,31/08/2018,Childrens,REDACTED,24/08/2018,110.00,74503-BIRTHDAY ALLOWANCE-FOSTER CARERS,FAMILY & FRIENDS FOSTER CARE PROVISION,Transfer Payments,,Revenue
Walsall Council,http://opendatacommunities.org/id/metropolitan-district-council/walsall,WC97-700,31/08/2018,Childrens,REDACTED,24/08/2018,408.00,74508-INTERNAL FOSTER CARERS-CARER FEES,FAMILY & FRIENDS FOSTER CARE PROVISION,Transfer Payments,,Revenue
Walsall Council,http://opendatacommunities.org/id/metropolitan-district-council/walsall,WC97-701,31/08/2018,Childrens,REDACTED,24/08/2018,600.00,74501-MAINTENANCE ALLOWANCE-FOSTER CARERS,FAMILY & FRIENDS FOSTER CARE PROVISION,Transfer Payments,,Revenue
Walsall Council,http://opendatacommunities.org/id/metropolitan-district-council/walsall,WC97-702,31/08/2018,Childrens,REDACTED,24/08/2018,600.00,74501-MAINTENANCE ALLOWANCE-FOSTER CARERS,FAMILY & FRIENDS FOSTER CARE PROVISION,Transfer Payments,,Revenue
Walsall Council,http://opendatacommunities.org/id/metropolitan-district-council/walsall,WC97-703,31/08/2018,Adult Social Care,CALDMORE AREA HOUSING ASS LTD,07/08/2018,"2,662.88",73373-RESIDENTIAL & NURSING CARE PLACEMENTS,MENTAL HEALTH PACKAGE/PLACEMENT COSTS,Third Party Payments,,Revenue
Walsall Council,http://opendatacommunities.org/id/metropolitan-district-council/walsall,WC97-704,31/08/2018,Adult Social Care,CALDMORE AREA HOUSING ASS LTD,07/08/2018,"2,662.88",73373-RESIDENTIAL & NURSING CARE PLACEMENTS,MENTAL HEALTH PACKAGE/PLACEMENT COSTS,Third Party Payments,,Revenue
Walsall Council,http://opendatacommunities.org/id/metropolitan-district-council/walsall,WC97-705,31/08/2018,Adult Social Care,CALDMORE AREA HOUSING ASS LTD,07/08/2018,"2,662.88",73373-RESIDENTIAL & NURSING CARE PLACEMENTS,MENTAL HEALTH PACKAGE/PLACEMENT COSTS,Third Party Payments,,Revenue
Walsall Council,http://opendatacommunities.org/id/metropolitan-district-council/walsall,WC97-706,31/08/2018,Adult Social Care,CALDMORE AREA HOUSING ASS LTD,07/08/2018,"2,662.88",73373-RESIDENTIAL & NURSING CARE PLACEMENTS,MENTAL HEALTH PACKAGE/PLACEMENT COSTS,Third Party Payments,,Revenue
Walsall Council,http://opendatacommunities.org/id/metropolitan-district-council/walsall,WC97-707,31/08/2018,Adult Social Care,CALDMORE AREA HOUSING ASS LTD,07/08/2018,"2,662.88",73373-RESIDENTIAL & NURSING CARE PLACEMENTS,MENTAL HEALTH PACKAGE/PLACEMENT COSTS,Third Party Payments,,Revenue
Walsall Council,http://opendatacommunities.org/id/metropolitan-district-council/walsall,WC97-708,31/08/2018,Adult Social Care,CALDMORE AREA HOUSING ASS LTD,07/08/2018,"2,662.88",73373-RESIDENTIAL & NURSING CARE PLACEMENTS,MENTAL HEALTH PACKAGE/PLACEMENT COSTS,Third Party Payments,,Revenue
Walsall Council,http://opendatacommunities.org/id/metropolitan-district-council/walsall,WC97-709,31/08/2018,Adult Social Care,CALDMORE AREA HOUSING ASS LTD,07/08/2018,"2,662.88",73373-RESIDENTIAL & NURSING CARE PLACEMENTS,MENTAL HEALTH PACKAGE/PLACEMENT COSTS,Third Party Payments,,Revenue
Walsall Council,http://opendatacommunities.org/id/metropolitan-district-council/walsall,WC97-710,31/08/2018,Adult Social Care,CALDMORE AREA HOUSING ASS LTD,24/08/2018,"2,662.88",73373-RESIDENTIAL & NURSING CARE PLACEMENTS,MENTAL HEALTH PACKAGE/PLACEMENT COSTS,Third Party Payments,,Revenue
Walsall Council,http://opendatacommunities.org/id/metropolitan-district-council/walsall,WC97-711,31/08/2018,Adult Social Care,CALDMORE AREA HOUSING ASS LTD,24/08/2018,"2,662.88",73373-RESIDENTIAL & NURSING CARE PLACEMENTS,MENTAL HEALTH PACKAGE/PLACEMENT COSTS,Third Party Payments,,Revenue
Walsall Council,http://opendatacommunities.org/id/metropolitan-district-council/walsall,WC97-712,31/08/2018,Adult Social Care,CALDMORE AREA HOUSING ASS LTD,24/08/2018,"2,662.88",73373-RESIDENTIAL & NURSING CARE PLACEMENTS,MENTAL HEALTH PACKAGE/PLACEMENT COSTS,Third Party Payments,,Revenue
Walsall Council,http://opendatacommunities.org/id/metropolitan-district-council/walsall,WC97-713,31/08/2018,Adult Social Care,CALDMORE AREA HOUSING ASS LTD,24/08/2018,"2,662.88",73373-RESIDENTIAL & NURSING CARE PLACEMENTS,MENTAL HEALTH PACKAGE/PLACEMENT COSTS,Third Party Payments,,Revenue
Walsall Council,http://opendatacommunities.org/id/metropolitan-district-council/walsall,WC97-714,31/08/2018,Adult Social Care,CALDMORE AREA HOUSING ASS LTD,24/08/2018,"2,662.88",73373-RESIDENTIAL & NURSING CARE PLACEMENTS,MENTAL HEALTH PACKAGE/PLACEMENT COSTS,Third Party Payments,,Revenue
Walsall Council,http://opendatacommunities.org/id/metropolitan-district-council/walsall,WC97-715,31/08/2018,Adult Social Care,CALDMORE AREA HOUSING ASS LTD,24/08/2018,"2,662.88",73373-RESIDENTIAL & NURSING CARE PLACEMENTS,MENTAL HEALTH PACKAGE/PLACEMENT COSTS,Third Party Payments,,Revenue
Walsall Council,http://opendatacommunities.org/id/metropolitan-district-council/walsall,WC97-716,31/08/2018,Adult Social Care,CALDMORE AREA HOUSING ASS LTD,24/08/2018,"2,662.88",73373-RESIDENTIAL & NURSING CARE PLACEMENTS,MENTAL HEALTH PACKAGE/PLACEMENT COSTS,Third Party Payments,,Revenue
Walsall Council,http://opendatacommunities.org/id/metropolitan-district-council/walsall,WC97-717,31/08/2018,Childrens,REDACTED,24/08/2018,375.88,74510-RESIDENTS ORDERS,ADOPTION ALLOWANCES,Third Party Payments,,Revenue
Walsall Council,http://opendatacommunities.org/id/metropolitan-district-council/walsall,WC97-718,31/08/2018,Adult Social Care,REDACTED,10/08/2018,"1,433.08",73506-DIRECT PAYMENT,LEARNING DISABILITY SUPPORT,Third Party Payments,,Revenue
Walsall Council,http://opendatacommunities.org/id/metropolitan-district-council/walsall,WC97-719,31/08/2018,Economy & Environment,CAMERA ONE LIMITED,29/08/2018,300.00,73025-PROFESSIONAL SERVICES-PRIV CONTRACTOR & OTHER AGENCIES,DEPOT,Third Party Payments,,Revenue
Walsall Council,http://opendatacommunities.org/id/metropolitan-district-council/walsall,WC97-720,31/08/2018,Economy & Environment,CAMERA ONE LIMITED,09/08/2018,800.00,60500-GENERAL MATERIALS,DEPOT,Supplies & Services,,Revenue
Walsall Council,http://opendatacommunities.org/id/metropolitan-district-council/walsall,WC97-721,31/08/2018,Economy & Environment,CAMERA ONE LIMITED,29/08/2018,950.00,60006-NEW-FURNITURE & EQUIPMENT,INFRASTRUCTURE MAINTENANCE,Supplies & Services,,Revenue
Walsall Council,http://opendatacommunities.org/id/metropolitan-district-council/walsall,WC97-722,31/08/2018,Economy & Environment,CAMERA ONE LIMITED,15/08/2018,"2,075.00","40000-REPAIRS,ALTERATIONS & MAINTENANCE-PREM",GREEN SPACE MANAGEMENT,Premises,,Revenue
Walsall Council,http://opendatacommunities.org/id/metropolitan-district-council/walsall,WC97-723,31/08/2018,Economy & Environment,CAMERA ONE LIMITED,01/08/2018,"2,175.00","40000-REPAIRS,ALTERATIONS & MAINTENANCE-PREM",GREEN SPACE MANAGEMENT,Premises,,Revenue
Walsall Council,http://opendatacommunities.org/id/metropolitan-district-council/walsall,WC97-724,31/08/2018,Economy & Environment,CAMPBELL INSTALLATIONS LTD,02/08/2018,550.00,73025-PROFESSIONAL SERVICES-PRIV CONTRACTOR & OTHER AGENCIES,PARKING SERVICES OFF-STREET,Third Party Payments,,Revenue
Walsall Council,http://opendatacommunities.org/id/metropolitan-district-council/walsall,WC97-725,31/08/2018,Economy & Environment,CANAL & RIVER TRUST,29/08/2018,"1,302.75",43000-RENTS,ENVIRONMENTAL IMPROVEMENT SERVICE,Premises,,Revenue
Walsall Council,http://opendatacommunities.org/id/metropolitan-district-council/walsall,WC97-726,31/08/2018,Childrens,CANNON HYGIENE LTD,23/08/2018,588.95,60539-CLEANING MATERIALS,CONTACT SESSIONAL STAFF,Supplies & Services,,Revenue
Walsall Council,http://opendatacommunities.org/id/metropolitan-district-council/walsall,WC97-727,31/08/2018,Childrens,CAPSTONE FOSTER CARE (SOUTH EAST) LIMITED,10/08/2018,"3,003.12",74037-INDEPENDENT FOSTER CARE-OTH AGENCY PROVISION,EXTERNAL FOSTER CARE PROVISION,Third Party Payments,,Revenue
Walsall Council,http://opendatacommunities.org/id/metropolitan-district-council/walsall,WC97-728,31/08/2018,Childrens,CAPSTONE FOSTER CARE (SOUTH EAST) LIMITED,10/08/2018,"3,124.44",74037-INDEPENDENT FOSTER CARE-OTH AGENCY PROVISION,EXTERNAL FOSTER CARE PROVISION,Third Party Payments,,Revenue
Walsall Council,http://opendatacommunities.org/id/metropolitan-district-council/walsall,WC97-729,31/08/2018,Childrens,CAPSTONE FOSTER CARE (SOUTH EAST) LIMITED,10/08/2018,"3,194.04",74037-INDEPENDENT FOSTER CARE-OTH AGENCY PROVISION,EXTERNAL FOSTER CARE PROVISION,Third Party Payments,,Revenue
Walsall Council,http://opendatacommunities.org/id/metropolitan-district-council/walsall,WC97-730,31/08/2018,Childrens,CAPSTONE FOSTER CARE (SOUTH EAST) LIMITED,10/08/2018,"3,194.04",74037-INDEPENDENT FOSTER CARE-OTH AGENCY PROVISION,EXTERNAL FOSTER CARE PROVISION,Third Party Payments,,Revenue
Walsall Council,http://opendatacommunities.org/id/metropolitan-district-council/walsall,WC97-731,31/08/2018,Adult Social Care,CARE 2 U LIMITED,20/08/2018,"1,897.80",73025-PROFESSIONAL SERVICES-PRIV CONTRACTOR & OTHER AGENCIES,TRANSITIONAL CARE SUPPORT TEAM,Third Party Payments,,Revenue
Walsall Council,http://opendatacommunities.org/id/metropolitan-district-council/walsall,WC97-732,31/08/2018,Childrens,CARE 4 CHILDREN RESIDENTIAL SERVICES LTD,10/08/2018,"2,400.00",74037-INDEPENDENT FOSTER CARE-OTH AGENCY PROVISION,EXTERNAL FOSTER CARE PROVISION,Third Party Payments,,Revenue
Walsall Council,http://opendatacommunities.org/id/metropolitan-district-council/walsall,WC97-733,31/08/2018,Adult Social Care,CARE FIRST MANAGEMENT SERVICES LTD,03/08/2018,780.00,73372-DOMICILIARY CARE,LD PACKAGE/PLACEMENT COSTS,Third Party Payments,,Revenue
Walsall Council,http://opendatacommunities.org/id/metropolitan-district-council/walsall,WC97-734,31/08/2018,Childrens,CARE LEAVERS,17/08/2018,"2,781.56",76010-ACCOMMODATION AND RELATED COSTS-ASSISTANCE TO S/S CLIENTS,TRANSITION AND LEAVING CARE PLACEMENTS,Transfer Payments,,Revenue
Walsall Council,http://opendatacommunities.org/id/metropolitan-district-council/walsall,WC97-735,31/08/2018,Childrens,CARE LEAVERS,17/08/2018,"3,988.00",74500-CARE LEAVERS MTCE PAYMENTS,TRANSITION AND LEAVING CARE PLACEMENTS,Third Party Payments,,Revenue
Walsall Council,http://opendatacommunities.org/id/metropolitan-district-council/walsall,WC97-736,31/08/2018,Childrens,CARE LEAVERS,17/08/2018,"4,470.31",64002-OTHER EXPENSES-EXPENSES,TRANSITION AND LEAVING CARE PLACEMENTS,Supplies & Services,,Revenue
Walsall Council,http://opendatacommunities.org/id/metropolitan-district-council/walsall,WC97-737,31/08/2018,Childrens,CARE LEAVERS,17/08/2018,"7,110.16",76400-RESIDENTS PERSONAL EXPENSES-ALLOWANCES TO S/S CLIENTS,TRANSITION AND LEAVING CARE PLACEMENTS,Transfer Payments,,Revenue
Walsall Council,http://opendatacommunities.org/id/metropolitan-district-council/walsall,WC97-738,31/08/2018,Childrens,CARE PERSPECTIVES LTD,10/08/2018,"21,300.00",74036-EXTERNAL RESIDENTIAL CARE-OTH AGENCY PROVISION,INDEPENDENT RESIDENTIAL HOMES,Third Party Payments,,Revenue
Walsall Council,http://opendatacommunities.org/id/metropolitan-district-council/walsall,WC97-739,31/08/2018,Childrens,CARE TODAY CHILDRENS SERVICES,10/08/2018,"10,380.00",74036-EXTERNAL RESIDENTIAL CARE-OTH AGENCY PROVISION,INDEPENDENT RESIDENTIAL HOMES,Third Party Payments,,Revenue
Walsall Council,http://opendatacommunities.org/id/metropolitan-district-council/walsall,WC97-740,31/08/2018,Economy & Environment,CARE TRAINING PARTNERSHIP,09/08/2018,497.50,63000-PROFESSIONAL FEES AND SERVICES,YEI (IMPACT) PROGRAMME,Supplies & Services,,Revenue
Walsall Council,http://opendatacommunities.org/id/metropolitan-district-council/walsall,WC97-741,31/08/2018,Economy & Environment,CARE TRAINING PARTNERSHIP,09/08/2018,497.50,63000-PROFESSIONAL FEES AND SERVICES,YEI ESF FUNDING,Supplies & Services,,Revenue
Walsall Council,http://opendatacommunities.org/id/metropolitan-district-council/walsall,WC97-742,31/08/2018,Economy & Environment,CARE TRAINING PARTNERSHIP,09/08/2018,497.50,63000-PROFESSIONAL FEES AND SERVICES,YEI (IMPACT) PROGRAMME,Supplies & Services,,Revenue
Walsall Council,http://opendatacommunities.org/id/metropolitan-district-council/walsall,WC97-743,31/08/2018,Economy & Environment,CARE TRAINING PARTNERSHIP,09/08/2018,497.50,63000-PROFESSIONAL FEES AND SERVICES,YEI ESF FUNDING,Supplies & Services,,Revenue
Walsall Council,http://opendatacommunities.org/id/metropolitan-district-council/walsall,WC97-744,31/08/2018,Economy & Environment,CARE TRAINING PARTNERSHIP,09/08/2018,497.50,63000-PROFESSIONAL FEES AND SERVICES,YEI (IMPACT) PROGRAMME,Supplies & Services,,Revenue
Walsall Council,http://opendatacommunities.org/id/metropolitan-district-council/walsall,WC97-745,31/08/2018,Economy & Environment,CARE TRAINING PARTNERSHIP,09/08/2018,497.50,63000-PROFESSIONAL FEES AND SERVICES,YEI ESF FUNDING,Supplies & Services,,Revenue
Walsall Council,http://opendatacommunities.org/id/metropolitan-district-council/walsall,WC97-746,31/08/2018,Economy & Environment,CARE TRAINING PARTNERSHIP,09/08/2018,497.50,63000-PROFESSIONAL FEES AND SERVICES,YEI (IMPACT) PROGRAMME,Supplies & Services,,Revenue
Walsall Council,http://opendatacommunities.org/id/metropolitan-district-council/walsall,WC97-747,31/08/2018,Economy & Environment,CARE TRAINING PARTNERSHIP,09/08/2018,497.50,63000-PROFESSIONAL FEES AND SERVICES,YEI ESF FUNDING,Supplies & Services,,Revenue
Walsall Council,http://opendatacommunities.org/id/metropolitan-district-council/walsall,WC97-748,31/08/2018,Adult Social Care,CARE XY LIMITED,01/08/2018,-762.21,73019-PSE'S-PRIV CONTRACTOR FEES,INTEGRATED DISCHARGE TEAM,Third Party Payments,,Revenue
Walsall Council,http://opendatacommunities.org/id/metropolitan-district-council/walsall,WC97-749,31/08/2018,Adult Social Care,CARE XY LIMITED,02/08/2018,309.10,73372-DOMICILIARY CARE,LD PACKAGE/PLACEMENT COSTS,Third Party Payments,,Revenue
Walsall Council,http://opendatacommunities.org/id/metropolitan-district-council/walsall,WC97-750,31/08/2018,Adult Social Care,CARE XY LIMITED,02/08/2018,358.27,73372-DOMICILIARY CARE,OP PACKAGE/PLACEMENT COSTS,Third Party Payments,,Revenue
Walsall Council,http://opendatacommunities.org/id/metropolitan-district-council/walsall,WC97-751,31/08/2018,Adult Social Care,CARE XY LIMITED,02/08/2018,396.76,73372-DOMICILIARY CARE,OP PACKAGE/PLACEMENT COSTS,Third Party Payments,,Revenue
Walsall Council,http://opendatacommunities.org/id/metropolitan-district-council/walsall,WC97-752,31/08/2018,Adult Social Care,CARE XY LIMITED,17/08/2018,481.38,73025-PROFESSIONAL SERVICES-PRIV CONTRACTOR & OTHER AGENCIES,TRANSITIONAL CARE SUPPORT TEAM,Third Party Payments,,Revenue
Walsall Council,http://opendatacommunities.org/id/metropolitan-district-council/walsall,WC97-753,31/08/2018,Adult Social Care,CARE XY LIMITED,02/08/2018,495.95,73372-DOMICILIARY CARE,OP PACKAGE/PLACEMENT COSTS,Third Party Payments,,Revenue
Walsall Council,http://opendatacommunities.org/id/metropolitan-district-council/walsall,WC97-754,31/08/2018,Adult Social Care,CARE XY LIMITED,02/08/2018,566.80,73372-DOMICILIARY CARE,LD PACKAGE/PLACEMENT COSTS,Third Party Payments,,Revenue
Walsall Council,http://opendatacommunities.org/id/metropolitan-district-council/walsall,WC97-755,31/08/2018,Childrens,CARE XY LIMITED,20/08/2018,620.00,63000-PROFESSIONAL FEES AND SERVICES,DIRECTLY COMMISSIONED NURSING SERVICES,Supplies & Services,,Revenue
